Workbook

Sheet Data
A1: Data of the Promoted Employee | I1: > < Inc | J1: =IF(D8<D5,1,2) -> 2 | T1: =R2 -> 20000
A2: Name | B2: Smt Shaik ASHITUN (CFMS ID15087189) | D2: Female | F2: =IF(D2="Female","her","his") -> her | G2: =IF(Data!O7<Data!P7,1,2) -> 1 | R2: 20000 | S2: 600 | T2: 20600 | U2: 600 | V2: 21200
A3: Design. | B3: PHYSICAL EDUCATION TEACHER | D3: CPS | R3: 20600 | S3: 600 | T3: 21200 | U3: 600 | V3: 21800
A4: Promoted as | B4: Teacher | C4: Specify the Design. | D4: SCHOOL ASST(Phy Ed) | F4: =DAY(B5)&"-"&MONTH(B5)&"-"&YEAR(B5) -> 11-7-2023 | R4: 21200 | S4: 600 | T4: 21800 | U4: 660 | V4: 22460
A5: Date of Joining | B5: 2023-07-11 | C5: Date of Increment | D5: 2023-06-01 | E5: =DAY(B5)&"-"&MONTH(B5)&"-"&YEAR(B5) -> 11-7-2023 | F5: =DAY(D5)&"-"&MONTH(D5)&"-"&YEAR(D5) -> 1-6-2023 | G5: =DATE(YEAR(B5)+1,MONTH(B5),1) -> 2024-07-01 | R5: 21800 | S5: 660 | T5: 22460 | U5: 660 | V5: 23120
A6: Option Date | B6: Promotion Date | C6: Initial fixation done | D6: No | E6: =IF(B6="Increment Date",F5,E5) -> 11-7-2023 | P6: Min Pay | R6: 22460 | S6: 660 | T6: 23120 | U6: 660 | V6: 23780
A7: Present Scale of Pay | B7: 32670-101970 | C7: Promotion Scale | D7: 44570-127480 | F7: FR 22(a)(i) | G7: Pay with normal Inc | H7: =B8 -> 34580 | I7: =LOOKUP(H7,$R$2:$R$83,$S$2:$S$83) -> 990 | N7: =SUM(I7:M7) -> 990 | O7: =LOOKUP(H7,$R$2:$R$83,$T$2:$T$83) -> 35570 | P7: =I135 -> 44570 | R7: 23120 | S7: 660 | T7: 23780 | U7: 720 | V7: 24500
A8: ="Pay as on "&E5 -> Pay as on 11-7-2023 | B8: 34580 | C8: Bill claimed upto | D8: 2023-09-30 | E8: =D8+1 -> 2023-10-01 | F8: FR 22(B) | G8: Notional Inc | H8: =O7 -> 35570 | I8: =LOOKUP(H8,$R$2:$R$83,$S$2:$S$83) -> 990 | N8: 990 | O8: =LOOKUP(H8,$R$2:$R$83,$T$2:$T$83) -> 36560 | R8: 23780 | S8: 720 | T8: 24500 | U8: 720 | V8: 25220
A9: whether 24 years scale drawn in previous cader | B9: No | C9: Place of posting | D9: ZPHSCHOOL EDLAPADU | G9: Next stage in pro. Scale | H9: =O8 -> 36560 | I9: 1080 | N9: 1080 | O9: 37640 | R9: 24500 | S9: 720 | T9: 25220 | U9: 720 | V9: 25940
A10: PPs | B10: 0 | C10: FP | D10: 0 | H10: =O9 -> 37640 | I10: 1080 | N10: 1080 | O10: 38720 | R10: 25220 | S10: 720 | T10: 25940 | U10: 780 | V10: 26720
A11: HMA | B11: 0 | C11: CA/RA | D11: Not Applicalbe | E11: =D5 -> 2023-06-01 | F11: =DATE(YEAR(E11)+1,MONTH(E11),1) -> 2024-06-01 | G11: =DAY(F11)&"-"&MONTH(F11)&"-"&YEAR(F11) -> 1-6-2024 | H11: =O10 -> 38720 | I11: 1080 | N11: 1080 | O11: 39800 | R11: 25940 | S11: 780 | T11: 26720 | U11: 780 | V11: 27500
A12: HRA | B12: 10 | C12: CCA | D12: Not Applicable | H12: =O11 -> 39800 | I12: 1170 | N12: 1170 | O12: 40970 | R12: 26720 | S12: 780 | T12: 27500 | U12: 780 | V12: 28280
A13: Proceedings | R13: 27500 | S13: 780 | T13: 28280 | U13: 850 | V13: 29130
A14: Name of the officer | B14: G VIJAYA BHARATHI B.Sc, MA, B.Ed | H14: Pay fixation | K14: Bill Claim from | M14: =IF(D6="Yes",D5,B5) -> 2023-07-11 | R14: 28280 | S14: 850 | T14: 29130 | U14: 850 | V14: 29980
A15: Designation | B15: HEAD MASTER | G15: FR22(a)(i) | H15: =B5 -> 2023-07-11 | I15: =IF(O7<P7,P7,O7) -> 44570 | R15: 29130 | S15: 850 | T15: 29980 | U15: 850 | V15: 30830
A16: Office | B16: ZPHIGH SCHOOL EDLAPADU | G16: Pay with normal Inc | H16: =IF(B6="Promotion Date",B5,D5) -> 2023-07-11 | I16: =IF(O7<P7,P7,O7) -> 44570 | R16: 29980 | S16: 850 | T16: 30830 | U16: 920 | V16: 31750
A17: RC NO | B17: 5/ PROMOTION FR 22B /2023 | C17: Proceedings Date | D17: 2023-09-19 | F17: =DAY(D17)&"-"&MONTH(D17)&"-"&YEAR(D17) -> 19-9-2023 | G17: Notional Inc | H17: =IF(B9="Yes",D5,H16) -> 2023-07-11 | I17: =IF(O7<P7,P7,IF(B9="Yes",O8,IF(B6="Increment Date",O8,O7))) -> 44570 | R17: 30830 | S17: 920 | T17: 31750 | U17: 920 | V17: 32670
A18: Promotion order | B18: RC No.2179/B2/2023 -9 dt 08-07-2023 of the DEO, GUNTUR | G18: Next stage in pro. Scale | H18: =H17 -> 2023-07-11 | I18: =IF(B9="Yes",I17,IF(O7<P7,P7,IF(B6="Increment Date",O9,O8))) -> 44570 | J18: =LOOKUP(I18,$R$2:$R$81,$S$2:$S$81) -> 1260 | O18: =SUM(J18:N18) -> 1260 | P18: =I18+O18 -> 45830 | R18: 31750 | S18: 920 | T18: 32670 | U18: 920 | V18: 33590
G19: Next Inc.Date | H19: =F11 -> 2024-06-01 | I19: =P18 -> 45830 | R19: 32670 | S19: 920 | T19: 33590 | U19: 990 | V19: 34580
R20: 33590 | S20: 990 | T20: 34580 | U20: 990 | V20: 35570
G21: Next Inc Date | H21: =IF(B6="Increment Date",IF(H18>D8,MIN(H18:H19),H19)) -> FALSE | R21: 34580 | S21: 990 | T21: 35570 | U21: 990 | V21: 36560
R22: 35570 | S22: 990 | T22: 36560 | U22: 1080 | V22: 37640
R23: 36560 | S23: 1080 | T23: 37640 | U23: 1080 | V23: 38720
R24: 37640 | S24: 1080 | T24: 38720 | U24: 1080 | V24: 39800
R25: 38720 | S25: 1080 | T25: 39800 | U25: 1170 | V25: 40970
R26: 39800 | S26: 1170 | T26: 40970 | U26: 1170 | V26: 42140
R27: 40970 | S27: 1170 | T27: 42140 | U27: 1170 | V27: 43310
R28: 42140 | S28: 1170 | T28: 43310 | U28: 1260 | V28: 44570
R29: 43310 | S29: 1260 | T29: 44570 | U29: 1260 | V29: 45830
R30: 44570 | S30: 1260 | T30: 45830 | U30: 1260 | V30: 47090
R31: 45830 | S31: 1260 | T31: 47090 | U31: 1350 | V31: 48440
R32: 47090 | S32: 1350 | T32: 48440 | U32: 1350 | V32: 49790
R33: 48440 | S33: 1350 | T33: 49790 | U33: 1350 | V33: 51140
R34: 49790 | S34: 1350 | T34: 51140 | U34: 1460 | V34: 52600
R35: 51140 | S35: 1460 | T35: 52600 | U35: 1460 | V35: 54060
R36: 52600 | S36: 1460 | T36: 54060 | U36: 1460 | V36: 55520
R37: 54060 | S37: 1460 | T37: 55520 | U37: 1580 | V37: 57100
R38: 55520 | S38: 1580 | T38: 57100 | U38: 1580 | V38: 58680
R39: 57100 | S39: 1580 | T39: 58680 | U39: 1580 | V39: 60260
R40: 58680 | S40: 1580 | T40: 60260 | U40: 1700 | V40: 61960
R41: 60260 | S41: 1700 | T41: 61960 | U41: 1700 | V41: 63660
R42: 61960 | S42: 1700 | T42: 63660 | U42: 1700 | V42: 65360
R43: 63660 | S43: 1700 | T43: 65360 | U43: 1830 | V43: 67190
R44: 65360 | S44: 1830 | T44: 67190 | U44: 1830 | V44: 69020
R45: 67190 | S45: 1830 | T45: 69020 | U45: 1830 | V45: 70850
R46: 69020 | S46: 1830 | T46: 70850 | U46: 1960 | V46: 72810
R47: 70850 | S47: 1960 | T47: 72810 | U47: 1960 | V47: 74770
R48: 72810 | S48: 1960 | T48: 74770 | U48: 1960 | V48: 76730
R49: 74770 | S49: 1960 | T49: 76730 | U49: 2090 | V49: 78820
R50: 76730 | S50: 2090 | T50: 78820 | U50: 2090 | V50: 80910
R51: 78820 | S51: 2090 | T51: 80910 | U51: 2090 | V51: 83000
R52: 80910 | S52: 2090 | T52: 83000 | U52: 2240 | V52: 85240
R53: 83000 | S53: 2240 | T53: 85240 | U53: 2240 | V53: 87480
R54: 85240 | S54: 2240 | T54: 87480 | U54: 2240 | V54: 89720
R55: 87480 | S55: 2240 | T55: 89720 | U55: 2390 | V55: 92110
R56: 89720 | S56: 2390 | T56: 92110 | U56: 2390 | V56: 94500
R57: 92110 | S57: 2390 | T57: 94500 | U57: 2390 | V57: 96890
R58: 94500 | S58: 2390 | T58: 96890 | U58: 2540 | V58: 99430
R59: 96890 | S59: 2540 | T59: 99430 | U59: 2540 | V59: 101970
R60: 99430 | S60: 2540 | T60: 101970 | U60: 2540 | V60: 104510
R61: 101970 | S61: 2540 | T61: 104510 | U61: 2700 | V61: 107210
R62: 104510 | S62: 2700 | T62: 107210 | U62: 2700 | V62: 109910
R63: 107210 | S63: 2700 | T63: 109910 | U63: 2700 | V63: 112610
R64: 109910 | S64: 2700 | T64: 112610 | U64: 2890 | V64: 115500
R65: 112610 | S65: 2890 | T65: 115500 | U65: 2890 | V65: 118390
R66: 115500 | S66: 2890 | T66: 118390 | U66: 2890 | V66: 121280
R67: 118390 | S67: 2890 | T67: 121280 | U67: 3100 | V67: 124380
R68: 121280 | S68: 3100 | T68: 124380 | U68: 3100 | V68: 127480
R69: 124380 | S69: 3100 | T69: 127480 | U69: 3100 | V69: 130580
R70: 127480 | S70: 3100 | T70: 130580 | U70: 3320 | V70: 133900
R71: 130580 | S71: 3320 | T71: 133900 | U71: 3320 | V71: 137220
R72: 133900 | S72: 3320 | T72: 137220 | U72: 3320 | V72: 140540
R73: 137220 | S73: 3320 | T73: 140540 | U73: 3610 | V73: 144150
R74: 140540 | S74: 3610 | T74: 144150 | U74: 3610 | V74: 147760
R75: 144150 | S75: 3610 | T75: 147760 | U75: 3610 | V75: 151370
R76: 147760 | S76: 3610 | T76: 151370 | U76: 3610 | V76: 154980
R77: 151370 | S77: 3610 | T77: 154980 | U77: 3900 | V77: 158880
R78: 154980 | S78: 3900 | T78: 158880 | U78: 3900 | V78: 162780
R79: 158880 | S79: 3900 | T79: 162780 | U79: 3900 | V79: 166680
R80: 162780 | S80: 3900 | T80: 166680 | U80: 3900 | V80: 170580
R81: 166680 | S81: 3900 | T81: 170580 | U81: 4210 | V81: 174790
R82: 170580 | S82: 4210 | T82: 174790 | U82: 4210 | V82: 179000
R83: 174790 | S83: 4210 | T83: 179000
A100: Pay | B100: Inc | C100: Pay | E100: S NO | F100: Pay Grade | G100: Pay Scale | I100: Min Pay
A101: 20000 | B101: 600 | C101: 20600 | E101: 1 | F101: I | G101: 20000-600-21800-660-23780-720-25940-780-28280-850-30830-920-33590-990-36560-1080-39800-1170-43310-1260-47090-1350-51140-1460-55520-1580-60260-1700-61960 | H101: 20000-61960 | I101: 20000
A102: 20600 | B102: 600 | C102: 21200 | E102: 2 | F102: II | G102: 20600-600-21800-660-23780-720-25940-780-28280-850-30830-920-33590-990-36560-1080-39800-1170-43310-1260-47090-1350-51140-1460-55520-1580-60260-1700-63660 | H102: 20600-63660 | I102: 20600
A103: 21200 | B103: 600 | C103: 21800 | E103: 3 | F103: III | G103: 21200-600-21800-660-23780-720-25940-780-28280-850-30830-920-33590-990-36560-1080-39800-1170-43310-1260-47090-1350-51140-1460-55520-1580-60260-1700-65360 | H103: 21200-65360 | I103: 21200
A104: 21800 | B104: 660 | C104: 22460 | E104: 4 | F104: IV | G104: 22460-660-23780-720-25940-780-28280-850-30830-920-33590-990-36560-1080-39800-1170-43310-1260-47090-1350-51140-1460-55520-1580-60260-1700-65360-1830-70850-1960-72810 | H104: 22460-72810 | I104: 22460
A105: 22460 | B105: 660 | C105: 23120 | E105: 5 | F105: V | G105: 23120-660-23780-720-25940-780-28280-850-30830-920-33590-990-36560-1080-39800-1170-43310-1260-47090-1350-51140-1460-55520-1580-60260-1700-65360-1830-70850-1960-74770 | H105: 23120-74770 | I105: 23120
A106: 23120 | B106: 660 | C106: 23780 | E106: 6 | F106: VI | G106: 23780-720-25940-780-28280-850-30830-920-33590-990-36560-1080-39800-l170-43310-1260-47090-I350-5I140- l460-55520- 1580-60260-1700-65360-1830-70850-1960-76730 | H106: 23780-76730 | I106: 23780
A107: 23780 | B107: 720 | C107: 24500 | E107: 7 | F107: VII | G107: 25220-720-25940-780-28280-850-30830-920-33590-990-36560-1080-39800-1170-43310-1260-47090-1350-51140-1460-55520-1580-60260-1700-65360-1830-70850-1960-76730-2090-80910 | H107: 25220-80910 | I107: 25220
A108: 24500 | B108: 720 | C108: 25220 | E108: 8 | F108: VIII | G108: 27500-780-28280-850-30830-920-33590-990-36560-1080-39800-1170-43310-1260-47090-1350-51140-1460-55520-1580-60260-1700-65360-1830-70850-1960-76730-2090-83000-2240-87480 | H108: 27500-87480 | I108: 27500
A109: 25220 | B109: 720 | C109: 25940 | E109: 9 | F109: IX | G109: 28280-850-30830-920-33590-990-36560-1080-39800-1170-43310-1260-47090-1350-51140-1460-55520-1580-60260-1700-65360-1830-70850-1960-76730-2090-83000-2240-89720 | H109: 28280-89720 | I109: 28280
A110: 25940 | B110: 780 | C110: 26720 | E110: 10 | F110: X | G110: 29980-850-30830-920-33590-990-36560-1080-39800-1170-43310-1260-47090-1350-51140-1460-55520-1580-60260-1700-65360-1830-70850-1960-76730-2090-83000-2240-89720-2390-94500 | H110: 29980-94500 | I110: 29980
A111: 26720 | B111: 780 | C111: 27500 | E111: 11 | F111: XI | G111: 32670-920-33590-990-36560-1080-39800-1170-43310-1260-47090-1350-51140-1460-55520-1580-60260-1700-65360-1830-70850-1960-76730-2090-83000-2240-89720-2390-96890-2540-101970 | H111: 32670-101970 | I111: 32670
A112: 27500 | B112: 780 | C112: 28280 | E112: 12 | F112: XII | G112: 34580-990-36560-1080-39800-1170-43310-1260-47090-1350-51140-1460-5S520-1580-60260-1700-65360-1830-70850-1960-76730-2090-83000-2240-89720-2390-96890-2540-104510-2700-107210 | H112: 34580-107210 | I112: 34580
A113: 28280 | B113: 850 | C113: 29130 | E113: 13 | F113: XIII | G113: 35570-990-36560-1080-39800-1170-43310-1260-47090-1350-51140-1460-55520-1580-60260-1700-65360-1830-70850-1960-76730-2090-83000-2240-89720-2390-96890-2540-104510-2700-109910 | H113: 35570-109910 | I113: 35570
A114: 29130 | B114: 850 | C114: 29980 | E114: 14 | F114: XIV | G114: 37640-1080-39800-1170-43310-1260-47090-1350-51140-1460-55520-1580-60260-1700-65360-1830-70850-1960-76730-2090-83000-2240-89720-2390-96890-2540-104510-2700-112610-2890-115500 | H114: 37640-115500 | I114: 37640
A115: 29980 | B115: 850 | C115: 30830 | E115: 15 | F115: XV | G115: 38720-1080-39800-1170-43310-1260-47090-1350-51140-1460-55520-1580-60260-1700-65360-1830-70850-1960-76730-2090-83000-2240-89720-2390-96890-2540-104510-2700-112610-2890-118390 | H115: 38720-118390 | I115: 38720
A116: 30830 | B116: 920 | C116: 31750 | E116: 16 | F116: XVI | G116: 40970-1170-43310-1260-47090-1350-51140-1460-55520-1580-60260-1700-65360-1830-70850-1960-76730-2090-83000-2240-89720-2390-96890-2540-104510-2700-112610-2890-121280-3100-124380 | H116: 40970-124380 | I116: 40970
A117: 31750 | B117: 920 | C117: 32670 | E117: 17 | F117: XVII | G117: 44570-1260-47090-1350-51140-1460-55520-1580-60260-1700-65360-1830-70850-1960-76730-2090-83000-2240-89720-2390-96890-2540-104510-2700-112610-2890-121280-3100-127480 | H117: 44570-127480 | I117: 44570
A118: 32670 | B118: 920 | C118: 33590 | E118: 18 | F118: XVIII | G118: 45830-1260-47090-1350-51140-1460-55520-1580-60260-1700-65360-1830-70850-1960-76730-2090-83000-2240-89720-2390-96890-2540-104510-2700-112610-2890-121280-3100-130580 | H118: 45830-130580 | I118: 45830
A119: 33590 | B119: 990 | C119: 34580 | E119: 19 | F119: XVIV | G119: 48440-1350-51140-1460-55520-1580-60260-1700-65360-1830-70850-1960-76730-2090-83000-2240-89720-2390-96890-2540-104510-2700-112610-2890-121280-3100-130580-3320-137220 | H119: 48440-137220 | I119: 48440
A120: 34580 | B120: 990 | C120: 35570 | E120: 20 | F120: XX | G120: 54060-1460-55520-1580-60260-1700-65360-1830-70850-1960-76730-2090-83000-2240-89720-2390-96890-2540-104510-2700-112610-2890-121280-3100-130580-3320-140540 | H120: 54060-140540 | I120: 54060
A121: 35570 | B121: 990 | C121: 36560 | E121: 21 | F121: XXI | G121: 57100-1580-60260-1700-65360-1830-70850-1960-76730-2090-83000-2240-89720-2390-96890-2540-104510-2700-112610-2890-121280-3100-130580-3320-140540-3610-147760 | H121: 57100-147760 | I121: 57100
A122: 36560 | B122: 1080 | C122: 37640 | E122: 22 | F122: XXII | G122: 61960-1700-65360-1830-70850-1960-76730-2090-83000-2240-89720-2390-96890-2540-104510-2700-112610-2890-121280-3100-130580-3320-140540-3610-151370 | H122: 61960-151370 | I122: 61960
A123: 37640 | B123: 1080 | C123: 38720 | E123: 23 | F123: XXIII | G123: 65360-1830-70850-1960-76730-2090-83000-2240-89720-2390-96890-2540-104510-2700-112610-2890-121280-3100-130580-3320-140540-3610-154980 | H123: 65360-154980 | I123: 65360
A124: 38720 | B124: 1080 | C124: 39800 | E124: 24 | F124: XXIV | G124: 70850-1960-76730-2090-83000-2240-89720-2390-96890-2540-104510-2700-112610-2890-121280-3100-130580-3320-140540-3610-154980-3900-158880 | H124: 70850-158880 | I124: 70850
A125: 39800 | B125: 1170 | C125: 40970 | E125: 25 | F125: XXV | G125: 76730-2090-83000-2240-89720-2390-96890-2540-104510-2700-112610-2890-121280-3100-130580-3320-140540-3610-154980-3900-162780 | H125: 76730-162780 | I125: 76730
A126: 40970 | B126: 1170 | C126: 42140 | E126: 26 | F126: XXVI | G126: 80910-2090-83000-2240-89720-2390-96890-2540-104510-2700-112610-2890-121280-3100-130580-3320-140540-3610-154980-3900-166680 | H126: 80910-166680 | I126: 80910
A127: 42140 | B127: 1170 | C127: 43310 | E127: 27 | F127: XXVII | G127: 87480-2240-89720-2390-96890-2540-104510-2700-112610-2890-121280-3100-130580-3320-140540-3610-154980-3900-170580 | H127: 87480-170580 | I127: 87480
A128: 43310 | B128: 1260 | C128: 44570 | E128: 28 | F128: XXVIII | G128: 94500-2390-96890-2540-104510-2700-112610-2890-121280-3100-130580-3320-140540-3610-154980-3900-170580 | H128: 94500-170580 | I128: 94500
A129: 44570 | B129: 1260 | C129: 45830 | E129: 29 | F129: XXIX | G129: 101970-2540-104510-2700-112610-2890-121280-3100-130580-3320-140540-3610-154980-3900-170580-4210-174790 | H129: 101970-174790 | I129: 101970
A130: 45830 | B130: 1260 | C130: 47090 | E130: 30 | F130: XXX | G130: 112610-2890-121280-3100-130580-3320-140540-3610-154980-3900-170580-4210-174790 | H130: 112610-174790 | I130: 112610
A131: 47090 | B131: 1350 | C131: 48440 | E131: 31 | F131: XXXI | G131: 124380-3100-130580-3320-140540-3610-154980-3900-170580-4210-179000 | H131: 124380-179000 | I131: 124380
A132: 48440 | B132: 1350 | C132: 49790 | E132: 32 | F132: XXXII | G132: 133900-3320-140540-3610-154980-3900-170580-4210-179000 | H132: 133900-179900 | I132: 133900
A133: 49790 | B133: 1350 | C133: 51140
A134: 51140 | B134: 1460 | C134: 52600 | E134: =RANK(I134,I101:I132,1) -> 11 | F134: old | G134: =LOOKUP(E134,E101:E132,G101:G132) -> 32670-920-33590-990-36560-1080-39800-1170-43310-1260-47090-1350-51140-1460-55520-1580-60260-1700-65360-1830-70850-1960-76730-2090-83000-2240-89720-2390-96890-2540-101970 | H134: =B7 -> 32670-101970 | I134: =IF(LEN(H134)=10,LEFT(H134,4)+1-1,LEFT(H134,5+1-1))*1 -> 32670
A135: 52600 | B135: 1460 | C135: 54060 | E135: =RANK(I135,I101:I132,1) -> 17 | F135: New | G135: =LOOKUP(E135,E101:E132,G101:G132) -> 44570-1260-47090-1350-51140-1460-55520-1580-60260-1700-65360-1830-70850-1960-76730-2090-83000-2240-89720-2390-96890-2540-104510-2700-112610-2890-121280-3100-127480 | H135: =D7 -> 44570-127480 | I135: =IF(LEN(H135)=10,LEFT(H135,4)+1-1,LEFT(H135,5+1-1))*1 -> 44570
A136: 54060 | B136: 1460 | C136: 55520
A137: 55520 | B137: 1580 | C137: 57100
A138: 57100 | B138: 1580 | C138: 58680
A139: 58680 | B139: 1580 | C139: 60260
A140: 60260 | B140: 1700 | C140: 61960
A141: 61960 | B141: 1700 | C141: 63660
A142: 63660 | B142: 1700 | C142: 65360
A143: 65360 | B143: 1830 | C143: 67190
A144: 67190 | B144: 1830 | C144: 69020
A145: 69020 | B145: 1830 | C145: 70850
A146: 70850 | B146: 1960 | C146: 72810
A147: 72810 | B147: 1960 | C147: 74770
A148: 74770 | B148: 1960 | C148: 76730
A149: 76730 | B149: 2090 | C149: 78820
A150: 78820 | B150: 2090 | C150: 80910
A151: 80910 | B151: 2090 | C151: 83000
A152: 83000 | B152: 2240 | C152: 85240
A153: 85240 | B153: 2240 | C153: 87480
A154: 87480 | B154: 2240 | C154: 89720
A155: 89720 | B155: 2390 | C155: 92110
A156: 92110 | B156: 2390 | C156: 94500
A157: 94500 | B157: 2390 | C157: 96890
A158: 96890 | B158: 2540 | C158: 99430
A159: 99430 | B159: 2540 | C159: 101970
A160: 101970 | B160: 2540 | C160: 104510
A161: 104510 | B161: 2700 | C161: 107210
A162: 107210 | B162: 2700 | C162: 109910
A163: 109910 | B163: 2700 | C163: 112610
A164: 112610 | B164: 2890 | C164: 115500
A165: 115500 | B165: 2890 | C165: 118390
A166: 118390 | B166: 2890 | C166: 121280
A167: 121280 | B167: 3100 | C167: 124380
A168: 124380 | B168: 3100 | C168: 127480
A169: 127480 | B169: 3100 | C169: 130580
A170: 130580 | B170: 3320 | C170: 133900
A171: 133900 | B171: 3320 | C171: 137220
A172: 137220 | B172: 3320 | C172: 140540
A173: 140540 | B173: 3610 | C173: 144150
A174: 144150 | B174: 3610 | C174: 147760
A175: 147760 | B175: 3610 | C175: 151370
A176: 151370 | B176: 3610 | C176: 154980
A177: 154980 | B177: 3900 | C177: 158880
A178: 158880 | B178: 3900 | C178: 162780
A179: 162780 | B179: 3900 | C179: 166680
A180: 166680 | B180: 3900 | C180: 170580
A181: 170580 | B181: 4210 | C181: 174790
A182: 174790 | B182: 4210 | C182: 179000

Sheet Proceedings
A1: ="PROCEEDINGS OF THE "&Data!B15&", "&Data!B16 -> PROCEEDINGS OF THE HEAD MASTER, ZPHIGH SCHOOL EDLAPADU
A2: ="Present : "&Data!B14 -> Present : G VIJAYA BHARATHI B.Sc, MA, B.Ed
A4: RC NO : | B4: =Data!B17 -> 5/ PROMOTION FR 22B /2023 | D4: Date : | E4: =Data!D17 -> 2023-09-19
A6: Sub: | B6: ="Establishment - "&Data!B16&" - "&PROPER(Data!B2)&" - Promoted as "&Data!D4&" from "&Data!B3&" - Opted to fix "&Data!F2&" pay under "&IF(Data!B9="Yes","FR 22(a)(i)","FR 22(B)")&" with effect from "&Data!E6&" i.e."&Data!B6& " - Pay fixation orders issued - Regarding." -> Establishment - ZPHIGH SCHOOL EDLAPADU - Smt Shaik Ashitun (Cfms Id15087189) - Promoted as SCHOOL ASST(Phy Ed) from PHYSICAL EDUCATION TEACHER - Opted to fix her pay under FR 22(B) with effect from 11-7-2023 i.e.Promotion Date - Pay fixation orders issued - Regarding.
A8: Ref: | B8: 1. G.O.Ms.No.1 Finance(PC-TA) Dept. Dt. 17-01-2022
B9: 2. G.O.Ms.No.100 Finance(PC-TA)Dept. Dt.11-05-2022
B10: ="3. "&Data!B18 -> 3. RC No.2179/B2/2023 -9 dt 08-07-2023 of the DEO, GUNTUR
B11: 4. Option given by the individual
A14: =" " &Data!B2&" has been promoted as "&" "&Data!D4&" from "&Data!B3&" and joined on the FN of "&Data!E5&" in the promotion post vide the proceedings cited in the reference 3rd above." -> Smt Shaik ASHITUN (CFMS ID15087189) has been promoted as SCHOOL ASST(Phy Ed) from PHYSICAL EDUCATION TEACHER and joined on the FN of 11-7-2023 in the promotion post vide the proceedings cited in the reference 3rd above.
A15: =" And as per the reference 2nd and 4th cited the individual has opted to fix "&Data!F2&" pay in the promotion post scale under "&IF(Data!B9="Yes","FR 22(a)(i)","FR 22(B)")&" from the "&Data!B6& " ("&Data!E6&") due to promoted as "&Data!D4 -> And as per the reference 2nd and 4th cited the individual has opted to fix her pay in the promotion post scale under FR 22(B) from the Promotion Date (11-7-2023) due to promoted as SCHOOL ASST(Phy Ed)
A16: =" As the individual is promoted to next higher post, "&IF(Data!D6="Yes",PROPER(Data!F2)&" Pay already initially fixed in the promotion post scale from "&Data!E5&" under FR 22(a)(1). Now "," ")&Data!F2&" pay in the time scale of higher post shall be fixed in terms of "&IF(Data!B9="Yes","FR 22(a)(i) read with FR 31(2) as the individual has been drawn SPP II scale in the previous cader.","FR 22(B) as per the option given by the individual.") -> As the individual is promoted to next higher post, her pay in the time scale of higher post shall be fixed in terms of FR 22(B) as per the option given by the individual.
A17: ORDER:
A18: =" Consequent on promotion as "&Data!D4&", the pay of the individual is hereby initially fixed in the Promotion Post Scale "&Data!G135&" under FR 22(a)(i) w.e.f. "&Data!E5&" as follows." -> Consequent on promotion as SCHOOL ASST(Phy Ed), the pay of the individual is hereby initially fixed in the Promotion Post Scale 44570-1260-47090-1350-51140-1460-55520-1580-60260-1700-65360-1830-70850-1960-76730-2090-83000-2240-89720-2390-96890-2540-104510-2700-112610-2890-121280-3100-127480 under FR 22(a)(i) w.e.f. 11-7-2023 as follows.
A19: ="Pay as on "&Data!E5&" in the lower cadre :" -> Pay as on 11-7-2023 in the lower cadre : | D19: ="Rs."&Data!B8&"/-" -> Rs.34580/-
D20: =Data!B7 -> 32670-101970
A21: =IF(Data!O7<Data!P7,"Pay fixed at the minimum of the promotion post scale w.e.f. "&Data!E5&" under FR 22(B) :","Pay fixed w.e.f. "&Data!E5&" under FR 22(a)(i) in the promotion post scale :") -> Pay fixed at the minimum of the promotion post scale w.e.f. 11-7-2023 under FR 22(B) : | D21: ="Rs."&IF(Data!O7<Data!P7,Data!P7,Data!O7)&"/-" -> Rs.44570/-
D22: =Data!D7 -> 44570-127480
A24: =" As per the option under "&IF(Data!B9="Yes","FR 22(a)(i)","FR 22(B)")&" the pay of the individual is hereby "&IF(Data!B6="Promotion Date","fixed","refixed")&" in the Promotion Post Scale "&Data!G135&" from the "&Data!B6&" w.e.f. "&Data!E6&" "&" as follows " -> As per the option under FR 22(B) the pay of the individual is hereby fixed in the Promotion Post Scale 44570-1260-47090-1350-51140-1460-55520-1580-60260-1700-65360-1830-70850-1960-76730-2090-83000-2240-89720-2390-96890-2540-104510-2700-112610-2890-121280-3100-127480 from the Promotion Date w.e.f. 11-7-2023 as follows
A25: ="Pay as on "&Data!E5 &" in the lower cadre :" -> Pay as on 11-7-2023 in the lower cadre : | D25: =D19 -> Rs.34580/-
D26: =Data!B7 -> 32670-101970
A27: ="Pay with the Normal Increment @"&Data!N7&"/-"&" "&"in the lower cadre w.e.f ."&Data!F5&" :" -> Pay with the Normal Increment @990/- in the lower cadre w.e.f .1-6-2023 : | D27: ="Rs."&Data!I16&"/-" -> Rs.44570/-
D28: =D26 -> 32670-101970
A29: =IF(Data!B9="Yes","Pay fixed in the promotion post scale under FR 22(a)(i) read with FR 31(2)","Pay with the Notional Increment@"&IF(Data!B6="Increment Date",Data!N8,Data!N7)&"/- "&"in the lower cadre under FR 22(B) ")&" "&"w.e.f "&Data!E6&" :" -> Pay with the Notional Increment@990/- in the lower cadre under FR 22(B) w.e.f 11-7-2023 : | D29: ="Rs."&Data!I17&"/-" -> Rs.44570/-
D30: =D28 -> 32670-101970
A31: ="Pay fixed at the next stage in the promotion post scale w.e.f "&Data!E6&" :" -> Pay fixed at the next stage in the promotion post scale w.e.f 11-7-2023 : | D31: ="Rs."&Data!I18&"/-" -> Rs.44570/-
D32: =Data!D7 -> 44570-127480
B33: Date of Next Increment is | C33: =IF(Data!B9="Yes",Data!D5,IF(AND(Data!D8>Data!D5,Data!B6="Increment Date"),Data!F11,IF(AND(Data!D8<Data!D5,Data!B6="Increment Date"),Data!D5,Data!G5))) -> 2024-07-01
A34: The individual is hereby informed that in case of any excess payment made due to erroneous pay fixation pointed out by audit or treasury authority at a later date the same will be refixed and recovered in future bills with out any intimation.
A35: Certified that necessary entries have been recorded in the service register of the individual.
A37: To
A38: The individual | D38: =Data!B15 -> HEAD MASTER
A39: ="Copy to "&Data!B15&", "&Data!B16 -> Copy to HEAD MASTER, ZPHIGH SCHOOL EDLAPADU | D39: =UPPER(Data!B16) -> ZPHIGH SCHOOL EDLAPADU
A40: Copy to Bill
A41: Copy to Sub Treasury Officer, ……………………

Sheet Bill Preparation
A1: HRA,CCA should be checked and noted correct HRA,CCA in this form compulsorly. This is the Pay bill Prepared by this software. Once again you check all the columns and Proceed to "BILL" sheet | T1: =IF(ROUND('Bill Preparation'!F3*10%,0)<900,ROUND('Bill Preparation'!F3*10%,0),900) -> 900 | AC1: 2011-05-31 | AS1: CCA Rates
B2: FROM | D2: TO | E2: No of Days | F2: Ele Pay | G2: old Pay | H2: DA | I2: HRA | J2: New IR | K2: New CCA | L2: Old CCA | M2: Total of PPs | N2: F Pay | O2: S Pay | P2: Ele CA/ RA | Q2: Old CA/ RA | R2: DA arrear credit to ZPPF | S2: 2014-01-01 | T2: DA Table | AC2: From | AD2: To | AE2: Hyderabad | AF2: Vij | AG2: Others | AH2: Not Applicable | AI2: CCA
A3: from | B3: =Data!M14 -> 2023-07-11 | C3: to | D3: =DATE(YEAR(B3),MONTH(B3)+1,1)-1 -> 2023-07-31 | E3: =(D3-B3)+1 -> 21 | F3: =IF(B3>Data!$D$8,0,IF(B3>=Data!$H$19,Data!$I$19,IF(B3>=Data!$H$18,Data!$I$18,Data!$I$15))) -> 44570 | G3: =IF(B3>Data!$D$8,0,IF(Data!$D$6="Yes",Data!$O$7,Data!$B$8)) -> 34580 | H3: 22.75 | I3: =Data!B12 -> 10 | J3: 0 | K3: =IF(B3>Data!$D$8,0,LOOKUP(F3,$AC$3:$AC$6,$AI$3:$AI$6)) -> 0 | L3: =IF(B3>Data!$D$8,0,LOOKUP(G3,$AC$3:$AC$6,$AI$3:$AI$6)) -> 0 | M3: =IF(B3>Data!$D$8,0,Data!B10) -> 0 | N3: =IF(B3>Data!$D$8,0,Data!D10) -> 0 | O3: =IF(B3>Data!$D$8,0,Data!B11) -> 0 | P3: =IF(B3>Data!$D$8,0,IF(Data!$D$11="CA",IF(ROUND('Bill Preparation'!F3*10%,0)<900,ROUND('Bill Preparation'!F3*10%,0),900),LOOKUP(Data!$B$4,'Bill Preparation'!$AD$9:$AD$11,'Bill Preparation'!$AG$9:$AG$11))) -> 0 | Q3: =IF(B3>Data!$D$8,0,IF(Data!$D$11="CA",IF(ROUND('Bill Preparation'!G3*10%,0)<900,ROUND('Bill Preparation'!G3*10%,0),900),LOOKUP(Data!$B$4,'Bill Preparation'!$AD$9:$AD$11,'Bill Preparation'!$AG$9:$AG$11))) -> 0 | R3: =IF(Data!$D$3="CPS",0,LOOKUP('Bill Preparation'!B3,'Bill Preparation'!$X$4:$X$22,'Bill Preparation'!$Y$4:$Y$22)) -> 0 | S3: =S2 -> 2014-01-01 | T3: Date of effect | U3: DA | V3: ZPPF | W3: diff | X3: Date | Y3: DA to ZPPF % | AC3: 1 | AD3: 25220 | AE3: 400 | AF3: 250 | AG3: 200 | AH3: 0 | AI3: =IF(Data!$D$12='Bill Preparation'!$AH$2,'Bill Preparation'!AH3,IF(Data!$D$12='Bill Preparation'!$AE$2,'Bill Preparation'!AE3,IF(Data!$D$12='Bill Preparation'!$AG$2,'Bill Preparation'!AG3,'Bill Preparation'!AF3))) -> 0 | AJ3: =DAY(B3) -> 11 | AK3: =MONTH(B3) -> 7 | AL3: =YEAR(B3) -> 2023 | AM3: =IF(AK3=2, 28,IF(AK3=4, 30,IF(AK3=6, 30,IF(AK3=9, 30,IF(AK3=11, 30, 31 ))))) -> 31 | AN3: =IF(AM3=28,IF(AL3=2016,29,28),AM3) -> 31
A4: from | B4: =D3+1 -> 2023-08-01 | C4: to | D4: =DATE(YEAR(B4),MONTH(B4)+1,1)-1 -> 2023-08-31 | E4: =(D4-B4)+1 -> 31 | F4: =IF(B4>Data!$D$8,0,IF(B4>=Data!$H$19,Data!$I$19,IF(B4>=Data!$H$18,Data!$I$18,Data!$I$15))) -> 44570 | G4: =IF(B4>Data!$D$8,0,IF(Data!$D$6="Yes",Data!$O$7,Data!$B$8)) -> 34580 | H4: 22.75 | I4: =IF(B4>Data!$D$8,0,I3) -> 10 | J4: 0 | K4: =IF(B4>Data!$D$8,0,LOOKUP(F4,$AC$3:$AC$6,$AI$3:$AI$6)) -> 0 | L4: =IF(B4>Data!$D$8,0,LOOKUP(G4,$AC$3:$AC$6,$AI$3:$AI$6)) -> 0 | M4: =IF(B4>Data!$D$8,0,M3) -> 0 | N4: =IF(B4>Data!$D$8,0,N3) -> 0 | O4: =IF(B4>Data!$D$8,0,O3) -> 0 | P4: =IF(B4>Data!$D$8,0,IF(Data!$D$11="CA",IF(ROUND('Bill Preparation'!F4*10%,0)<900,ROUND('Bill Preparation'!F4*10%,0),900),LOOKUP(Data!$B$4,'Bill Preparation'!$AD$9:$AD$11,'Bill Preparation'!$AG$9:$AG$11))) -> 0 | Q4: =IF(B4>Data!$D$8,0,IF(Data!$D$11="CA",IF(ROUND('Bill Preparation'!G4*10%,0)<900,ROUND('Bill Preparation'!G4*10%,0),900),LOOKUP(Data!$B$4,'Bill Preparation'!$AD$9:$AD$11,'Bill Preparation'!$AG$9:$AG$11))) -> 0 | R4: =IF(Data!$D$3="CPS",0,LOOKUP('Bill Preparation'!B4,'Bill Preparation'!$X$4:$X$22,'Bill Preparation'!$Y$4:$Y$22)) -> 0 | T4: 2018-07-01 | U4: 0 | W4: 0 | X4: =T4 -> 2018-07-01 | Y4: 0 | AC4: 25221 | AD4: 44570 | AE4: 600 | AF4: 350 | AG4: 300 | AH4: 0 | AI4: =IF(Data!$D$12='Bill Preparation'!$AH$2,'Bill Preparation'!AH4,IF(Data!$D$12='Bill Preparation'!$AE$2,'Bill Preparation'!AE4,IF(Data!$D$12='Bill Preparation'!$AG$2,'Bill Preparation'!AG4,'Bill Preparation'!AF4))) -> 0 | AJ4: =DAY(B4) -> 1 | AK4: =MONTH(B4) -> 8 | AL4: =YEAR(B4) -> 2023 | AM4: 31 | AN4: 31 | AR4: =C37 -> to
A5: from | B5: =D4+1 -> 2023-09-01 | C5: to | D5: =DATE(YEAR(B5),MONTH(B5)+1,1)-1 -> 2023-09-30 | E5: =(D5-B5)+1 -> 30 | F5: =IF(B5>Data!$D$8,0,IF(B5>=Data!$H$19,Data!$I$19,IF(B5>=Data!$H$18,Data!$I$18,Data!$I$15))) -> 44570 | G5: =IF(B5>Data!$D$8,0,IF(Data!$D$6="Yes",Data!$O$7,Data!$B$8)) -> 34580 | H5: 22.75 | I5: =IF(B5>Data!$D$8,0,I4) -> 10 | J5: 0 | K5: =IF(B5>Data!$D$8,0,LOOKUP(F5,$AC$3:$AC$6,$AI$3:$AI$6)) -> 0 | L5: =IF(B5>Data!$D$8,0,LOOKUP(G5,$AC$3:$AC$6,$AI$3:$AI$6)) -> 0 | M5: =IF(B5>Data!$D$8,0,M4) -> 0 | N5: =IF(B5>Data!$D$8,0,N4) -> 0 | O5: =IF(B5>Data!$D$8,0,O4) -> 0 | P5: =IF(B5>Data!$D$8,0,IF(Data!$D$11="CA",IF(ROUND('Bill Preparation'!F5*10%,0)<900,ROUND('Bill Preparation'!F5*10%,0),900),LOOKUP(Data!$B$4,'Bill Preparation'!$AD$9:$AD$11,'Bill Preparation'!$AG$9:$AG$11))) -> 0 | Q5: =IF(B5>Data!$D$8,0,IF(Data!$D$11="CA",IF(ROUND('Bill Preparation'!G5*10%,0)<900,ROUND('Bill Preparation'!G5*10%,0),900),LOOKUP(Data!$B$4,'Bill Preparation'!$AD$9:$AD$11,'Bill Preparation'!$AG$9:$AG$11))) -> 0 | R5: =IF(Data!$D$3="CPS",0,LOOKUP('Bill Preparation'!B5,'Bill Preparation'!$X$4:$X$22,'Bill Preparation'!$Y$4:$Y$22)) -> 0 | T5: 2019-01-01 | U5: 2.73 | W5: =U5-U4 -> 2.73 | X5: =T5 -> 2019-01-01 | Y5: 0 | AC5: 44571 | AD5: 57100 | AE5: 700 | AF5: 450 | AG5: 350 | AH5: 0 | AI5: =IF(Data!$D$12='Bill Preparation'!$AH$2,'Bill Preparation'!AH5,IF(Data!$D$12='Bill Preparation'!$AE$2,'Bill Preparation'!AE5,IF(Data!$D$12='Bill Preparation'!$AG$2,'Bill Preparation'!AG5,'Bill Preparation'!AF5))) -> 0 | AJ5: 1 | AK5: 9 | AL5: 2023 | AM5: 30 | AN5: 30 | AR5: =C38 -> to
A6: from | B6: 2023-10-01 | C6: to | D6: 2023-10-31 | E6: =(D6-B6)+1 -> 31 | F6: =IF(B6>Data!$D$8,0,IF(B6>=Data!$H$19,Data!$I$19,IF(B6>=Data!$H$18,Data!$I$18,Data!$I$15))) -> 0 | G6: =IF(B6>Data!$D$8,0,IF(Data!$D$6="Yes",Data!$O$7,Data!$B$8)) -> 0 | H6: =IF(B6>Data!$D$8,0,LOOKUP(B6,$T$4:$T$16,$U$4:$U$16)) -> 0 | I6: =IF(B6>Data!$D$8,0,I5) -> 0 | J6: 0 | K6: =IF(B6>Data!$D$8,0,LOOKUP(F6,$AC$3:$AC$6,$AI$3:$AI$6)) -> 0 | L6: =IF(B6>Data!$D$8,0,LOOKUP(G6,$AC$3:$AC$6,$AI$3:$AI$6)) -> 0 | M6: =IF(B6>Data!$D$8,0,M5) -> 0 | N6: =IF(B6>Data!$D$8,0,N5) -> 0 | O6: =IF(B6>Data!$D$8,0,O5) -> 0 | P6: =IF(B6>Data!$D$8,0,IF(Data!$D$11="CA",IF(ROUND('Bill Preparation'!F6*10%,0)<900,ROUND('Bill Preparation'!F6*10%,0),900),LOOKUP(Data!$B$4,'Bill Preparation'!$AD$9:$AD$11,'Bill Preparation'!$AG$9:$AG$11))) -> 0 | Q6: =IF(B6>Data!$D$8,0,IF(Data!$D$11="CA",IF(ROUND('Bill Preparation'!G6*10%,0)<900,ROUND('Bill Preparation'!G6*10%,0),900),LOOKUP(Data!$B$4,'Bill Preparation'!$AD$9:$AD$11,'Bill Preparation'!$AG$9:$AG$11))) -> 0 | R6: =IF(Data!$D$3="CPS",0,LOOKUP('Bill Preparation'!B6,'Bill Preparation'!$X$4:$X$22,'Bill Preparation'!$Y$4:$Y$22)) -> 0 | T6: 2019-07-01 | U6: 7.28 | W6: =U6-U5 -> 4.55 | X6: 2019-07-01 | Y6: 0 | AC6: 57101 | AE6: 1000 | AF6: 700 | AG6: 500 | AH6: 0 | AI6: =IF(Data!$D$12='Bill Preparation'!$AH$2,'Bill Preparation'!AH6,IF(Data!$D$12='Bill Preparation'!$AE$2,'Bill Preparation'!AE6,IF(Data!$D$12='Bill Preparation'!$AG$2,'Bill Preparation'!AG6,'Bill Preparation'!AF6))) -> 0 | AJ6: 1 | AK6: 10 | AL6: 2023 | AM6: 31 | AN6: 31 | AR6: =C39 -> to
A7: from | B7: 2023-11-01 | C7: to | D7: 2023-11-30 | E7: =(D7-B7)+1 -> 30 | F7: =IF(B7>Data!$D$8,0,IF(B7>=Data!$H$19,Data!$I$19,IF(B7>=Data!$H$18,Data!$I$18,Data!$I$15))) -> 0 | G7: =IF(B7>Data!$D$8,0,IF(Data!$D$6="Yes",Data!$O$7,Data!$B$8)) -> 0 | H7: =IF(B7>Data!$D$8,0,LOOKUP(B7,$T$4:$T$16,$U$4:$U$16)) -> 0 | I7: =IF(B7>Data!$D$8,0,I6) -> 0 | J7: 0 | K7: =IF(B7>Data!$D$8,0,LOOKUP(F7,$AC$3:$AC$6,$AI$3:$AI$6)) -> 0 | L7: =IF(B7>Data!$D$8,0,LOOKUP(G7,$AC$3:$AC$6,$AI$3:$AI$6)) -> 0 | M7: =IF(B7>Data!$D$8,0,M6) -> 0 | N7: =IF(B7>Data!$D$8,0,N6) -> 0 | O7: =IF(B7>Data!$D$8,0,O6) -> 0 | P7: =IF(B7>Data!$D$8,0,IF(Data!$D$11="CA",IF(ROUND('Bill Preparation'!F7*10%,0)<900,ROUND('Bill Preparation'!F7*10%,0),900),LOOKUP(Data!$B$4,'Bill Preparation'!$AD$9:$AD$11,'Bill Preparation'!$AG$9:$AG$11))) -> 0 | Q7: =IF(B7>Data!$D$8,0,IF(Data!$D$11="CA",IF(ROUND('Bill Preparation'!G7*10%,0)<900,ROUND('Bill Preparation'!G7*10%,0),900),LOOKUP(Data!$B$4,'Bill Preparation'!$AD$9:$AD$11,'Bill Preparation'!$AG$9:$AG$11))) -> 0 | R7: =IF(Data!$D$3="CPS",0,LOOKUP('Bill Preparation'!B7,'Bill Preparation'!$X$4:$X$22,'Bill Preparation'!$Y$4:$Y$22)) -> 0 | T7: 2020-01-01 | U7: 10.92 | V7: 2020-04-01 | W7: 3.64 | X7: 2020-01-01 | Y7: 3.64 | AJ7: 1 | AK7: 11 | AL7: 2023 | AM7: 30 | AN7: 30 | AR7: =C40 -> to
A8: from | B8: 2023-12-01 | C8: to | D8: 2023-12-31 | E8: =(D8-B8)+1 -> 31 | F8: =IF(B8>Data!$D$8,0,IF(B8>=Data!$H$19,Data!$I$19,IF(B8>=Data!$H$18,Data!$I$18,Data!$I$15))) -> 0 | G8: =IF(B8>Data!$D$8,0,IF(Data!$D$6="Yes",Data!$O$7,Data!$B$8)) -> 0 | H8: =IF(B8>Data!$D$8,0,LOOKUP(B8,$T$4:$T$16,$U$4:$U$16)) -> 0 | I8: =IF(B8>Data!$D$8,0,I7) -> 0 | J8: 0 | K8: =IF(B8>Data!$D$8,0,LOOKUP(F8,$AC$3:$AC$6,$AI$3:$AI$6)) -> 0 | L8: =IF(B8>Data!$D$8,0,LOOKUP(G8,$AC$3:$AC$6,$AI$3:$AI$6)) -> 0 | M8: =IF(B8>Data!$D$8,0,M7) -> 0 | N8: =IF(B8>Data!$D$8,0,N7) -> 0 | O8: =IF(B8>Data!$D$8,0,O7) -> 0 | P8: =IF(B8>Data!$D$8,0,IF(Data!$D$11="CA",IF(ROUND('Bill Preparation'!F8*10%,0)<900,ROUND('Bill Preparation'!F8*10%,0),900),LOOKUP(Data!$B$4,'Bill Preparation'!$AD$9:$AD$11,'Bill Preparation'!$AG$9:$AG$11))) -> 0 | Q8: =IF(B8>Data!$D$8,0,IF(Data!$D$11="CA",IF(ROUND('Bill Preparation'!G8*10%,0)<900,ROUND('Bill Preparation'!G8*10%,0),900),LOOKUP(Data!$B$4,'Bill Preparation'!$AD$9:$AD$11,'Bill Preparation'!$AG$9:$AG$11))) -> 0 | R8: =IF(Data!$D$3="CPS",0,LOOKUP('Bill Preparation'!B8,'Bill Preparation'!$X$4:$X$22,'Bill Preparation'!$Y$4:$Y$22)) -> 0 | T8: 2020-07-01 | U8: 13.65 | V8: 2020-04-01 | W8: 2.73 | X8: 2020-07-01 | Y8: 3.144 | AE8: CA | AF8: RA | AG8: CA/RA | AJ8: 1 | AK8: 12 | AL8: 2023 | AM8: 31 | AN8: 31
A9: from | B9: 2024-01-01 | C9: to | D9: 2024-01-31 | E9: 31 | F9: =IF(B9>Data!$D$8,0,IF(B9>=Data!$H$19,Data!$I$19,IF(B9>=Data!$H$18,Data!$I$18,Data!$I$15))) -> 0 | G9: =IF(B9>Data!$D$8,0,IF(Data!$D$6="Yes",Data!$O$7,Data!$B$8)) -> 0 | H9: =IF(B9>Data!$D$8,0,LOOKUP(B9,$T$4:$T$16,$U$4:$U$16)) -> 0 | I9: =IF(B9>Data!$D$8,0,I8) -> 0 | J9: 0 | K9: =IF(B9>Data!$D$8,0,LOOKUP(F9,$AC$3:$AC$6,$AI$3:$AI$6)) -> 0 | L9: =IF(B9>Data!$D$8,0,LOOKUP(G9,$AC$3:$AC$6,$AI$3:$AI$6)) -> 0 | M9: =IF(B9>Data!$D$8,0,M8) -> 0 | N9: =IF(B9>Data!$D$8,0,N8) -> 0 | O9: =IF(B9>Data!$D$8,0,O8) -> 0 | P9: =IF(B9>Data!$D$8,0,IF(Data!$D$11="CA",IF(ROUND('Bill Preparation'!F9*10%,0)<900,ROUND('Bill Preparation'!F9*10%,0),900),LOOKUP(Data!$B$4,'Bill Preparation'!$AD$9:$AD$11,'Bill Preparation'!$AG$9:$AG$11))) -> 0 | Q9: =IF(B9>Data!$D$8,0,IF(Data!$D$11="CA",IF(ROUND('Bill Preparation'!G9*10%,0)<900,ROUND('Bill Preparation'!G9*10%,0),900),LOOKUP(Data!$B$4,'Bill Preparation'!$AD$9:$AD$11,'Bill Preparation'!$AG$9:$AG$11))) -> 0 | R9: =IF(Data!$D$3="CPS",0,LOOKUP('Bill Preparation'!B9,'Bill Preparation'!$X$4:$X$22,'Bill Preparation'!$Y$4:$Y$22)) -> 0 | T9: 2021-01-01 | U9: 17.29 | V9: 2020-04-01 | W9: 3.64 | X9: 2021-01-01 | Y9: 3.144 | AD9: Lecturer | AE9: 0.1 | AF9: 600 | AG9: =IF(Data!$D$11="CA",AE9,IF(Data!$D$11="RA",AF9,0)) -> 0 | AJ9: 1 | AK9: 1 | AL9: 2024 | AM9: 31 | AN9: 31 | AQ9: 34
A10: from | B10: 2024-02-01 | C10: to | D10: 2024-02-29 | E10: 29 | F10: =IF(B10>Data!$D$8,0,IF(B10>=Data!$H$19,Data!$I$19,IF(B10>=Data!$H$18,Data!$I$18,Data!$I$15))) -> 0 | G10: =IF(B10>Data!$D$8,0,IF(Data!$D$6="Yes",Data!$O$7,Data!$B$8)) -> 0 | H10: =IF(B10>Data!$D$8,0,LOOKUP(B10,$T$4:$T$16,$U$4:$U$16)) -> 0 | I10: =IF(B10>Data!$D$8,0,I9) -> 0 | J10: 0 | K10: =IF(B10>Data!$D$8,0,LOOKUP(F10,$AC$3:$AC$6,$AI$3:$AI$6)) -> 0 | L10: =IF(B10>Data!$D$8,0,LOOKUP(G10,$AC$3:$AC$6,$AI$3:$AI$6)) -> 0 | M10: =IF(B10>Data!$D$8,0,M9) -> 0 | N10: =IF(B10>Data!$D$8,0,N9) -> 0 | O10: =IF(B10>Data!$D$8,0,O9) -> 0 | P10: =IF(B10>Data!$D$8,0,IF(Data!$D$11="CA",IF(ROUND('Bill Preparation'!F10*10%,0)<900,ROUND('Bill Preparation'!F10*10%,0),900),LOOKUP(Data!$B$4,'Bill Preparation'!$AD$9:$AD$11,'Bill Preparation'!$AG$9:$AG$11))) -> 0 | Q10: =IF(B10>Data!$D$8,0,IF(Data!$D$11="CA",IF(ROUND('Bill Preparation'!G10*10%,0)<900,ROUND('Bill Preparation'!G10*10%,0),900),LOOKUP(Data!$B$4,'Bill Preparation'!$AD$9:$AD$11,'Bill Preparation'!$AG$9:$AG$11))) -> 0 | R10: =IF(Data!$D$3="CPS",0,LOOKUP('Bill Preparation'!B10,'Bill Preparation'!$X$4:$X$22,'Bill Preparation'!$Y$4:$Y$22)) -> 0 | T10: 2021-07-01 | U10: 20.02 | V10: 2022-01-01 | W10: 2.73 | X10: 2021-07-01 | Y10: 0 | AD10: Others | AE10: 0.1 | AF10: 0 | AG10: =IF(Data!$D$11="CA",AE10,IF(Data!$D$11="RA",AF10,0)) -> 0 | AJ10: 1 | AK10: 2 | AL10: 2024 | AM10: 28 | AN10: 28 | AQ10: 35
A11: from | B11: 2024-03-01 | C11: to | D11: 2024-03-31 | E11: 31 | F11: =IF(B11>Data!$D$8,0,IF(B11>=Data!$H$19,Data!$I$19,IF(B11>=Data!$H$18,Data!$I$18,Data!$I$15))) -> 0 | G11: =IF(B11>Data!$D$8,0,IF(Data!$D$6="Yes",Data!$O$7,Data!$B$8)) -> 0 | H11: =IF(B11>Data!$D$8,0,LOOKUP(B11,$T$4:$T$16,$U$4:$U$16)) -> 0 | I11: =IF(B11>Data!$D$8,0,I10) -> 0 | J11: 0 | K11: =IF(B11>Data!$D$8,0,LOOKUP(F11,$AC$3:$AC$6,$AI$3:$AI$6)) -> 0 | L11: =IF(B11>Data!$D$8,0,LOOKUP(G11,$AC$3:$AC$6,$AI$3:$AI$6)) -> 0 | M11: =IF(B11>Data!$D$8,0,M10) -> 0 | N11: =IF(B11>Data!$D$8,0,N10) -> 0 | O11: =IF(B11>Data!$D$8,0,O10) -> 0 | P11: =IF(B11>Data!$D$8,0,IF(Data!$D$11="CA",IF(ROUND('Bill Preparation'!F11*10%,0)<900,ROUND('Bill Preparation'!F11*10%,0),900),LOOKUP(Data!$B$4,'Bill Preparation'!$AD$9:$AD$11,'Bill Preparation'!$AG$9:$AG$11))) -> 0 | Q11: =IF(B11>Data!$D$8,0,IF(Data!$D$11="CA",IF(ROUND('Bill Preparation'!G11*10%,0)<900,ROUND('Bill Preparation'!G11*10%,0),900),LOOKUP(Data!$B$4,'Bill Preparation'!$AD$9:$AD$11,'Bill Preparation'!$AG$9:$AG$11))) -> 0 | R11: =IF(Data!$D$3="CPS",0,LOOKUP('Bill Preparation'!B11,'Bill Preparation'!$X$4:$X$22,'Bill Preparation'!$Y$4:$Y$22)) -> 0 | AD11: Teacher | AE11: 0.1 | AF11: 500 | AG11: =IF(Data!$D$11="CA",AE11,IF(Data!$D$11="RA",AF11,0)) -> 0 | AJ11: 1 | AK11: 3 | AL11: 2024 | AM11: 31 | AN11: 31 | AQ11: 36
A12: from | B12: 2024-04-01 | C12: to | D12: 2024-04-30 | E12: 30 | F12: =IF(B12>Data!$D$8,0,IF(B12>=Data!$H$19,Data!$I$19,IF(B12>=Data!$H$18,Data!$I$18,Data!$I$15))) -> 0 | G12: =IF(B12>Data!$D$8,0,IF(Data!$D$6="Yes",Data!$O$7,Data!$B$8)) -> 0 | H12: =IF(B12>Data!$D$8,0,LOOKUP(B12,$T$4:$T$16,$U$4:$U$16)) -> 0 | I12: =IF(B12>Data!$D$8,0,I11) -> 0 | J12: 0 | K12: =IF(B12>Data!$D$8,0,LOOKUP(F12,$AC$3:$AC$6,$AI$3:$AI$6)) -> 0 | L12: =IF(B12>Data!$D$8,0,LOOKUP(G12,$AC$3:$AC$6,$AI$3:$AI$6)) -> 0 | M12: =IF(B12>Data!$D$8,0,M11) -> 0 | N12: =IF(B12>Data!$D$8,0,N11) -> 0 | O12: =IF(B12>Data!$D$8,0,O11) -> 0 | P12: =IF(B12>Data!$D$8,0,IF(Data!$D$11="CA",IF(ROUND('Bill Preparation'!F12*10%,0)<900,ROUND('Bill Preparation'!F12*10%,0),900),LOOKUP(Data!$B$4,'Bill Preparation'!$AD$9:$AD$11,'Bill Preparation'!$AG$9:$AG$11))) -> 0 | Q12: =IF(B12>Data!$D$8,0,IF(Data!$D$11="CA",IF(ROUND('Bill Preparation'!G12*10%,0)<900,ROUND('Bill Preparation'!G12*10%,0),900),LOOKUP(Data!$B$4,'Bill Preparation'!$AD$9:$AD$11,'Bill Preparation'!$AG$9:$AG$11))) -> 0 | R12: =IF(Data!$D$3="CPS",0,LOOKUP('Bill Preparation'!B12,'Bill Preparation'!$X$4:$X$22,'Bill Preparation'!$Y$4:$Y$22)) -> 0 | AJ12: 1 | AK12: 4 | AL12: 2024 | AM12: 30 | AN12: 30
A13: from | B13: 2024-05-01 | C13: to | D13: 2024-05-31 | E13: 31 | F13: =IF(B13>Data!$D$8,0,IF(B13>=Data!$H$19,Data!$I$19,IF(B13>=Data!$H$18,Data!$I$18,Data!$I$15))) -> 0 | G13: =IF(B13>Data!$D$8,0,IF(Data!$D$6="Yes",Data!$O$7,Data!$B$8)) -> 0 | H13: =IF(B13>Data!$D$8,0,LOOKUP(B13,$T$4:$T$16,$U$4:$U$16)) -> 0 | I13: =IF(B13>Data!$D$8,0,I12) -> 0 | J13: 0 | K13: =IF(B13>Data!$D$8,0,LOOKUP(F13,$AC$3:$AC$6,$AI$3:$AI$6)) -> 0 | L13: =IF(B13>Data!$D$8,0,LOOKUP(G13,$AC$3:$AC$6,$AI$3:$AI$6)) -> 0 | M13: =IF(B13>Data!$D$8,0,M12) -> 0 | N13: =IF(B13>Data!$D$8,0,N12) -> 0 | O13: =IF(B13>Data!$D$8,0,O12) -> 0 | P13: =IF(B13>Data!$D$8,0,IF(Data!$D$11="CA",IF(ROUND('Bill Preparation'!F13*10%,0)<900,ROUND('Bill Preparation'!F13*10%,0),900),LOOKUP(Data!$B$4,'Bill Preparation'!$AD$9:$AD$11,'Bill Preparation'!$AG$9:$AG$11))) -> 0 | Q13: =IF(B13>Data!$D$8,0,IF(Data!$D$11="CA",IF(ROUND('Bill Preparation'!G13*10%,0)<900,ROUND('Bill Preparation'!G13*10%,0),900),LOOKUP(Data!$B$4,'Bill Preparation'!$AD$9:$AD$11,'Bill Preparation'!$AG$9:$AG$11))) -> 0 | R13: =IF(Data!$D$3="CPS",0,LOOKUP('Bill Preparation'!B13,'Bill Preparation'!$X$4:$X$22,'Bill Preparation'!$Y$4:$Y$22)) -> 0 | AJ13: 1 | AK13: 5 | AL13: 2024 | AM13: 31 | AN13: 31
A14: from | B14: 2024-06-01 | C14: to | D14: 2024-06-30 | E14: 30 | F14: =IF(B14>Data!$D$8,0,IF(B14>=Data!$H$19,Data!$I$19,IF(B14>=Data!$H$18,Data!$I$18,Data!$I$15))) -> 0 | G14: =IF(B14>Data!$D$8,0,IF(Data!$D$6="Yes",Data!$O$7,Data!$B$8)) -> 0 | H14: =IF(B14>Data!$D$8,0,LOOKUP(B14,$T$4:$T$16,$U$4:$U$16)) -> 0 | I14: =IF(B14>Data!$D$8,0,I13) -> 0 | J14: 0 | K14: =IF(B14>Data!$D$8,0,LOOKUP(F14,$AC$3:$AC$6,$AI$3:$AI$6)) -> 0 | L14: =IF(B14>Data!$D$8,0,LOOKUP(G14,$AC$3:$AC$6,$AI$3:$AI$6)) -> 0 | M14: =IF(B14>Data!$D$8,0,M13) -> 0 | N14: =IF(B14>Data!$D$8,0,N13) -> 0 | O14: =IF(B14>Data!$D$8,0,O13) -> 0 | P14: =IF(B14>Data!$D$8,0,IF(Data!$D$11="CA",IF(ROUND('Bill Preparation'!F14*10%,0)<900,ROUND('Bill Preparation'!F14*10%,0),900),LOOKUP(Data!$B$4,'Bill Preparation'!$AD$9:$AD$11,'Bill Preparation'!$AG$9:$AG$11))) -> 0 | Q14: =IF(B14>Data!$D$8,0,IF(Data!$D$11="CA",IF(ROUND('Bill Preparation'!G14*10%,0)<900,ROUND('Bill Preparation'!G14*10%,0),900),LOOKUP(Data!$B$4,'Bill Preparation'!$AD$9:$AD$11,'Bill Preparation'!$AG$9:$AG$11))) -> 0 | R14: =IF(Data!$D$3="CPS",0,LOOKUP('Bill Preparation'!B14,'Bill Preparation'!$X$4:$X$22,'Bill Preparation'!$Y$4:$Y$22)) -> 0 | AJ14: 1 | AK14: 6 | AL14: 2024 | AM14: 30 | AN14: 30
A15: from | B15: 2024-07-01 | C15: to | D15: 2024-07-31 | E15: 31 | F15: =IF(B15>Data!$D$8,0,IF(B15>=Data!$H$19,Data!$I$19,IF(B15>=Data!$H$18,Data!$I$18,Data!$I$15))) -> 0 | G15: =IF(B15>Data!$D$8,0,IF(Data!$D$6="Yes",Data!$O$7,Data!$B$8)) -> 0 | H15: =IF(B15>Data!$D$8,0,LOOKUP(B15,$T$4:$T$16,$U$4:$U$16)) -> 0 | I15: =IF(B15>Data!$D$8,0,I14) -> 0 | J15: 0 | K15: =IF(B15>Data!$D$8,0,LOOKUP(F15,$AC$3:$AC$6,$AI$3:$AI$6)) -> 0 | L15: =IF(B15>Data!$D$8,0,LOOKUP(G15,$AC$3:$AC$6,$AI$3:$AI$6)) -> 0 | M15: =IF(B15>Data!$D$8,0,M14) -> 0 | N15: =IF(B15>Data!$D$8,0,N14) -> 0 | O15: =IF(B15>Data!$D$8,0,O14) -> 0 | P15: =IF(B15>Data!$D$8,0,IF(Data!$D$11="CA",IF(ROUND('Bill Preparation'!F15*10%,0)<900,ROUND('Bill Preparation'!F15*10%,0),900),LOOKUP(Data!$B$4,'Bill Preparation'!$AD$9:$AD$11,'Bill Preparation'!$AG$9:$AG$11))) -> 0 | Q15: =IF(B15>Data!$D$8,0,IF(Data!$D$11="CA",IF(ROUND('Bill Preparation'!G15*10%,0)<900,ROUND('Bill Preparation'!G15*10%,0),900),LOOKUP(Data!$B$4,'Bill Preparation'!$AD$9:$AD$11,'Bill Preparation'!$AG$9:$AG$11))) -> 0 | R15: =IF(Data!$D$3="CPS",0,LOOKUP('Bill Preparation'!B15,'Bill Preparation'!$X$4:$X$22,'Bill Preparation'!$Y$4:$Y$22)) -> 0 | AJ15: 1 | AK15: 7 | AL15: 2024 | AM15: 31 | AN15: 31
A16: from | B16: 2024-08-01 | C16: to | D16: 2024-08-31 | E16: 31 | F16: =IF(B16>Data!$D$8,0,IF(B16>=Data!$H$19,Data!$I$19,IF(B16>=Data!$H$18,Data!$I$18,Data!$I$15))) -> 0 | G16: =IF(B16>Data!$D$8,0,IF(Data!$D$6="Yes",Data!$O$7,Data!$B$8)) -> 0 | H16: =IF(B16>Data!$D$8,0,LOOKUP(B16,$T$4:$T$16,$U$4:$U$16)) -> 0 | I16: =IF(B16>Data!$D$8,0,I15) -> 0 | J16: 0 | K16: =IF(B16>Data!$D$8,0,LOOKUP(F16,$AC$3:$AC$6,$AI$3:$AI$6)) -> 0 | L16: =IF(B16>Data!$D$8,0,LOOKUP(G16,$AC$3:$AC$6,$AI$3:$AI$6)) -> 0 | M16: =IF(B16>Data!$D$8,0,M15) -> 0 | N16: =IF(B16>Data!$D$8,0,N15) -> 0 | O16: =IF(B16>Data!$D$8,0,O15) -> 0 | P16: =IF(B16>Data!$D$8,0,IF(Data!$D$11="CA",IF(ROUND('Bill Preparation'!F16*10%,0)<900,ROUND('Bill Preparation'!F16*10%,0),900),LOOKUP(Data!$B$4,'Bill Preparation'!$AD$9:$AD$11,'Bill Preparation'!$AG$9:$AG$11))) -> 0 | Q16: =IF(B16>Data!$D$8,0,IF(Data!$D$11="CA",IF(ROUND('Bill Preparation'!G16*10%,0)<900,ROUND('Bill Preparation'!G16*10%,0),900),LOOKUP(Data!$B$4,'Bill Preparation'!$AD$9:$AD$11,'Bill Preparation'!$AG$9:$AG$11))) -> 0 | R16: =IF(Data!$D$3="CPS",0,LOOKUP('Bill Preparation'!B16,'Bill Preparation'!$X$4:$X$22,'Bill Preparation'!$Y$4:$Y$22)) -> 0 | AJ16: 1 | AK16: 8 | AL16: 2024 | AM16: 31 | AN16: 31
A17: from | B17: 2024-09-01 | C17: to | D17: 2024-09-30 | E17: 30 | F17: =IF(B17>Data!$D$8,0,IF(B17>=Data!$H$19,Data!$I$19,IF(B17>=Data!$H$18,Data!$I$18,Data!$I$15))) -> 0 | G17: =IF(B17>Data!$D$8,0,IF(Data!$D$6="Yes",Data!$O$7,Data!$B$8)) -> 0 | H17: =IF(B17>Data!$D$8,0,LOOKUP(B17,$T$4:$T$16,$U$4:$U$16)) -> 0 | I17: =IF(B17>Data!$D$8,0,I16) -> 0 | J17: 0 | K17: =IF(B17>Data!$D$8,0,LOOKUP(F17,$AC$3:$AC$6,$AI$3:$AI$6)) -> 0 | L17: =IF(B17>Data!$D$8,0,LOOKUP(G17,$AC$3:$AC$6,$AI$3:$AI$6)) -> 0 | M17: =IF(B17>Data!$D$8,0,M16) -> 0 | N17: =IF(B17>Data!$D$8,0,N16) -> 0 | O17: =IF(B17>Data!$D$8,0,O16) -> 0 | P17: =IF(B17>Data!$D$8,0,IF(Data!$D$11="CA",IF(ROUND('Bill Preparation'!F17*10%,0)<900,ROUND('Bill Preparation'!F17*10%,0),900),LOOKUP(Data!$B$4,'Bill Preparation'!$AD$9:$AD$11,'Bill Preparation'!$AG$9:$AG$11))) -> 0 | Q17: =IF(B17>Data!$D$8,0,IF(Data!$D$11="CA",IF(ROUND('Bill Preparation'!G17*10%,0)<900,ROUND('Bill Preparation'!G17*10%,0),900),LOOKUP(Data!$B$4,'Bill Preparation'!$AD$9:$AD$11,'Bill Preparation'!$AG$9:$AG$11))) -> 0 | R17: =IF(Data!$D$3="CPS",0,LOOKUP('Bill Preparation'!B17,'Bill Preparation'!$X$4:$X$22,'Bill Preparation'!$Y$4:$Y$22)) -> 0 | AJ17: 1 | AK17: 9 | AL17: 2024 | AM17: 30 | AN17: 30
A18: from | B18: 2024-10-01 | C18: to | D18: 2024-10-31 | E18: 31 | F18: =IF(B18>Data!$D$8,0,IF(B18>=Data!$H$19,Data!$I$19,IF(B18>=Data!$H$18,Data!$I$18,Data!$I$15))) -> 0 | G18: =IF(B18>Data!$D$8,0,IF(Data!$D$6="Yes",Data!$O$7,Data!$B$8)) -> 0 | H18: =IF(B18>Data!$D$8,0,LOOKUP(B18,$T$4:$T$16,$U$4:$U$16)) -> 0 | I18: =IF(B18>Data!$D$8,0,I17) -> 0 | J18: 0 | K18: =IF(B18>Data!$D$8,0,LOOKUP(F18,$AC$3:$AC$6,$AI$3:$AI$6)) -> 0 | L18: =IF(B18>Data!$D$8,0,LOOKUP(G18,$AC$3:$AC$6,$AI$3:$AI$6)) -> 0 | M18: =IF(B18>Data!$D$8,0,M17) -> 0 | N18: =IF(B18>Data!$D$8,0,N17) -> 0 | O18: =IF(B18>Data!$D$8,0,O17) -> 0 | P18: =IF(B18>Data!$D$8,0,IF(Data!$D$11="CA",IF(ROUND('Bill Preparation'!F18*10%,0)<900,ROUND('Bill Preparation'!F18*10%,0),900),LOOKUP(Data!$B$4,'Bill Preparation'!$AD$9:$AD$11,'Bill Preparation'!$AG$9:$AG$11))) -> 0 | Q18: =IF(B18>Data!$D$8,0,IF(Data!$D$11="CA",IF(ROUND('Bill Preparation'!G18*10%,0)<900,ROUND('Bill Preparation'!G18*10%,0),900),LOOKUP(Data!$B$4,'Bill Preparation'!$AD$9:$AD$11,'Bill Preparation'!$AG$9:$AG$11))) -> 0 | R18: =IF(Data!$D$3="CPS",0,LOOKUP('Bill Preparation'!B18,'Bill Preparation'!$X$4:$X$22,'Bill Preparation'!$Y$4:$Y$22)) -> 0 | AJ18: 1 | AK18: 10 | AL18: 2024 | AM18: 31 | AN18: 31
A19: from | B19: 2024-11-01 | C19: to | D19: 2024-11-30 | E19: 30 | F19: =IF(B19>Data!$D$8,0,IF(B19>=Data!$H$19,Data!$I$19,IF(B19>=Data!$H$18,Data!$I$18,Data!$I$15))) -> 0 | G19: =IF(B19>Data!$D$8,0,IF(Data!$D$6="Yes",Data!$O$7,Data!$B$8)) -> 0 | H19: =IF(B19>Data!$D$8,0,LOOKUP(B19,$T$4:$T$16,$U$4:$U$16)) -> 0 | I19: =IF(B19>Data!$D$8,0,I18) -> 0 | J19: 0 | K19: =IF(B19>Data!$D$8,0,LOOKUP(F19,$AC$3:$AC$6,$AI$3:$AI$6)) -> 0 | L19: =IF(B19>Data!$D$8,0,LOOKUP(G19,$AC$3:$AC$6,$AI$3:$AI$6)) -> 0 | M19: =IF(B19>Data!$D$8,0,M18) -> 0 | N19: =IF(B19>Data!$D$8,0,N18) -> 0 | O19: =IF(B19>Data!$D$8,0,O18) -> 0 | P19: =IF(B19>Data!$D$8,0,IF(Data!$D$11="CA",IF(ROUND('Bill Preparation'!F19*10%,0)<900,ROUND('Bill Preparation'!F19*10%,0),900),LOOKUP(Data!$B$4,'Bill Preparation'!$AD$9:$AD$11,'Bill Preparation'!$AG$9:$AG$11))) -> 0 | Q19: =IF(B19>Data!$D$8,0,IF(Data!$D$11="CA",IF(ROUND('Bill Preparation'!G19*10%,0)<900,ROUND('Bill Preparation'!G19*10%,0),900),LOOKUP(Data!$B$4,'Bill Preparation'!$AD$9:$AD$11,'Bill Preparation'!$AG$9:$AG$11))) -> 0 | R19: =IF(Data!$D$3="CPS",0,LOOKUP('Bill Preparation'!B19,'Bill Preparation'!$X$4:$X$22,'Bill Preparation'!$Y$4:$Y$22)) -> 0 | AJ19: 1 | AK19: 11 | AL19: 2024 | AM19: 30 | AN19: 30
A20: from | B20: 2024-12-01 | C20: to | D20: 2024-12-31 | E20: 31 | F20: =IF(B20>Data!$D$8,0,IF(B20>=Data!$H$19,Data!$I$19,IF(B20>=Data!$H$18,Data!$I$18,Data!$I$15))) -> 0 | G20: =IF(B20>Data!$D$8,0,IF(Data!$D$6="Yes",Data!$O$7,Data!$B$8)) -> 0 | H20: =IF(B20>Data!$D$8,0,LOOKUP(B20,$T$4:$T$16,$U$4:$U$16)) -> 0 | I20: =IF(B20>Data!$D$8,0,I19) -> 0 | J20: 0 | K20: =IF(B20>Data!$D$8,0,LOOKUP(F20,$AC$3:$AC$6,$AI$3:$AI$6)) -> 0 | L20: =IF(B20>Data!$D$8,0,LOOKUP(G20,$AC$3:$AC$6,$AI$3:$AI$6)) -> 0 | M20: =IF(B20>Data!$D$8,0,M19) -> 0 | N20: =IF(B20>Data!$D$8,0,N19) -> 0 | O20: =IF(B20>Data!$D$8,0,O19) -> 0 | P20: =IF(B20>Data!$D$8,0,IF(Data!$D$11="CA",IF(ROUND('Bill Preparation'!F20*10%,0)<900,ROUND('Bill Preparation'!F20*10%,0),900),LOOKUP(Data!$B$4,'Bill Preparation'!$AD$9:$AD$11,'Bill Preparation'!$AG$9:$AG$11))) -> 0 | Q20: =IF(B20>Data!$D$8,0,IF(Data!$D$11="CA",IF(ROUND('Bill Preparation'!G20*10%,0)<900,ROUND('Bill Preparation'!G20*10%,0),900),LOOKUP(Data!$B$4,'Bill Preparation'!$AD$9:$AD$11,'Bill Preparation'!$AG$9:$AG$11))) -> 0 | R20: =IF(Data!$D$3="CPS",0,LOOKUP('Bill Preparation'!B20,'Bill Preparation'!$X$4:$X$22,'Bill Preparation'!$Y$4:$Y$22)) -> 0 | AJ20: 1 | AK20: 12 | AL20: 2024 | AM20: 31 | AN20: 31
A21: from | B21: 2025-01-01 | C21: to | D21: 2025-01-31 | E21: 31 | F21: =IF(B21>Data!$D$8,0,IF(B21>=Data!$H$19,Data!$I$19,IF(B21>=Data!$H$18,Data!$I$18,Data!$I$15))) -> 0 | G21: =IF(B21>Data!$D$8,0,IF(Data!$D$6="Yes",Data!$O$7,Data!$B$8)) -> 0 | H21: =IF(B21>Data!$D$8,0,LOOKUP(B21,$T$4:$T$16,$U$4:$U$16)) -> 0 | I21: =IF(B21>Data!$D$8,0,I20) -> 0 | J21: 0 | K21: =IF(B21>Data!$D$8,0,LOOKUP(F21,$AC$3:$AC$6,$AI$3:$AI$6)) -> 0 | L21: =IF(B21>Data!$D$8,0,LOOKUP(G21,$AC$3:$AC$6,$AI$3:$AI$6)) -> 0 | M21: =IF(B21>Data!$D$8,0,M20) -> 0 | N21: =IF(B21>Data!$D$8,0,N20) -> 0 | O21: =IF(B21>Data!$D$8,0,O20) -> 0 | P21: =IF(B21>Data!$D$8,0,IF(Data!$D$11="CA",IF(ROUND('Bill Preparation'!F21*10%,0)<900,ROUND('Bill Preparation'!F21*10%,0),900),LOOKUP(Data!$B$4,'Bill Preparation'!$AD$9:$AD$11,'Bill Preparation'!$AG$9:$AG$11))) -> 0 | Q21: =IF(B21>Data!$D$8,0,IF(Data!$D$11="CA",IF(ROUND('Bill Preparation'!G21*10%,0)<900,ROUND('Bill Preparation'!G21*10%,0),900),LOOKUP(Data!$B$4,'Bill Preparation'!$AD$9:$AD$11,'Bill Preparation'!$AG$9:$AG$11))) -> 0 | R21: =IF(Data!$D$3="CPS",0,LOOKUP('Bill Preparation'!B21,'Bill Preparation'!$X$4:$X$22,'Bill Preparation'!$Y$4:$Y$22)) -> 0 | AJ21: 1 | AK21: 1 | AL21: 2025 | AM21: 31 | AN21: 31
A22: from | B22: 2025-02-01 | C22: to | D22: 2025-02-28 | E22: 28 | F22: =IF(B22>Data!$D$8,0,IF(B22>=Data!$H$19,Data!$I$19,IF(B22>=Data!$H$18,Data!$I$18,Data!$I$15))) -> 0 | G22: =IF(B22>Data!$D$8,0,IF(Data!$D$6="Yes",Data!$O$7,Data!$B$8)) -> 0 | H22: =IF(B22>Data!$D$8,0,LOOKUP(B22,$T$4:$T$16,$U$4:$U$16)) -> 0 | I22: =IF(B22>Data!$D$8,0,I21) -> 0 | J22: 0 | K22: =IF(B22>Data!$D$8,0,LOOKUP(F22,$AC$3:$AC$6,$AI$3:$AI$6)) -> 0 | L22: =IF(B22>Data!$D$8,0,LOOKUP(G22,$AC$3:$AC$6,$AI$3:$AI$6)) -> 0 | M22: =IF(B22>Data!$D$8,0,M21) -> 0 | N22: =IF(B22>Data!$D$8,0,N21) -> 0 | O22: =IF(B22>Data!$D$8,0,O21) -> 0 | P22: =IF(B22>Data!$D$8,0,IF(Data!$D$11="CA",IF(ROUND('Bill Preparation'!F22*10%,0)<900,ROUND('Bill Preparation'!F22*10%,0),900),LOOKUP(Data!$B$4,'Bill Preparation'!$AD$9:$AD$11,'Bill Preparation'!$AG$9:$AG$11))) -> 0 | Q22: =IF(B22>Data!$D$8,0,IF(Data!$D$11="CA",IF(ROUND('Bill Preparation'!G22*10%,0)<900,ROUND('Bill Preparation'!G22*10%,0),900),LOOKUP(Data!$B$4,'Bill Preparation'!$AD$9:$AD$11,'Bill Preparation'!$AG$9:$AG$11))) -> 0 | R22: =IF(Data!$D$3="CPS",0,LOOKUP('Bill Preparation'!B22,'Bill Preparation'!$X$4:$X$22,'Bill Preparation'!$Y$4:$Y$22)) -> 0 | AJ22: 1 | AK22: 2 | AL22: 2025 | AM22: 28 | AN22: 28
A23: from | B23: 2025-03-01 | C23: to | D23: 2025-03-31 | E23: 31 | F23: =IF(B23>Data!$D$8,0,IF(B23>=Data!$H$19,Data!$I$19,IF(B23>=Data!$H$18,Data!$I$18,Data!$I$15))) -> 0 | G23: =IF(B23>Data!$D$8,0,IF(Data!$D$6="Yes",Data!$O$7,Data!$B$8)) -> 0 | H23: =IF(B23>Data!$D$8,0,LOOKUP(B23,$T$4:$T$16,$U$4:$U$16)) -> 0 | I23: =IF(B23>Data!$D$8,0,I22) -> 0 | J23: 0 | K23: =IF(B23>Data!$D$8,0,LOOKUP(F23,$AC$3:$AC$6,$AI$3:$AI$6)) -> 0 | L23: =IF(B23>Data!$D$8,0,LOOKUP(G23,$AC$3:$AC$6,$AI$3:$AI$6)) -> 0 | M23: =IF(B23>Data!$D$8,0,M22) -> 0 | N23: =IF(B23>Data!$D$8,0,N22) -> 0 | O23: =IF(B23>Data!$D$8,0,O22) -> 0 | P23: =IF(B23>Data!$D$8,0,IF(Data!$D$11="CA",IF(ROUND('Bill Preparation'!F23*10%,0)<900,ROUND('Bill Preparation'!F23*10%,0),900),LOOKUP(Data!$B$4,'Bill Preparation'!$AD$9:$AD$11,'Bill Preparation'!$AG$9:$AG$11))) -> 0 | Q23: =IF(B23>Data!$D$8,0,IF(Data!$D$11="CA",IF(ROUND('Bill Preparation'!G23*10%,0)<900,ROUND('Bill Preparation'!G23*10%,0),900),LOOKUP(Data!$B$4,'Bill Preparation'!$AD$9:$AD$11,'Bill Preparation'!$AG$9:$AG$11))) -> 0 | R23: =IF(Data!$D$3="CPS",0,LOOKUP('Bill Preparation'!B23,'Bill Preparation'!$X$4:$X$22,'Bill Preparation'!$Y$4:$Y$22)) -> 0 | AJ23: 1 | AK23: 3 | AL23: 2025 | AM23: 31 | AN23: 31
A24: from | B24: 2025-04-01 | C24: to | D24: 2025-04-30 | E24: 30 | F24: =IF(B24>Data!$D$8,0,IF(B24>=Data!$H$19,Data!$I$19,IF(B24>=Data!$H$18,Data!$I$18,Data!$I$15))) -> 0 | G24: =IF(B24>Data!$D$8,0,IF(Data!$D$6="Yes",Data!$O$7,Data!$B$8)) -> 0 | H24: =IF(B24>Data!$D$8,0,LOOKUP(B24,$T$4:$T$16,$U$4:$U$16)) -> 0 | I24: =IF(B24>Data!$D$8,0,I23) -> 0 | J24: 0 | K24: =IF(B24>Data!$D$8,0,LOOKUP(F24,$AC$3:$AC$6,$AI$3:$AI$6)) -> 0 | L24: =IF(B24>Data!$D$8,0,LOOKUP(G24,$AC$3:$AC$6,$AI$3:$AI$6)) -> 0 | M24: =IF(B24>Data!$D$8,0,M23) -> 0 | N24: =IF(B24>Data!$D$8,0,N23) -> 0 | O24: =IF(B24>Data!$D$8,0,O23) -> 0 | P24: =IF(B24>Data!$D$8,0,IF(Data!$D$11="CA",IF(ROUND('Bill Preparation'!F24*10%,0)<900,ROUND('Bill Preparation'!F24*10%,0),900),LOOKUP(Data!$B$4,'Bill Preparation'!$AD$9:$AD$11,'Bill Preparation'!$AG$9:$AG$11))) -> 0 | Q24: =IF(B24>Data!$D$8,0,IF(Data!$D$11="CA",IF(ROUND('Bill Preparation'!G24*10%,0)<900,ROUND('Bill Preparation'!G24*10%,0),900),LOOKUP(Data!$B$4,'Bill Preparation'!$AD$9:$AD$11,'Bill Preparation'!$AG$9:$AG$11))) -> 0 | R24: =IF(Data!$D$3="CPS",0,LOOKUP('Bill Preparation'!B24,'Bill Preparation'!$X$4:$X$22,'Bill Preparation'!$Y$4:$Y$22)) -> 0 | AJ24: 1 | AK24: 4 | AL24: 2025 | AM24: 30 | AN24: 30
A25: from | B25: 2025-05-01 | C25: to | D25: 2025-05-31 | E25: 31 | F25: =IF(B25>Data!$D$8,0,IF(B25>=Data!$H$19,Data!$I$19,IF(B25>=Data!$H$18,Data!$I$18,Data!$I$15))) -> 0 | G25: =IF(B25>Data!$D$8,0,IF(Data!$D$6="Yes",Data!$O$7,Data!$B$8)) -> 0 | H25: =IF(B25>Data!$D$8,0,LOOKUP(B25,$T$4:$T$16,$U$4:$U$16)) -> 0 | I25: =IF(B25>Data!$D$8,0,I24) -> 0 | J25: 0 | K25: =IF(B25>Data!$D$8,0,LOOKUP(F25,$AC$3:$AC$6,$AI$3:$AI$6)) -> 0 | L25: =IF(B25>Data!$D$8,0,LOOKUP(G25,$AC$3:$AC$6,$AI$3:$AI$6)) -> 0 | M25: =IF(B25>Data!$D$8,0,M24) -> 0 | N25: =IF(B25>Data!$D$8,0,N24) -> 0 | O25: =IF(B25>Data!$D$8,0,O24) -> 0 | P25: =IF(B25>Data!$D$8,0,IF(Data!$D$11="CA",IF(ROUND('Bill Preparation'!F25*10%,0)<900,ROUND('Bill Preparation'!F25*10%,0),900),LOOKUP(Data!$B$4,'Bill Preparation'!$AD$9:$AD$11,'Bill Preparation'!$AG$9:$AG$11))) -> 0 | Q25: =IF(B25>Data!$D$8,0,IF(Data!$D$11="CA",IF(ROUND('Bill Preparation'!G25*10%,0)<900,ROUND('Bill Preparation'!G25*10%,0),900),LOOKUP(Data!$B$4,'Bill Preparation'!$AD$9:$AD$11,'Bill Preparation'!$AG$9:$AG$11))) -> 0 | R25: =IF(Data!$D$3="CPS",0,LOOKUP('Bill Preparation'!B25,'Bill Preparation'!$X$4:$X$22,'Bill Preparation'!$Y$4:$Y$22)) -> 0 | AJ25: 1 | AK25: 5 | AL25: 2025 | AM25: 31 | AN25: =IF(AM25=28,IF(AL25=2016,29,28),AM25) -> 31
A26: from | B26: 2025-06-01 | C26: to | D26: 2025-06-30 | E26: 30 | F26: =IF(B26>Data!$D$8,0,IF(B26>=Data!$H$19,Data!$I$19,IF(B26>=Data!$H$18,Data!$I$18,Data!$I$15))) -> 0 | G26: =IF(B26>Data!$D$8,0,IF(Data!$D$6="Yes",Data!$O$7,Data!$B$8)) -> 0 | H26: =IF(B26>Data!$D$8,0,LOOKUP(B26,$T$4:$T$16,$U$4:$U$16)) -> 0 | I26: =IF(B26>Data!$D$8,0,I25) -> 0 | J26: 0 | K26: =IF(B26>Data!$D$8,0,LOOKUP(F26,$AC$3:$AC$6,$AI$3:$AI$6)) -> 0 | L26: =IF(B26>Data!$D$8,0,LOOKUP(G26,$AC$3:$AC$6,$AI$3:$AI$6)) -> 0 | M26: =IF(B26>Data!$D$8,0,M25) -> 0 | N26: =IF(B26>Data!$D$8,0,N25) -> 0 | O26: =IF(B26>Data!$D$8,0,O25) -> 0 | P26: =IF(B26>Data!$D$8,0,IF(Data!$D$11="CA",IF(ROUND('Bill Preparation'!F26*10%,0)<900,ROUND('Bill Preparation'!F26*10%,0),900),LOOKUP(Data!$B$4,'Bill Preparation'!$AD$9:$AD$11,'Bill Preparation'!$AG$9:$AG$11))) -> 0 | Q26: =IF(B26>Data!$D$8,0,IF(Data!$D$11="CA",IF(ROUND('Bill Preparation'!G26*10%,0)<900,ROUND('Bill Preparation'!G26*10%,0),900),LOOKUP(Data!$B$4,'Bill Preparation'!$AD$9:$AD$11,'Bill Preparation'!$AG$9:$AG$11))) -> 0 | R26: =IF(Data!$D$3="CPS",0,LOOKUP('Bill Preparation'!B26,'Bill Preparation'!$X$4:$X$22,'Bill Preparation'!$Y$4:$Y$22)) -> 0 | AJ26: 1 | AK26: 6 | AL26: 2025 | AM26: 30 | AN26: =IF(AM26=28,IF(AL26=2016,29,28),AM26) -> 30
A27: from | B27: 2025-07-01 | C27: to | D27: 2025-07-31 | E27: 31 | F27: =IF(B27>Data!$D$8,0,IF(B27>=Data!$H$19,Data!$I$19,IF(B27>=Data!$H$18,Data!$I$18,Data!$I$15))) -> 0 | G27: =IF(B27>Data!$D$8,0,IF(Data!$D$6="Yes",Data!$O$7,Data!$B$8)) -> 0 | H27: =IF(B27>Data!$D$8,0,LOOKUP(B27,$T$4:$T$16,$U$4:$U$16)) -> 0 | I27: =IF(B27>Data!$D$8,0,I26) -> 0 | J27: 0 | K27: =IF(B27>Data!$D$8,0,LOOKUP(F27,$AC$3:$AC$6,$AI$3:$AI$6)) -> 0 | L27: =IF(B27>Data!$D$8,0,LOOKUP(G27,$AC$3:$AC$6,$AI$3:$AI$6)) -> 0 | M27: =IF(B27>Data!$D$8,0,M26) -> 0 | N27: =IF(B27>Data!$D$8,0,N26) -> 0 | O27: =IF(B27>Data!$D$8,0,O26) -> 0 | P27: =IF(B27>Data!$D$8,0,IF(Data!$D$11="CA",IF(ROUND('Bill Preparation'!F27*10%,0)<900,ROUND('Bill Preparation'!F27*10%,0),900),LOOKUP(Data!$B$4,'Bill Preparation'!$AD$9:$AD$11,'Bill Preparation'!$AG$9:$AG$11))) -> 0 | Q27: =IF(B27>Data!$D$8,0,IF(Data!$D$11="CA",IF(ROUND('Bill Preparation'!G27*10%,0)<900,ROUND('Bill Preparation'!G27*10%,0),900),LOOKUP(Data!$B$4,'Bill Preparation'!$AD$9:$AD$11,'Bill Preparation'!$AG$9:$AG$11))) -> 0 | R27: =IF(Data!$D$3="CPS",0,LOOKUP('Bill Preparation'!B27,'Bill Preparation'!$X$4:$X$22,'Bill Preparation'!$Y$4:$Y$22)) -> 0 | AJ27: 1 | AK27: 7 | AL27: 2025 | AM27: 31 | AN27: 31
A28: from | B28: 2025-08-01 | C28: to | D28: 2025-08-31 | E28: 31 | F28: =IF(B28>Data!$D$8,0,IF(B28>=Data!$H$19,Data!$I$19,IF(B28>=Data!$H$18,Data!$I$18,Data!$I$15))) -> 0 | G28: =IF(B28>Data!$D$8,0,IF(Data!$D$6="Yes",Data!$O$7,Data!$B$8)) -> 0 | H28: =IF(B28>Data!$D$8,0,LOOKUP(B28,$T$4:$T$16,$U$4:$U$16)) -> 0 | I28: =IF(B28>Data!$D$8,0,I27) -> 0 | J28: 0 | K28: =IF(B28>Data!$D$8,0,LOOKUP(F28,$AC$3:$AC$6,$AI$3:$AI$6)) -> 0 | L28: =IF(B28>Data!$D$8,0,LOOKUP(G28,$AC$3:$AC$6,$AI$3:$AI$6)) -> 0 | M28: =IF(B28>Data!$D$8,0,M27) -> 0 | N28: =IF(B28>Data!$D$8,0,N27) -> 0 | O28: =IF(B28>Data!$D$8,0,O27) -> 0 | P28: =IF(B28>Data!$D$8,0,IF(Data!$D$11="CA",IF(ROUND('Bill Preparation'!F28*10%,0)<900,ROUND('Bill Preparation'!F28*10%,0),900),LOOKUP(Data!$B$4,'Bill Preparation'!$AD$9:$AD$11,'Bill Preparation'!$AG$9:$AG$11))) -> 0 | Q28: =IF(B28>Data!$D$8,0,IF(Data!$D$11="CA",IF(ROUND('Bill Preparation'!G28*10%,0)<900,ROUND('Bill Preparation'!G28*10%,0),900),LOOKUP(Data!$B$4,'Bill Preparation'!$AD$9:$AD$11,'Bill Preparation'!$AG$9:$AG$11))) -> 0 | R28: =IF(Data!$D$3="CPS",0,LOOKUP('Bill Preparation'!B28,'Bill Preparation'!$X$4:$X$22,'Bill Preparation'!$Y$4:$Y$22)) -> 0 | AJ28: 1 | AK28: 8 | AL28: 2025 | AM28: 31 | AN28: 31
A29: from | B29: 2025-09-01 | C29: to | D29: 2025-09-30 | E29: 30 | F29: =IF(B29>Data!$D$8,0,IF(B29>=Data!$H$19,Data!$I$19,IF(B29>=Data!$H$18,Data!$I$18,Data!$I$15))) -> 0 | G29: =IF(B29>Data!$D$8,0,IF(Data!$D$6="Yes",Data!$O$7,Data!$B$8)) -> 0 | H29: =IF(B29>Data!$D$8,0,LOOKUP(B29,$T$4:$T$16,$U$4:$U$16)) -> 0 | I29: =IF(B29>Data!$D$8,0,I28) -> 0 | J29: 0 | K29: =IF(B29>Data!$D$8,0,LOOKUP(F29,$AC$3:$AC$6,$AI$3:$AI$6)) -> 0 | L29: =IF(B29>Data!$D$8,0,LOOKUP(G29,$AC$3:$AC$6,$AI$3:$AI$6)) -> 0 | M29: =IF(B29>Data!$D$8,0,M28) -> 0 | N29: =IF(B29>Data!$D$8,0,N28) -> 0 | O29: =IF(B29>Data!$D$8,0,O28) -> 0 | P29: =IF(B29>Data!$D$8,0,IF(Data!$D$11="CA",IF(ROUND('Bill Preparation'!F29*10%,0)<900,ROUND('Bill Preparation'!F29*10%,0),900),LOOKUP(Data!$B$4,'Bill Preparation'!$AD$9:$AD$11,'Bill Preparation'!$AG$9:$AG$11))) -> 0 | Q29: =IF(B29>Data!$D$8,0,IF(Data!$D$11="CA",IF(ROUND('Bill Preparation'!G29*10%,0)<900,ROUND('Bill Preparation'!G29*10%,0),900),LOOKUP(Data!$B$4,'Bill Preparation'!$AD$9:$AD$11,'Bill Preparation'!$AG$9:$AG$11))) -> 0 | R29: =IF(Data!$D$3="CPS",0,LOOKUP('Bill Preparation'!B29,'Bill Preparation'!$X$4:$X$22,'Bill Preparation'!$Y$4:$Y$22)) -> 0 | AJ29: 1 | AK29: 9 | AL29: 2025 | AM29: 30 | AN29: 30
A30: from | B30: 2025-10-01 | C30: to | D30: 2025-10-31 | E30: 31 | F30: =IF(B30>Data!$D$8,0,IF(B30>=Data!$H$19,Data!$I$19,IF(B30>=Data!$H$18,Data!$I$18,Data!$I$15))) -> 0 | G30: =IF(B30>Data!$D$8,0,IF(Data!$D$6="Yes",Data!$O$7,Data!$B$8)) -> 0 | H30: =IF(B30>Data!$D$8,0,LOOKUP(B30,$T$4:$T$16,$U$4:$U$16)) -> 0 | I30: =IF(B30>Data!$D$8,0,I29) -> 0 | J30: 0 | K30: =IF(B30>Data!$D$8,0,LOOKUP(F30,$AC$3:$AC$6,$AI$3:$AI$6)) -> 0 | L30: =IF(B30>Data!$D$8,0,LOOKUP(G30,$AC$3:$AC$6,$AI$3:$AI$6)) -> 0 | M30: =IF(B30>Data!$D$8,0,M29) -> 0 | N30: =IF(B30>Data!$D$8,0,N29) -> 0 | O30: =IF(B30>Data!$D$8,0,O29) -> 0 | P30: =IF(B30>Data!$D$8,0,IF(Data!$D$11="CA",IF(ROUND('Bill Preparation'!F30*10%,0)<900,ROUND('Bill Preparation'!F30*10%,0),900),LOOKUP(Data!$B$4,'Bill Preparation'!$AD$9:$AD$11,'Bill Preparation'!$AG$9:$AG$11))) -> 0 | Q30: =IF(B30>Data!$D$8,0,IF(Data!$D$11="CA",IF(ROUND('Bill Preparation'!G30*10%,0)<900,ROUND('Bill Preparation'!G30*10%,0),900),LOOKUP(Data!$B$4,'Bill Preparation'!$AD$9:$AD$11,'Bill Preparation'!$AG$9:$AG$11))) -> 0 | R30: =IF(Data!$D$3="CPS",0,LOOKUP('Bill Preparation'!B30,'Bill Preparation'!$X$4:$X$22,'Bill Preparation'!$Y$4:$Y$22)) -> 0 | T30: Dates | AJ30: 1 | AK30: 10 | AL30: 2025 | AM30: 31 | AN30: 31
A31: from | B31: 2025-11-01 | C31: to | D31: 2025-11-30 | E31: 30 | F31: =IF(B31>Data!$D$8,0,IF(B31>=Data!$H$19,Data!$I$19,IF(B31>=Data!$H$18,Data!$I$18,Data!$I$15))) -> 0 | G31: =IF(B31>Data!$D$8,0,IF(Data!$D$6="Yes",Data!$O$7,Data!$B$8)) -> 0 | H31: =IF(B31>Data!$D$8,0,LOOKUP(B31,$T$4:$T$16,$U$4:$U$16)) -> 0 | I31: =IF(B31>Data!$D$8,0,I30) -> 0 | J31: 0 | K31: =IF(B31>Data!$D$8,0,LOOKUP(F31,$AC$3:$AC$6,$AI$3:$AI$6)) -> 0 | L31: =IF(B31>Data!$D$8,0,LOOKUP(G31,$AC$3:$AC$6,$AI$3:$AI$6)) -> 0 | M31: =IF(B31>Data!$D$8,0,M30) -> 0 | N31: =IF(B31>Data!$D$8,0,N30) -> 0 | O31: =IF(B31>Data!$D$8,0,O30) -> 0 | P31: =IF(B31>Data!$D$8,0,IF(Data!$D$11="CA",IF(ROUND('Bill Preparation'!F31*10%,0)<900,ROUND('Bill Preparation'!F31*10%,0),900),LOOKUP(Data!$B$4,'Bill Preparation'!$AD$9:$AD$11,'Bill Preparation'!$AG$9:$AG$11))) -> 0 | Q31: =IF(B31>Data!$D$8,0,IF(Data!$D$11="CA",IF(ROUND('Bill Preparation'!G31*10%,0)<900,ROUND('Bill Preparation'!G31*10%,0),900),LOOKUP(Data!$B$4,'Bill Preparation'!$AD$9:$AD$11,'Bill Preparation'!$AG$9:$AG$11))) -> 0 | R31: =IF(Data!$D$3="CPS",0,LOOKUP('Bill Preparation'!B31,'Bill Preparation'!$X$4:$X$22,'Bill Preparation'!$Y$4:$Y$22)) -> 0 | U31: Original | V31: Text | AJ31: 1 | AK31: 11 | AL31: 2025 | AM31: 30 | AN31: 30
A32: from | B32: 2025-12-01 | C32: to | D32: 2025-12-31 | E32: 31 | F32: =IF(B32>Data!$D$8,0,IF(B32>=Data!$H$19,Data!$I$19,IF(B32>=Data!$H$18,Data!$I$18,Data!$I$15))) -> 0 | G32: =IF(B32>Data!$D$8,0,IF(Data!$D$6="Yes",Data!$O$7,Data!$B$8)) -> 0 | H32: =IF(B32>Data!$D$8,0,LOOKUP(B32,$T$4:$T$16,$U$4:$U$16)) -> 0 | I32: =IF(B32>Data!$D$8,0,I31) -> 0 | J32: 0 | K32: =IF(B32>Data!$D$8,0,LOOKUP(F32,$AC$3:$AC$6,$AI$3:$AI$6)) -> 0 | L32: =IF(B32>Data!$D$8,0,LOOKUP(G32,$AC$3:$AC$6,$AI$3:$AI$6)) -> 0 | M32: =IF(B32>Data!$D$8,0,M31) -> 0 | N32: =IF(B32>Data!$D$8,0,N31) -> 0 | O32: =IF(B32>Data!$D$8,0,O31) -> 0 | P32: =IF(B32>Data!$D$8,0,IF(Data!$D$11="CA",IF(ROUND('Bill Preparation'!F32*10%,0)<900,ROUND('Bill Preparation'!F32*10%,0),900),LOOKUP(Data!$B$4,'Bill Preparation'!$AD$9:$AD$11,'Bill Preparation'!$AG$9:$AG$11))) -> 0 | Q32: =IF(B32>Data!$D$8,0,IF(Data!$D$11="CA",IF(ROUND('Bill Preparation'!G32*10%,0)<900,ROUND('Bill Preparation'!G32*10%,0),900),LOOKUP(Data!$B$4,'Bill Preparation'!$AD$9:$AD$11,'Bill Preparation'!$AG$9:$AG$11))) -> 0 | R32: =IF(Data!$D$3="CPS",0,LOOKUP('Bill Preparation'!B32,'Bill Preparation'!$X$4:$X$22,'Bill Preparation'!$Y$4:$Y$22)) -> 0 | X32: Pay | Y32: HRA | Z32: HMA | AA32: CA/RA | AJ32: =DAY(B32) -> 1 | AK32: =MONTH(B32) -> 12 | AL32: =YEAR(B32) -> 2025 | AM32: =IF(AK32=2, 28,IF(AK32=4, 30,IF(AK32=6, 30,IF(AK32=9, 30,IF(AK32=11, 30, 31 ))))) -> 31 | AN32: 31 | AO32: =IF(AM32=28,IF(AL32=2012,29,28),AM32) -> 31
A33: from | B33: 2026-01-01 | C33: to | D33: 2026-01-31 | E33: 31 | F33: =IF(B33>Data!$D$8,0,IF(B33>=Data!$H$19,Data!$I$19,IF(B33>=Data!$H$18,Data!$I$18,Data!$I$15))) -> 0 | G33: =IF(B33>Data!$D$8,0,IF(Data!$D$6="Yes",Data!$O$7,Data!$B$8)) -> 0 | H33: =IF(B33>Data!$D$8,0,LOOKUP(B33,$T$4:$T$16,$U$4:$U$16)) -> 0 | I33: =IF(B33>Data!$D$8,0,I32) -> 0 | J33: 0 | K33: =IF(B33>Data!$D$8,0,LOOKUP(F33,$AC$3:$AC$6,$AI$3:$AI$6)) -> 0 | L33: =IF(B33>Data!$D$8,0,LOOKUP(G33,$AC$3:$AC$6,$AI$3:$AI$6)) -> 0 | M33: =IF(B33>Data!$D$8,0,M32) -> 0 | N33: =IF(B33>Data!$D$8,0,N32) -> 0 | O33: =IF(B33>Data!$D$8,0,O32) -> 0 | P33: =IF(B33>Data!$D$8,0,IF(Data!$D$11="CA",IF(ROUND('Bill Preparation'!F33*10%,0)<900,ROUND('Bill Preparation'!F33*10%,0),900),LOOKUP(Data!$B$4,'Bill Preparation'!$AD$9:$AD$11,'Bill Preparation'!$AG$9:$AG$11))) -> 0 | Q33: =IF(B33>Data!$D$8,0,IF(Data!$D$11="CA",IF(ROUND('Bill Preparation'!G33*10%,0)<900,ROUND('Bill Preparation'!G33*10%,0),900),LOOKUP(Data!$B$4,'Bill Preparation'!$AD$9:$AD$11,'Bill Preparation'!$AG$9:$AG$11))) -> 0 | R33: =IF(Data!$D$3="CPS",0,LOOKUP('Bill Preparation'!B33,'Bill Preparation'!$X$4:$X$22,'Bill Preparation'!$Y$4:$Y$22)) -> 0 | T33: Promotion Date | U33: =Data!B5 -> 2023-07-11 | V33: =U33 -> 2023-07-11 | W33: =SMALL(U33:U35,1) -> 2023-06-01 | X33: =IF(W33<Data!M14,0,Data!I15) -> 0 | AJ33: 1 | AK33: 1 | AL33: 2026 | AM33: =IF(AK33=2, 28,IF(AK33=4, 30,IF(AK33=6, 30,IF(AK33=9, 30,IF(AK33=11, 30, 31 ))))) -> 31 | AN33: 31 | AO33: =IF(AM33=28,IF(AL33=2012,29,28),AM33) -> 31
A34: from | B34: 2026-02-01 | C34: to | D34: 2026-02-28 | E34: 28 | F34: =IF(B34>Data!$D$8,0,IF(B34>=Data!$H$19,Data!$I$19,IF(B34>=Data!$H$18,Data!$I$18,Data!$I$15))) -> 0 | G34: =IF(B34>Data!$D$8,0,IF(Data!$D$6="Yes",Data!$O$7,Data!$B$8)) -> 0 | H34: =IF(B34>Data!$D$8,0,LOOKUP(B34,$T$4:$T$16,$U$4:$U$16)) -> 0 | I34: =IF(B34>Data!$D$8,0,I33) -> 0 | J34: 0 | K34: =IF(B34>Data!$D$8,0,LOOKUP(F34,$AC$3:$AC$6,$AI$3:$AI$6)) -> 0 | L34: =IF(B34>Data!$D$8,0,LOOKUP(G34,$AC$3:$AC$6,$AI$3:$AI$6)) -> 0 | M34: =IF(B34>Data!$D$8,0,M33) -> 0 | N34: =IF(B34>Data!$D$8,0,N33) -> 0 | O34: =IF(B34>Data!$D$8,0,O33) -> 0 | P34: =IF(B34>Data!$D$8,0,IF(Data!$D$11="CA",IF(ROUND('Bill Preparation'!F34*10%,0)<900,ROUND('Bill Preparation'!F34*10%,0),900),LOOKUP(Data!$B$4,'Bill Preparation'!$AD$9:$AD$11,'Bill Preparation'!$AG$9:$AG$11))) -> 0 | Q34: =IF(B34>Data!$D$8,0,IF(Data!$D$11="CA",IF(ROUND('Bill Preparation'!G34*10%,0)<900,ROUND('Bill Preparation'!G34*10%,0),900),LOOKUP(Data!$B$4,'Bill Preparation'!$AD$9:$AD$11,'Bill Preparation'!$AG$9:$AG$11))) -> 0 | R34: =IF(Data!$D$3="CPS",0,LOOKUP('Bill Preparation'!B34,'Bill Preparation'!$X$4:$X$22,'Bill Preparation'!$Y$4:$Y$22)) -> 0 | T34: Increment Date | U34: =Data!D5 -> 2023-06-01 | V34: =IF(U34=V33,Data!E8,U34) -> 2023-06-01 | W34: =SMALL(U33:U35,2) -> 2023-07-11 | AJ34: 1 | AK34: 2 | AL34: 2026 | AM34: =IF(AK34=2, 28,IF(AK34=4, 30,IF(AK34=6, 30,IF(AK34=9, 30,IF(AK34=11, 30, 31 ))))) -> 28 | AN34: 28 | AO34: =IF(AM34=28,IF(AL34=2012,29,28),AM34) -> 28
A35: from | B35: 2026-03-01 | C35: to | D35: 2026-03-31 | E35: 31 | F35: =IF(B35>Data!$D$8,0,IF(B35>=Data!$H$19,Data!$I$19,IF(B35>=Data!$H$18,Data!$I$18,Data!$I$15))) -> 0 | G35: =IF(B35>Data!$D$8,0,IF(Data!$D$6="Yes",Data!$O$7,Data!$B$8)) -> 0 | H35: =IF(B35>Data!$D$8,0,LOOKUP(B35,$T$4:$T$16,$U$4:$U$16)) -> 0 | I35: =IF(B35>Data!$D$8,0,I34) -> 0 | J35: 0 | K35: =IF(B35>Data!$D$8,0,LOOKUP(F35,$AC$3:$AC$6,$AI$3:$AI$6)) -> 0 | L35: =IF(B35>Data!$D$8,0,LOOKUP(G35,$AC$3:$AC$6,$AI$3:$AI$6)) -> 0 | M35: =IF(B35>Data!$D$8,0,M34) -> 0 | N35: =IF(B35>Data!$D$8,0,N34) -> 0 | O35: =IF(B35>Data!$D$8,0,O34) -> 0 | P35: =IF(B35>Data!$D$8,0,IF(Data!$D$11="CA",IF(ROUND('Bill Preparation'!F35*10%,0)<900,ROUND('Bill Preparation'!F35*10%,0),900),LOOKUP(Data!$B$4,'Bill Preparation'!$AD$9:$AD$11,'Bill Preparation'!$AG$9:$AG$11))) -> 0 | Q35: =IF(B35>Data!$D$8,0,IF(Data!$D$11="CA",IF(ROUND('Bill Preparation'!G35*10%,0)<900,ROUND('Bill Preparation'!G35*10%,0),900),LOOKUP(Data!$B$4,'Bill Preparation'!$AD$9:$AD$11,'Bill Preparation'!$AG$9:$AG$11))) -> 0 | R35: =IF(Data!$D$3="CPS",0,LOOKUP('Bill Preparation'!B35,'Bill Preparation'!$X$4:$X$22,'Bill Preparation'!$Y$4:$Y$22)) -> 0 | T35: Bill claimed upto | U35: =TODAY()-DAY(TODAY()) -> 2023-08-31 | V35: =IF(U35=V34,Data!E8,U35) -> 2023-08-31 | W35: =SMALL(U33:U35,3) -> 2023-08-31 | AJ35: 1 | AK35: 3 | AL35: 2026 | AM35: =IF(AK35=2, 28,IF(AK35=4, 30,IF(AK35=6, 30,IF(AK35=9, 30,IF(AK35=11, 30, 31 ))))) -> 31 | AN35: 31 | AO35: =IF(AM35=28,IF(AL35=2012,29,28),AM35) -> 31
A36: from | B36: 2026-04-01 | C36: to | D36: 2026-04-30 | E36: 30 | F36: =IF(B36>Data!$D$8,0,IF(B36>=Data!$H$19,Data!$I$19,IF(B36>=Data!$H$18,Data!$I$18,Data!$I$15))) -> 0 | G36: =IF(B36>Data!$D$8,0,IF(Data!$D$6="Yes",Data!$O$7,Data!$B$8)) -> 0 | H36: =IF(B36>Data!$D$8,0,LOOKUP(B36,$T$4:$T$16,$U$4:$U$16)) -> 0 | I36: =IF(B36>Data!$D$8,0,I35) -> 0 | J36: 0 | K36: =IF(B36>Data!$D$8,0,LOOKUP(F36,$AC$3:$AC$6,$AI$3:$AI$6)) -> 0 | L36: =IF(B36>Data!$D$8,0,LOOKUP(G36,$AC$3:$AC$6,$AI$3:$AI$6)) -> 0 | M36: =IF(B36>Data!$D$8,0,M35) -> 0 | N36: =IF(B36>Data!$D$8,0,N35) -> 0 | O36: =IF(B36>Data!$D$8,0,O35) -> 0 | P36: =IF(B36>Data!$D$8,0,IF(Data!$D$11="CA",IF(ROUND('Bill Preparation'!F36*10%,0)<900,ROUND('Bill Preparation'!F36*10%,0),900),LOOKUP(Data!$B$4,'Bill Preparation'!$AD$9:$AD$11,'Bill Preparation'!$AG$9:$AG$11))) -> 0 | Q36: =IF(B36>Data!$D$8,0,IF(Data!$D$11="CA",IF(ROUND('Bill Preparation'!G36*10%,0)<900,ROUND('Bill Preparation'!G36*10%,0),900),LOOKUP(Data!$B$4,'Bill Preparation'!$AD$9:$AD$11,'Bill Preparation'!$AG$9:$AG$11))) -> 0 | R36: =IF(Data!$D$3="CPS",0,LOOKUP('Bill Preparation'!B36,'Bill Preparation'!$X$4:$X$22,'Bill Preparation'!$Y$4:$Y$22)) -> 0 | AJ36: 1 | AK36: 4 | AL36: 2026 | AM36: =IF(AK36=2, 28,IF(AK36=4, 30,IF(AK36=6, 30,IF(AK36=9, 30,IF(AK36=11, 30, 31 ))))) -> 30 | AN36: 30 | AO36: =IF(AM36=28,IF(AL36=2012,29,28),AM36) -> 30
A37: from | B37: 2026-05-01 | C37: to | D37: 2026-05-31 | E37: 31 | F37: =IF(B37>Data!$D$8,0,IF(B37>=Data!$H$19,Data!$I$19,IF(B37>=Data!$H$18,Data!$I$18,Data!$I$15))) -> 0 | G37: =IF(B37>Data!$D$8,0,IF(Data!$D$6="Yes",Data!$O$7,Data!$B$8)) -> 0 | H37: =IF(B37>Data!$D$8,0,LOOKUP(B37,$T$4:$T$16,$U$4:$U$16)) -> 0 | I37: =IF(B37>Data!$D$8,0,I36) -> 0 | J37: 0 | K37: =IF(B37>Data!$D$8,0,LOOKUP(F37,$AC$3:$AC$6,$AI$3:$AI$6)) -> 0 | L37: =IF(B37>Data!$D$8,0,LOOKUP(G37,$AC$3:$AC$6,$AI$3:$AI$6)) -> 0 | M37: =IF(B37>Data!$D$8,0,M36) -> 0 | N37: =IF(B37>Data!$D$8,0,N36) -> 0 | O37: =IF(B37>Data!$D$8,0,O36) -> 0 | P37: =IF(B37>Data!$D$8,0,IF(Data!$D$11="CA",IF(ROUND('Bill Preparation'!F37*10%,0)<900,ROUND('Bill Preparation'!F37*10%,0),900),LOOKUP(Data!$B$4,'Bill Preparation'!$AD$9:$AD$11,'Bill Preparation'!$AG$9:$AG$11))) -> 0 | Q37: =IF(B37>Data!$D$8,0,IF(Data!$D$11="CA",IF(ROUND('Bill Preparation'!G37*10%,0)<900,ROUND('Bill Preparation'!G37*10%,0),900),LOOKUP(Data!$B$4,'Bill Preparation'!$AD$9:$AD$11,'Bill Preparation'!$AG$9:$AG$11))) -> 0 | R37: =IF(Data!$D$3="CPS",0,LOOKUP('Bill Preparation'!B37,'Bill Preparation'!$X$4:$X$22,'Bill Preparation'!$Y$4:$Y$22)) -> 0 | AJ37: 1 | AK37: 5 | AL37: 2026 | AM37: 31 | AN37: 31
A38: from | B38: 2026-06-01 | C38: to | D38: 2026-06-30 | E38: =(D38-B38)+1 -> 30 | F38: =IF(B38>Data!$D$8,0,IF(B38>=Data!$H$19,Data!$I$19,IF(B38>=Data!$H$18,Data!$I$18,Data!$I$15))) -> 0 | G38: =IF(B38>Data!$D$8,0,IF(Data!$D$6="Yes",Data!$O$7,Data!$B$8)) -> 0 | H38: =IF(B38>Data!$D$8,0,LOOKUP(B38,$T$4:$T$16,$U$4:$U$16)) -> 0 | I38: =IF(B38>Data!$D$8,0,I37) -> 0 | J38: 0 | K38: =IF(B38>Data!$D$8,0,LOOKUP(F38,$AC$3:$AC$6,$AI$3:$AI$6)) -> 0 | L38: =IF(B38>Data!$D$8,0,LOOKUP(G38,$AC$3:$AC$6,$AI$3:$AI$6)) -> 0 | M38: =IF(B38>Data!$D$8,0,M37) -> 0 | N38: =IF(B38>Data!$D$8,0,N37) -> 0 | O38: =IF(B38>Data!$D$8,0,O37) -> 0 | P38: =IF(B38>Data!$D$8,0,IF(Data!$D$11="CA",IF(ROUND('Bill Preparation'!F38*10%,0)<900,ROUND('Bill Preparation'!F38*10%,0),900),LOOKUP(Data!$B$4,'Bill Preparation'!$AD$9:$AD$11,'Bill Preparation'!$AG$9:$AG$11))) -> 0 | Q38: =IF(B38>Data!$D$8,0,IF(Data!$D$11="CA",IF(ROUND('Bill Preparation'!G38*10%,0)<900,ROUND('Bill Preparation'!G38*10%,0),900),LOOKUP(Data!$B$4,'Bill Preparation'!$AD$9:$AD$11,'Bill Preparation'!$AG$9:$AG$11))) -> 0 | R38: =IF(Data!$D$3="CPS",0,LOOKUP('Bill Preparation'!B38,'Bill Preparation'!$X$4:$X$22,'Bill Preparation'!$Y$4:$Y$22)) -> 0 | AJ38: 1 | AK38: 6 | AL38: 2026 | AM38: =IF(AK38=2,"28",IF(AK38=4,"30",IF(AK38=6,"30",IF(AK38=9,"30",IF(AK38=11,"30","31"))))) -> 30 | AN38: 30
A39: from | B39: 2026-07-01 | C39: to | D39: 2026-07-31 | E39: =(D39-B39)+1 -> 31 | F39: =IF(B39>Data!$D$8,0,IF(B39>=Data!$H$19,Data!$I$19,IF(B39>=Data!$H$18,Data!$I$18,Data!$I$15))) -> 0 | G39: =IF(B39>Data!$D$8,0,IF(Data!$D$6="Yes",Data!$O$7,Data!$B$8)) -> 0 | H39: =IF(B39>Data!$D$8,0,LOOKUP(B39,$T$4:$T$16,$U$4:$U$16)) -> 0 | I39: =IF(B39>Data!$D$8,0,I38) -> 0 | J39: 0 | K39: =IF(B39>Data!$D$8,0,LOOKUP(F39,$AC$3:$AC$6,$AI$3:$AI$6)) -> 0 | L39: =IF(B39>Data!$D$8,0,LOOKUP(G39,$AC$3:$AC$6,$AI$3:$AI$6)) -> 0 | M39: =IF(B39>Data!$D$8,0,M38) -> 0 | N39: =IF(B39>Data!$D$8,0,N38) -> 0 | O39: =IF(B39>Data!$D$8,0,O38) -> 0 | P39: =IF(B39>Data!$D$8,0,IF(Data!$D$11="CA",IF(ROUND('Bill Preparation'!F39*10%,0)<900,ROUND('Bill Preparation'!F39*10%,0),900),LOOKUP(Data!$B$4,'Bill Preparation'!$AD$9:$AD$11,'Bill Preparation'!$AG$9:$AG$11))) -> 0 | Q39: =IF(B39>Data!$D$8,0,IF(Data!$D$11="CA",IF(ROUND('Bill Preparation'!G39*10%,0)<900,ROUND('Bill Preparation'!G39*10%,0),900),LOOKUP(Data!$B$4,'Bill Preparation'!$AD$9:$AD$11,'Bill Preparation'!$AG$9:$AG$11))) -> 0 | R39: =IF(Data!$D$3="CPS",0,LOOKUP('Bill Preparation'!B39,'Bill Preparation'!$X$4:$X$22,'Bill Preparation'!$Y$4:$Y$22)) -> 0 | AJ39: 1 | AK39: 7 | AL39: 2026 | AM39: =IF(AK39=2,"28",IF(AK39=4,"30",IF(AK39=6,"30",IF(AK39=9,"30",IF(AK39=11,"30","31"))))) -> 31 | AN39: =IF(AM39=28,IF(AL39=2016,29,28),AM39) -> 31
A40: from | B40: 2026-08-01 | C40: to | D40: 2026-08-31 | E40: =(D40-B40)+1 -> 31 | F40: =IF(B40>Data!$D$8,0,IF(B40>=Data!$H$19,Data!$I$19,IF(B40>=Data!$H$18,Data!$I$18,Data!$I$15))) -> 0 | G40: =IF(B40>Data!$D$8,0,IF(Data!$D$6="Yes",Data!$O$7,Data!$B$8)) -> 0 | H40: =IF(B40>Data!$D$8,0,LOOKUP(B40,$T$4:$T$16,$U$4:$U$16)) -> 0 | I40: =IF(B40>Data!$D$8,0,I39) -> 0 | J40: 0 | K40: =IF(B40>Data!$D$8,0,LOOKUP(F40,$AC$3:$AC$6,$AI$3:$AI$6)) -> 0 | L40: =IF(B40>Data!$D$8,0,LOOKUP(G40,$AC$3:$AC$6,$AI$3:$AI$6)) -> 0 | M40: =IF(B40>Data!$D$8,0,M39) -> 0 | N40: =IF(B40>Data!$D$8,0,N39) -> 0 | O40: =IF(B40>Data!$D$8,0,O39) -> 0 | P40: =IF(B40>Data!$D$8,0,IF(Data!$D$11="CA",IF(ROUND('Bill Preparation'!F40*10%,0)<900,ROUND('Bill Preparation'!F40*10%,0),900),LOOKUP(Data!$B$4,'Bill Preparation'!$AD$9:$AD$11,'Bill Preparation'!$AG$9:$AG$11))) -> 0 | Q40: =IF(B40>Data!$D$8,0,IF(Data!$D$11="CA",IF(ROUND('Bill Preparation'!G40*10%,0)<900,ROUND('Bill Preparation'!G40*10%,0),900),LOOKUP(Data!$B$4,'Bill Preparation'!$AD$9:$AD$11,'Bill Preparation'!$AG$9:$AG$11))) -> 0 | R40: =IF(Data!$D$3="CPS",0,LOOKUP('Bill Preparation'!B40,'Bill Preparation'!$X$4:$X$22,'Bill Preparation'!$Y$4:$Y$22)) -> 0
T41: =U33 -> 2023-07-11

Sheet Bill
A1: Note : In this "Bill Sheet" if any variation found , Change the corresponding entries in the "Bill Preparation" Sheet. Hide unnecessary rows and columns in this sheet and then print out this sheet.
A2: ="Claim for Promotion Pay fixation arrears of "&Data!B2&", "&Data!D4 -> Claim for Promotion Pay fixation arrears of Smt Shaik ASHITUN (CFMS ID15087189), SCHOOL ASST(Phy Ed)
A4: ="Vide the Proceedings RC No : "&Data!B17& " dt."&Data!F17&" of the "&PROPER(Data!B15)&", "&Data!B16 -> Vide the Proceedings RC No : 5/ PROMOTION FR 22B /2023 dt.19-9-2023 of the Head Master, ZPHIGH SCHOOL EDLAPADU
A5: Period | C5: No of Days | D5: To be drawn | O5: Already drawn | Z5: Difference | AO5: REMARKS
A6: From | B6: To | D6: PAY | E6: pp | F6: FP | G6: S Pay | H6: D A | I6: H R A | J6: IR | K6: PHA | L6: CCA | M6: GROSS | N6: PT | O6: PAY | P6: pp | Q6: FP | R6: S Pay | S6: D A | T6: H R A | U6: IR | V6: PHA | W6: CCA | X6: GROSS | Y6: PT | Z6: PAY | AA6: pp | AB6: FP | AC6: S Pay | AD6: D A | AE6: H R A | AF6: IR | AG6: PHA | AH6: CCA | AI6: GROSS | AJ6: ZPPF | AK6: PT | AL6: CPS | AM6: GOVT. RECOVERIES | AN6: Net Payable
A7: ='Bill Preparation'!B3 -> 2023-07-11 | B7: ='Bill Preparation'!D3 -> 2023-07-31 | C7: =(B7-A7)+1 -> 21 | D7: =ROUND('Bill Preparation'!F3*C7/'Bill Preparation'!AN3,0) -> 30193 | E7: =ROUND('Bill Preparation'!M3*C7/'Bill Preparation'!AN3,0) -> 0 | F7: =ROUND('Bill Preparation'!N3*C7/'Bill Preparation'!AN3,0) -> 0 | G7: =ROUND('Bill Preparation'!O3*C7/'Bill Preparation'!AN3,0) -> 0 | H7: =ROUND(D7*'Bill Preparation'!H3/100,0) -> 6869 | I7: =IF(ROUND(D7*'Bill Preparation'!I3/100,0)>('Bill Preparation'!I3+1)*1000,('Bill Preparation'!I3+1)*1000,ROUND(D7*'Bill Preparation'!I3/100,0)) -> 3019 | J7: =ROUND(D7*'Bill Preparation'!J3/100,0) -> 0 | K7: =ROUND('Bill Preparation'!P3*C7/'Bill Preparation'!AN3,0) -> 0 | L7: =ROUND('Bill Preparation'!K3*C7/'Bill Preparation'!AN3,0) -> 0 | M7: =SUM(D7:L7) -> 40081 | N7: =IF([1]Data!$B$32="Yes",0,IF(C7>AQ7/2,AS7,0)) -> 200 | O7: =ROUND('Bill Preparation'!G3*C7/'Bill Preparation'!AN3,0) -> 23425 | P7: =ROUND('Bill Preparation'!M3*C7/'Bill Preparation'!AN3,0) -> 0 | Q7: =ROUND('Bill Preparation'!N3*C7/'Bill Preparation'!AN3,0) -> 0 | R7: =ROUND('Bill Preparation'!O3*C7/'Bill Preparation'!AN3,0) -> 0 | S7: =ROUND(O7*'Bill Preparation'!H3/100,0) -> 5329 | T7: =IF(ROUND(O7*'Bill Preparation'!I3/100,0)>('Bill Preparation'!I3+1)*1000,('Bill Preparation'!I3+1)*1000,ROUND(O7*'Bill Preparation'!I3/100,0)) -> 2343 | U7: =ROUND(O7*'Bill Preparation'!J3/100,0) -> 0 | V7: =ROUND('Bill Preparation'!Q3*C7/'Bill Preparation'!AN3,0) -> 0 | W7: =ROUND('Bill Preparation'!L3*C7/'Bill Preparation'!AN3,0) -> 0 | X7: =SUM(O7:W7) -> 31097 | Y7: =IF([1]Data!$B$32="Yes",0,IF(C7>AQ7/2,AU7,0)) -> 200 | Z7: =D7-O7 -> 6768 | AA7: 0 | AB7: 0 | AC7: 0 | AD7: 1540 | AE7: 676 | AF7: 0 | AG7: 0 | AH7: 0 | AI7: =SUM(Z7:AH7) -> 8984 | AJ7: =IF(Data!$D$3="CPS",0,ROUND(Z7*'Bill Preparation'!R3%,0)) -> 0 | AK7: =N7-Y7 -> 0 | AL7: =IF(Data!$D$3="CPS",ROUND((Z7+AD7)*10%,0),0) -> 831 | AM7: =SUM(AJ7:AL7) -> 831 | AN7: =AI7-AM7 -> 8153 | AP7: =MONTH(A7)*1 -> 7 | AQ7: =IF(AP7=2,IF(YEAR(A7)=2012,"29","28"),IF(AP7=4,"30",IF(AP7=6,"30",IF(AP7=9,"30",IF(AP7=11,"30","31"))))) -> 31 | AR7: ='Bill Preparation'!F3+'Bill Preparation'!M3+ROUND('Bill Preparation'!F3*'Bill Preparation'!H3/100,0)+ROUND('Bill Preparation'!F3*'Bill Preparation'!I3/100,0)+'Bill Preparation'!K3+'Bill Preparation'!N3+'Bill Preparation'!O3 -> 59167 | AS7: =IF(AR7>20000,200,IF(AR7>15000,150,IF(AR7>10000,100,IF(AR7>5000,80,0)))) -> 200 | AT7: ='Bill Preparation'!G3+'Bill Preparation'!M3+ROUND('Bill Preparation'!G3*'Bill Preparation'!H3/100,0)+ROUND('Bill Preparation'!G3*'Bill Preparation'!I3/100,0)+'Bill Preparation'!L3+'Bill Preparation'!N3+'Bill Preparation'!O3 -> 45905 | AU7: =IF(AT7>20000,200,IF(AT7>15000,150,IF(AT7>10000,100,IF(AT7>5000,80,0)))) -> 200
A8: ='Bill Preparation'!B4 -> 2023-08-01 | B8: ='Bill Preparation'!D4 -> 2023-08-31 | C8: 31 | D8: =ROUND('Bill Preparation'!F4*C8/'Bill Preparation'!AN4,0) -> 44570 | E8: =ROUND('Bill Preparation'!M4*C8/'Bill Preparation'!AN4,0) -> 0 | F8: =ROUND('Bill Preparation'!N4*C8/'Bill Preparation'!AN4,0) -> 0 | G8: =ROUND('Bill Preparation'!O4*C8/'Bill Preparation'!AN4,0) -> 0 | H8: =ROUND(D8*'Bill Preparation'!H4/100,0) -> 10140 | I8: =IF(ROUND(D8*'Bill Preparation'!I4/100,0)>('Bill Preparation'!I4+1)*1000,('Bill Preparation'!I4+1)*1000,ROUND(D8*'Bill Preparation'!I4/100,0)) -> 4457 | J8: =ROUND(D8*'Bill Preparation'!J4/100,0) -> 0 | K8: =ROUND('Bill Preparation'!P4*C8/'Bill Preparation'!AN4,0) -> 0 | L8: =ROUND('Bill Preparation'!K4*C8/'Bill Preparation'!AN4,0) -> 0 | M8: 59167 | N8: =IF([1]Data!$B$32="Yes",0,IF(C8>AQ8/2,AS8,0)) -> 200 | O8: =ROUND('Bill Preparation'!G4*C8/'Bill Preparation'!AN4,0) -> 34580 | P8: =ROUND('Bill Preparation'!M4*C8/'Bill Preparation'!AN4,0) -> 0 | Q8: =ROUND('Bill Preparation'!N4*C8/'Bill Preparation'!AN4,0) -> 0 | R8: =ROUND('Bill Preparation'!O4*C8/'Bill Preparation'!AN4,0) -> 0 | S8: =ROUND(O8*'Bill Preparation'!H4/100,0) -> 7867 | T8: =IF(ROUND(O8*'Bill Preparation'!I4/100,0)>('Bill Preparation'!I4+1)*1000,('Bill Preparation'!I4+1)*1000,ROUND(O8*'Bill Preparation'!I4/100,0)) -> 3458 | U8: =ROUND(O8*'Bill Preparation'!J4/100,0) -> 0 | V8: =ROUND('Bill Preparation'!Q4*C8/'Bill Preparation'!AN4,0) -> 0 | W8: =ROUND('Bill Preparation'!L4*C8/'Bill Preparation'!AN4,0) -> 0 | X8: 45905 | Y8: =IF([1]Data!$B$32="Yes",0,IF(C8>AQ8/2,AU8,0)) -> 200 | Z8: 9990 | AA8: 0 | AB8: 0 | AC8: 0 | AD8: 2273 | AE8: 999 | AF8: 0 | AG8: 0 | AH8: 0 | AI8: 13262 | AJ8: =IF(Data!$D$3="CPS",0,ROUND(Z8*'Bill Preparation'!R4%,0)) -> 0 | AK8: =IF(C8>AQ8/2,(N8-Y8),0) -> 0 | AL8: =IF(Data!$D$3="CPS",ROUND((Z8+AD8)*10%,0),0) -> 1226 | AM8: =SUM(AJ8:AL8) -> 1226 | AN8: 12036 | AP8: 8 | AQ8: 31 | AR8: ='Bill Preparation'!F4+'Bill Preparation'!M4+ROUND('Bill Preparation'!F4*'Bill Preparation'!H4/100,0)+ROUND('Bill Preparation'!F4*'Bill Preparation'!I4/100,0)+'Bill Preparation'!K4+'Bill Preparation'!N4+'Bill Preparation'!O4 -> 59167 | AS8: 200 | AT8: ='Bill Preparation'!G4+'Bill Preparation'!M4+ROUND('Bill Preparation'!G4*'Bill Preparation'!H4/100,0)+ROUND('Bill Preparation'!G4*'Bill Preparation'!I4/100,0)+'Bill Preparation'!L4+'Bill Preparation'!N4+'Bill Preparation'!O4 -> 45905 | AU8: 200
A9: ='Bill Preparation'!B5 -> 2023-09-01 | B9: ='Bill Preparation'!D5 -> 2023-09-30 | C9: 30 | D9: =ROUND('Bill Preparation'!F5*C9/'Bill Preparation'!AN5,0) -> 44570 | E9: =ROUND('Bill Preparation'!M5*C9/'Bill Preparation'!AN5,0) -> 0 | F9: =ROUND('Bill Preparation'!N5*C9/'Bill Preparation'!AN5,0) -> 0 | G9: =ROUND('Bill Preparation'!O5*C9/'Bill Preparation'!AN5,0) -> 0 | H9: =ROUND(D9*'Bill Preparation'!H5/100,0) -> 10140 | I9: =IF(ROUND(D9*'Bill Preparation'!I5/100,0)>('Bill Preparation'!I5+1)*1000,('Bill Preparation'!I5+1)*1000,ROUND(D9*'Bill Preparation'!I5/100,0)) -> 4457 | J9: =ROUND(D9*'Bill Preparation'!J5/100,0) -> 0 | K9: =ROUND('Bill Preparation'!P5*C9/'Bill Preparation'!AN5,0) -> 0 | L9: =ROUND('Bill Preparation'!K5*C9/'Bill Preparation'!AN5,0) -> 0 | M9: 59167 | N9: =IF([1]Data!$B$32="Yes",0,IF(C9>AQ9/2,AS9,0)) -> 200 | O9: =ROUND('Bill Preparation'!G5*C9/'Bill Preparation'!AN5,0) -> 34580 | P9: =ROUND('Bill Preparation'!M5*C9/'Bill Preparation'!AN5,0) -> 0 | Q9: =ROUND('Bill Preparation'!N5*C9/'Bill Preparation'!AN5,0) -> 0 | R9: =ROUND('Bill Preparation'!O5*C9/'Bill Preparation'!AN5,0) -> 0 | S9: =ROUND(O9*'Bill Preparation'!H5/100,0) -> 7867 | T9: =IF(ROUND(O9*'Bill Preparation'!I5/100,0)>('Bill Preparation'!I5+1)*1000,('Bill Preparation'!I5+1)*1000,ROUND(O9*'Bill Preparation'!I5/100,0)) -> 3458 | U9: =ROUND(O9*'Bill Preparation'!J5/100,0) -> 0 | V9: =ROUND('Bill Preparation'!Q5*C9/'Bill Preparation'!AN5,0) -> 0 | W9: =ROUND('Bill Preparation'!L5*C9/'Bill Preparation'!AN5,0) -> 0 | X9: 45905 | Y9: =IF([1]Data!$B$32="Yes",0,IF(C9>AQ9/2,AU9,0)) -> 200 | Z9: 9990 | AA9: 0 | AB9: 0 | AC9: 0 | AD9: 2273 | AE9: 999 | AF9: 0 | AG9: 0 | AH9: 0 | AI9: 13262 | AJ9: =IF(Data!$D$3="CPS",0,ROUND(Z9*'Bill Preparation'!R5%,0)) -> 0 | AK9: 0 | AL9: =IF(Data!$D$3="CPS",ROUND((Z9+AD9)*10%,0),0) -> 1226 | AM9: 1226 | AN9: 12036 | AP9: 9 | AQ9: 30 | AR9: ='Bill Preparation'!F5+'Bill Preparation'!M5+ROUND('Bill Preparation'!F5*'Bill Preparation'!H5/100,0)+ROUND('Bill Preparation'!F5*'Bill Preparation'!I5/100,0)+'Bill Preparation'!K5+'Bill Preparation'!N5+'Bill Preparation'!O5 -> 59167 | AS9: 200 | AT9: ='Bill Preparation'!G5+'Bill Preparation'!M5+ROUND('Bill Preparation'!G5*'Bill Preparation'!H5/100,0)+ROUND('Bill Preparation'!G5*'Bill Preparation'!I5/100,0)+'Bill Preparation'!L5+'Bill Preparation'!N5+'Bill Preparation'!O5 -> 45905 | AU9: 200
A10: ='Bill Preparation'!B6 -> 2023-10-01 | B10: ='Bill Preparation'!D6 -> 2023-10-31 | C10: 31 | D10: =ROUND('Bill Preparation'!F6*C10/'Bill Preparation'!AN6,0) -> 0 | E10: =ROUND('Bill Preparation'!M6*C10/'Bill Preparation'!AN6,0) -> 0 | F10: =ROUND('Bill Preparation'!N6*C10/'Bill Preparation'!AN6,0) -> 0 | G10: =ROUND('Bill Preparation'!O6*C10/'Bill Preparation'!AN6,0) -> 0 | H10: =ROUND(D10*'Bill Preparation'!H6/100,0) -> 0 | I10: =IF(ROUND(D10*'Bill Preparation'!I6/100,0)>('Bill Preparation'!I6+1)*1000,('Bill Preparation'!I6+1)*1000,ROUND(D10*'Bill Preparation'!I6/100,0)) -> 0 | J10: =ROUND(D10*'Bill Preparation'!J6/100,0) -> 0 | K10: =ROUND('Bill Preparation'!P6*C10/'Bill Preparation'!AN6,0) -> 0 | L10: =ROUND('Bill Preparation'!K6*C10/'Bill Preparation'!AN6,0) -> 0 | M10: 0 | N10: =IF([1]Data!$B$32="Yes",0,IF(C10>AQ10/2,AS10,0)) -> 0 | O10: =ROUND('Bill Preparation'!G6*C10/'Bill Preparation'!AN6,0) -> 0 | P10: =ROUND('Bill Preparation'!M6*C10/'Bill Preparation'!AN6,0) -> 0 | Q10: =ROUND('Bill Preparation'!N6*C10/'Bill Preparation'!AN6,0) -> 0 | R10: =ROUND('Bill Preparation'!O6*C10/'Bill Preparation'!AN6,0) -> 0 | S10: =ROUND(O10*'Bill Preparation'!H6/100,0) -> 0 | T10: =IF(ROUND(O10*'Bill Preparation'!I6/100,0)>('Bill Preparation'!I6+1)*1000,('Bill Preparation'!I6+1)*1000,ROUND(O10*'Bill Preparation'!I6/100,0)) -> 0 | U10: =ROUND(O10*'Bill Preparation'!J6/100,0) -> 0 | V10: =ROUND('Bill Preparation'!Q6*C10/'Bill Preparation'!AN6,0) -> 0 | W10: =ROUND('Bill Preparation'!L6*C10/'Bill Preparation'!AN6,0) -> 0 | X10: 0 | Y10: =IF([1]Data!$B$32="Yes",0,IF(C10>AQ10/2,AU10,0)) -> 0 | Z10: 0 | AA10: 0 | AB10: 0 | AC10: 0 | AD10: 0 | AE10: 0 | AF10: 0 | AG10: 0 | AH10: 0 | AI10: 0 | AJ10: =IF(Data!$D$3="CPS",0,ROUND(Z10*'Bill Preparation'!R6%,0)) -> 0 | AK10: 0 | AL10: =IF(Data!$D$3="CPS",ROUND((Z10+AD10)*10%,0),0) -> 0 | AM10: 0 | AN10: 0 | AP10: 10 | AQ10: 31 | AR10: ='Bill Preparation'!F6+'Bill Preparation'!M6+ROUND('Bill Preparation'!F6*'Bill Preparation'!H6/100,0)+ROUND('Bill Preparation'!F6*'Bill Preparation'!I6/100,0)+'Bill Preparation'!K6+'Bill Preparation'!N6+'Bill Preparation'!O6 -> 0 | AS10: 0 | AT10: ='Bill Preparation'!G6+'Bill Preparation'!M6+ROUND('Bill Preparation'!G6*'Bill Preparation'!H6/100,0)+ROUND('Bill Preparation'!G6*'Bill Preparation'!I6/100,0)+'Bill Preparation'!L6+'Bill Preparation'!N6+'Bill Preparation'!O6 -> 0 | AU10: 0
A11: ='Bill Preparation'!B7 -> 2023-11-01 | B11: ='Bill Preparation'!D7 -> 2023-11-30 | C11: 30 | D11: =ROUND('Bill Preparation'!F7*C11/'Bill Preparation'!AN7,0) -> 0 | E11: =ROUND('Bill Preparation'!M7*C11/'Bill Preparation'!AN7,0) -> 0 | F11: =ROUND('Bill Preparation'!N7*C11/'Bill Preparation'!AN7,0) -> 0 | G11: =ROUND('Bill Preparation'!O7*C11/'Bill Preparation'!AN7,0) -> 0 | H11: =ROUND(D11*'Bill Preparation'!H7/100,0) -> 0 | I11: =IF(ROUND(D11*'Bill Preparation'!I7/100,0)>('Bill Preparation'!I7+1)*1000,('Bill Preparation'!I7+1)*1000,ROUND(D11*'Bill Preparation'!I7/100,0)) -> 0 | J11: =ROUND(D11*'Bill Preparation'!J7/100,0) -> 0 | K11: =ROUND('Bill Preparation'!P7*C11/'Bill Preparation'!AN7,0) -> 0 | L11: =ROUND('Bill Preparation'!K7*C11/'Bill Preparation'!AN7,0) -> 0 | M11: 0 | N11: =IF([1]Data!$B$32="Yes",0,IF(C11>AQ11/2,AS11,0)) -> 0 | O11: =ROUND('Bill Preparation'!G7*C11/'Bill Preparation'!AN7,0) -> 0 | P11: =ROUND('Bill Preparation'!M7*C11/'Bill Preparation'!AN7,0) -> 0 | Q11: =ROUND('Bill Preparation'!N7*C11/'Bill Preparation'!AN7,0) -> 0 | R11: =ROUND('Bill Preparation'!O7*C11/'Bill Preparation'!AN7,0) -> 0 | S11: =ROUND(O11*'Bill Preparation'!H7/100,0) -> 0 | T11: =IF(ROUND(O11*'Bill Preparation'!I7/100,0)>('Bill Preparation'!I7+1)*1000,('Bill Preparation'!I7+1)*1000,ROUND(O11*'Bill Preparation'!I7/100,0)) -> 0 | U11: =ROUND(O11*'Bill Preparation'!J7/100,0) -> 0 | V11: =ROUND('Bill Preparation'!Q7*C11/'Bill Preparation'!AN7,0) -> 0 | W11: =ROUND('Bill Preparation'!L7*C11/'Bill Preparation'!AN7,0) -> 0 | X11: 0 | Y11: =IF([1]Data!$B$32="Yes",0,IF(C11>AQ11/2,AU11,0)) -> 0 | Z11: 0 | AA11: 0 | AB11: 0 | AC11: 0 | AD11: 0 | AE11: 0 | AF11: 0 | AG11: 0 | AH11: 0 | AI11: 0 | AJ11: =IF(Data!$D$3="CPS",0,ROUND(Z11*'Bill Preparation'!R7%,0)) -> 0 | AK11: 0 | AL11: =IF(Data!$D$3="CPS",ROUND((Z11+AD11)*10%,0),0) -> 0 | AM11: 0 | AN11: 0 | AP11: 11 | AQ11: 30 | AR11: ='Bill Preparation'!F7+'Bill Preparation'!M7+ROUND('Bill Preparation'!F7*'Bill Preparation'!H7/100,0)+ROUND('Bill Preparation'!F7*'Bill Preparation'!I7/100,0)+'Bill Preparation'!K7+'Bill Preparation'!N7+'Bill Preparation'!O7 -> 0 | AS11: 0 | AT11: ='Bill Preparation'!G7+'Bill Preparation'!M7+ROUND('Bill Preparation'!G7*'Bill Preparation'!H7/100,0)+ROUND('Bill Preparation'!G7*'Bill Preparation'!I7/100,0)+'Bill Preparation'!L7+'Bill Preparation'!N7+'Bill Preparation'!O7 -> 0 | AU11: 0
A12: ='Bill Preparation'!B8 -> 2023-12-01 | B12: ='Bill Preparation'!D8 -> 2023-12-31 | C12: 31 | D12: =ROUND('Bill Preparation'!F8*C12/'Bill Preparation'!AN8,0) -> 0 | E12: =ROUND('Bill Preparation'!M8*C12/'Bill Preparation'!AN8,0) -> 0 | F12: =ROUND('Bill Preparation'!N8*C12/'Bill Preparation'!AN8,0) -> 0 | G12: =ROUND('Bill Preparation'!O8*C12/'Bill Preparation'!AN8,0) -> 0 | H12: =ROUND(D12*'Bill Preparation'!H8/100,0) -> 0 | I12: =IF(ROUND(D12*'Bill Preparation'!I8/100,0)>('Bill Preparation'!I8+1)*1000,('Bill Preparation'!I8+1)*1000,ROUND(D12*'Bill Preparation'!I8/100,0)) -> 0 | J12: =ROUND(D12*'Bill Preparation'!J8/100,0) -> 0 | K12: =ROUND('Bill Preparation'!P8*C12/'Bill Preparation'!AN8,0) -> 0 | L12: =ROUND('Bill Preparation'!K8*C12/'Bill Preparation'!AN8,0) -> 0 | M12: 0 | N12: =IF([1]Data!$B$32="Yes",0,IF(C12>AQ12/2,AS12,0)) -> 0 | O12: =ROUND('Bill Preparation'!G8*C12/'Bill Preparation'!AN8,0) -> 0 | P12: =ROUND('Bill Preparation'!M8*C12/'Bill Preparation'!AN8,0) -> 0 | Q12: =ROUND('Bill Preparation'!N8*C12/'Bill Preparation'!AN8,0) -> 0 | R12: =ROUND('Bill Preparation'!O8*C12/'Bill Preparation'!AN8,0) -> 0 | S12: =ROUND(O12*'Bill Preparation'!H8/100,0) -> 0 | T12: =IF(ROUND(O12*'Bill Preparation'!I8/100,0)>('Bill Preparation'!I8+1)*1000,('Bill Preparation'!I8+1)*1000,ROUND(O12*'Bill Preparation'!I8/100,0)) -> 0 | U12: =ROUND(O12*'Bill Preparation'!J8/100,0) -> 0 | V12: =ROUND('Bill Preparation'!Q8*C12/'Bill Preparation'!AN8,0) -> 0 | W12: =ROUND('Bill Preparation'!L8*C12/'Bill Preparation'!AN8,0) -> 0 | X12: 0 | Y12: =IF([1]Data!$B$32="Yes",0,IF(C12>AQ12/2,AU12,0)) -> 0 | Z12: 0 | AA12: 0 | AB12: 0 | AC12: 0 | AD12: 0 | AE12: 0 | AF12: 0 | AG12: 0 | AH12: 0 | AI12: 0 | AJ12: =IF(Data!$D$3="CPS",0,ROUND(Z12*'Bill Preparation'!R8%,0)) -> 0 | AK12: 0 | AL12: =IF(Data!$D$3="CPS",ROUND((Z12+AD12)*10%,0),0) -> 0 | AM12: 0 | AN12: 0 | AP12: 12 | AQ12: 31 | AR12: ='Bill Preparation'!F8+'Bill Preparation'!M8+ROUND('Bill Preparation'!F8*'Bill Preparation'!H8/100,0)+ROUND('Bill Preparation'!F8*'Bill Preparation'!I8/100,0)+'Bill Preparation'!K8+'Bill Preparation'!N8+'Bill Preparation'!O8 -> 0 | AS12: 0 | AT12: ='Bill Preparation'!G8+'Bill Preparation'!M8+ROUND('Bill Preparation'!G8*'Bill Preparation'!H8/100,0)+ROUND('Bill Preparation'!G8*'Bill Preparation'!I8/100,0)+'Bill Preparation'!L8+'Bill Preparation'!N8+'Bill Preparation'!O8 -> 0 | AU12: 0
A13: ='Bill Preparation'!B9 -> 2024-01-01 | B13: ='Bill Preparation'!D9 -> 2024-01-31 | C13: =(B13-A13)+1 -> 31 | D13: =ROUND('Bill Preparation'!F9*C13/'Bill Preparation'!AN9,0) -> 0 | E13: =ROUND('Bill Preparation'!M9*C13/'Bill Preparation'!AN9,0) -> 0 | F13: =ROUND('Bill Preparation'!N9*C13/'Bill Preparation'!AN9,0) -> 0 | G13: =ROUND('Bill Preparation'!O9*C13/'Bill Preparation'!AN9,0) -> 0 | H13: =ROUND(D13*'Bill Preparation'!H9/100,0) -> 0 | I13: =IF(ROUND(D13*'Bill Preparation'!I9/100,0)>('Bill Preparation'!I9+1)*1000,('Bill Preparation'!I9+1)*1000,ROUND(D13*'Bill Preparation'!I9/100,0)) -> 0 | J13: =ROUND(D13*'Bill Preparation'!J9/100,0) -> 0 | K13: =ROUND('Bill Preparation'!P9*C13/'Bill Preparation'!AN9,0) -> 0 | L13: =ROUND('Bill Preparation'!K9*C13/'Bill Preparation'!AN9,0) -> 0 | M13: =SUM(D13:L13) -> 0 | N13: =IF([1]Data!$B$32="Yes",0,IF(C13>AQ13/2,AS13,0)) -> 0 | O13: =ROUND('Bill Preparation'!G9*C13/'Bill Preparation'!AN9,0) -> 0 | P13: =ROUND('Bill Preparation'!M9*C13/'Bill Preparation'!AN9,0) -> 0 | Q13: =ROUND('Bill Preparation'!N9*C13/'Bill Preparation'!AN9,0) -> 0 | R13: =ROUND('Bill Preparation'!O9*C13/'Bill Preparation'!AN9,0) -> 0 | S13: =ROUND(O13*'Bill Preparation'!H9/100,0) -> 0 | T13: =IF(ROUND(O13*'Bill Preparation'!I9/100,0)>('Bill Preparation'!I9+1)*1000,('Bill Preparation'!I9+1)*1000,ROUND(O13*'Bill Preparation'!I9/100,0)) -> 0 | U13: =ROUND(O13*'Bill Preparation'!J9/100,0) -> 0 | V13: =ROUND('Bill Preparation'!Q9*C13/'Bill Preparation'!AN9,0) -> 0 | W13: =ROUND('Bill Preparation'!L9*C13/'Bill Preparation'!AN9,0) -> 0 | X13: =SUM(O13:W13) -> 0 | Y13: =IF([1]Data!$B$32="Yes",0,IF(C13>AQ13/2,AU13,0)) -> 0 | Z13: 0 | AA13: 0 | AB13: 0 | AC13: 0 | AD13: 0 | AE13: 0 | AF13: 0 | AG13: 0 | AH13: 0 | AI13: 0 | AJ13: =IF(Data!$D$3="CPS",0,ROUND(Z13*'Bill Preparation'!R9%,0)) -> 0 | AK13: 0 | AL13: =IF(Data!$D$3="CPS",ROUND((Z13+AD13)*10%,0),0) -> 0 | AM13: 0 | AN13: 0 | AP13: 1 | AQ13: 31 | AR13: ='Bill Preparation'!F9+'Bill Preparation'!M9+ROUND('Bill Preparation'!F9*'Bill Preparation'!H9/100,0)+ROUND('Bill Preparation'!F9*'Bill Preparation'!I9/100,0)+'Bill Preparation'!K9+'Bill Preparation'!N9+'Bill Preparation'!O9 -> 0 | AS13: 0 | AT13: ='Bill Preparation'!G9+'Bill Preparation'!M9+ROUND('Bill Preparation'!G9*'Bill Preparation'!H9/100,0)+ROUND('Bill Preparation'!G9*'Bill Preparation'!I9/100,0)+'Bill Preparation'!L9+'Bill Preparation'!N9+'Bill Preparation'!O9 -> 0 | AU13: 0
A14: ='Bill Preparation'!B10 -> 2024-02-01 | B14: ='Bill Preparation'!D10 -> 2024-02-29 | C14: =(B14-A14)+1 -> 29 | D14: =ROUND('Bill Preparation'!F10*C14/'Bill Preparation'!AN10,0) -> 0 | E14: =ROUND('Bill Preparation'!M10*C14/'Bill Preparation'!AN10,0) -> 0 | F14: =ROUND('Bill Preparation'!N10*C14/'Bill Preparation'!AN10,0) -> 0 | G14: =ROUND('Bill Preparation'!O10*C14/'Bill Preparation'!AN10,0) -> 0 | H14: =ROUND(D14*'Bill Preparation'!H10/100,0) -> 0 | I14: =IF(ROUND(D14*'Bill Preparation'!I10/100,0)>('Bill Preparation'!I10+1)*1000,('Bill Preparation'!I10+1)*1000,ROUND(D14*'Bill Preparation'!I10/100,0)) -> 0 | J14: =ROUND(D14*'Bill Preparation'!J10/100,0) -> 0 | K14: =ROUND('Bill Preparation'!P10*C14/'Bill Preparation'!AN10,0) -> 0 | L14: =ROUND('Bill Preparation'!K10*C14/'Bill Preparation'!AN10,0) -> 0 | M14: =SUM(D14:L14) -> 0 | N14: =IF([1]Data!$B$32="Yes",0,IF(C14>AQ14/2,AS14,0)) -> 0 | O14: =ROUND('Bill Preparation'!G10*C14/'Bill Preparation'!AN10,0) -> 0 | P14: =ROUND('Bill Preparation'!M10*C14/'Bill Preparation'!AN10,0) -> 0 | Q14: =ROUND('Bill Preparation'!N10*C14/'Bill Preparation'!AN10,0) -> 0 | R14: =ROUND('Bill Preparation'!O10*C14/'Bill Preparation'!AN10,0) -> 0 | S14: =ROUND(O14*'Bill Preparation'!H10/100,0) -> 0 | T14: =IF(ROUND(O14*'Bill Preparation'!I10/100,0)>('Bill Preparation'!I10+1)*1000,('Bill Preparation'!I10+1)*1000,ROUND(O14*'Bill Preparation'!I10/100,0)) -> 0 | U14: =ROUND(O14*'Bill Preparation'!J10/100,0) -> 0 | V14: =ROUND('Bill Preparation'!Q10*C14/'Bill Preparation'!AN10,0) -> 0 | W14: =ROUND('Bill Preparation'!L10*C14/'Bill Preparation'!AN10,0) -> 0 | X14: =SUM(O14:W14) -> 0 | Y14: =IF([1]Data!$B$32="Yes",0,IF(C14>AQ14/2,AU14,0)) -> 0 | Z14: 0 | AA14: 0 | AB14: 0 | AC14: 0 | AD14: 0 | AE14: 0 | AF14: 0 | AG14: 0 | AH14: 0 | AI14: 0 | AJ14: =IF(Data!$D$3="CPS",0,ROUND(Z14*'Bill Preparation'!R10%,0)) -> 0 | AK14: 0 | AL14: =IF(Data!$D$3="CPS",ROUND((Z14+AD14)*10%,0),0) -> 0 | AM14: 0 | AN14: 0 | AP14: 2 | AQ14: 28 | AR14: ='Bill Preparation'!F10+'Bill Preparation'!M10+ROUND('Bill Preparation'!F10*'Bill Preparation'!H10/100,0)+ROUND('Bill Preparation'!F10*'Bill Preparation'!I10/100,0)+'Bill Preparation'!K10+'Bill Preparation'!N10+'Bill Preparation'!O10 -> 0 | AS14: 0 | AT14: ='Bill Preparation'!G10+'Bill Preparation'!M10+ROUND('Bill Preparation'!G10*'Bill Preparation'!H10/100,0)+ROUND('Bill Preparation'!G10*'Bill Preparation'!I10/100,0)+'Bill Preparation'!L10+'Bill Preparation'!N10+'Bill Preparation'!O10 -> 0 | AU14: 0
A15: ='Bill Preparation'!B11 -> 2024-03-01 | B15: ='Bill Preparation'!D11 -> 2024-03-31 | C15: 31 | D15: =ROUND('Bill Preparation'!F11*C15/'Bill Preparation'!AN11,0) -> 0 | E15: =ROUND('Bill Preparation'!M11*C15/'Bill Preparation'!AN11,0) -> 0 | F15: =ROUND('Bill Preparation'!N11*C15/'Bill Preparation'!AN11,0) -> 0 | G15: =ROUND('Bill Preparation'!O11*C15/'Bill Preparation'!AN11,0) -> 0 | H15: =ROUND(D15*'Bill Preparation'!H11/100,0) -> 0 | I15: =IF(ROUND(D15*'Bill Preparation'!I11/100,0)>('Bill Preparation'!I11+1)*1000,('Bill Preparation'!I11+1)*1000,ROUND(D15*'Bill Preparation'!I11/100,0)) -> 0 | J15: =ROUND(D15*'Bill Preparation'!J11/100,0) -> 0 | K15: =ROUND('Bill Preparation'!P11*C15/'Bill Preparation'!AN11,0) -> 0 | L15: =ROUND('Bill Preparation'!K11*C15/'Bill Preparation'!AN11,0) -> 0 | M15: 0 | N15: =IF([1]Data!$B$32="Yes",0,IF(C15>AQ15/2,AS15,0)) -> 0 | O15: =ROUND('Bill Preparation'!G11*C15/'Bill Preparation'!AN11,0) -> 0 | P15: =ROUND('Bill Preparation'!M11*C15/'Bill Preparation'!AN11,0) -> 0 | Q15: =ROUND('Bill Preparation'!N11*C15/'Bill Preparation'!AN11,0) -> 0 | R15: =ROUND('Bill Preparation'!O11*C15/'Bill Preparation'!AN11,0) -> 0 | S15: =ROUND(O15*'Bill Preparation'!H11/100,0) -> 0 | T15: =IF(ROUND(O15*'Bill Preparation'!I11/100,0)>('Bill Preparation'!I11+1)*1000,('Bill Preparation'!I11+1)*1000,ROUND(O15*'Bill Preparation'!I11/100,0)) -> 0 | U15: =ROUND(O15*'Bill Preparation'!J11/100,0) -> 0 | V15: =ROUND('Bill Preparation'!Q11*C15/'Bill Preparation'!AN11,0) -> 0 | W15: =ROUND('Bill Preparation'!L11*C15/'Bill Preparation'!AN11,0) -> 0 | X15: 0 | Y15: =IF([1]Data!$B$32="Yes",0,IF(C15>AQ15/2,AU15,0)) -> 0 | Z15: 0 | AA15: 0 | AB15: 0 | AC15: 0 | AD15: 0 | AE15: 0 | AF15: 0 | AG15: 0 | AH15: 0 | AI15: 0 | AJ15: =IF(Data!$D$3="CPS",0,ROUND(Z15*'Bill Preparation'!R11%,0)) -> 0 | AK15: 0 | AL15: =IF(Data!$D$3="CPS",ROUND((Z15+AD15)*10%,0),0) -> 0 | AM15: 0 | AN15: 0 | AP15: 3 | AQ15: 31 | AR15: ='Bill Preparation'!F11+'Bill Preparation'!M11+ROUND('Bill Preparation'!F11*'Bill Preparation'!H11/100,0)+ROUND('Bill Preparation'!F11*'Bill Preparation'!I11/100,0)+'Bill Preparation'!K11+'Bill Preparation'!N11+'Bill Preparation'!O11 -> 0 | AS15: 0 | AT15: ='Bill Preparation'!G11+'Bill Preparation'!M11+ROUND('Bill Preparation'!G11*'Bill Preparation'!H11/100,0)+ROUND('Bill Preparation'!G11*'Bill Preparation'!I11/100,0)+'Bill Preparation'!L11+'Bill Preparation'!N11+'Bill Preparation'!O11 -> 0 | AU15: 0
A16: ='Bill Preparation'!B12 -> 2024-04-01 | B16: ='Bill Preparation'!D12 -> 2024-04-30 | C16: 30 | D16: =ROUND('Bill Preparation'!F12*C16/'Bill Preparation'!AN12,0) -> 0 | E16: =ROUND('Bill Preparation'!M12*C16/'Bill Preparation'!AN12,0) -> 0 | F16: =ROUND('Bill Preparation'!N12*C16/'Bill Preparation'!AN12,0) -> 0 | G16: =ROUND('Bill Preparation'!O12*C16/'Bill Preparation'!AN12,0) -> 0 | H16: =ROUND(D16*'Bill Preparation'!H12/100,0) -> 0 | I16: =IF(ROUND(D16*'Bill Preparation'!I12/100,0)>('Bill Preparation'!I12+1)*1000,('Bill Preparation'!I12+1)*1000,ROUND(D16*'Bill Preparation'!I12/100,0)) -> 0 | J16: =ROUND(D16*'Bill Preparation'!J12/100,0) -> 0 | K16: =ROUND('Bill Preparation'!P12*C16/'Bill Preparation'!AN12,0) -> 0 | L16: =ROUND('Bill Preparation'!K12*C16/'Bill Preparation'!AN12,0) -> 0 | M16: 0 | N16: =IF([1]Data!$B$32="Yes",0,IF(C16>AQ16/2,AS16,0)) -> 0 | O16: =ROUND('Bill Preparation'!G12*C16/'Bill Preparation'!AN12,0) -> 0 | P16: =ROUND('Bill Preparation'!M12*C16/'Bill Preparation'!AN12,0) -> 0 | Q16: =ROUND('Bill Preparation'!N12*C16/'Bill Preparation'!AN12,0) -> 0 | R16: =ROUND('Bill Preparation'!O12*C16/'Bill Preparation'!AN12,0) -> 0 | S16: =ROUND(O16*'Bill Preparation'!H12/100,0) -> 0 | T16: =IF(ROUND(O16*'Bill Preparation'!I12/100,0)>('Bill Preparation'!I12+1)*1000,('Bill Preparation'!I12+1)*1000,ROUND(O16*'Bill Preparation'!I12/100,0)) -> 0 | U16: =ROUND(O16*'Bill Preparation'!J12/100,0) -> 0 | V16: =ROUND('Bill Preparation'!Q12*C16/'Bill Preparation'!AN12,0) -> 0 | W16: =ROUND('Bill Preparation'!L12*C16/'Bill Preparation'!AN12,0) -> 0 | X16: 0 | Y16: =IF([1]Data!$B$32="Yes",0,IF(C16>AQ16/2,AU16,0)) -> 0 | Z16: 0 | AA16: 0 | AB16: 0 | AC16: 0 | AD16: 0 | AE16: 0 | AF16: 0 | AG16: 0 | AH16: 0 | AI16: 0 | AJ16: =IF(Data!$D$3="CPS",0,ROUND(Z16*'Bill Preparation'!R12%,0)) -> 0 | AK16: 0 | AL16: =IF(Data!$D$3="CPS",ROUND((Z16+AD16)*10%,0),0) -> 0 | AM16: 0 | AN16: 0 | AP16: 4 | AQ16: 30 | AR16: ='Bill Preparation'!F12+'Bill Preparation'!M12+ROUND('Bill Preparation'!F12*'Bill Preparation'!H12/100,0)+ROUND('Bill Preparation'!F12*'Bill Preparation'!I12/100,0)+'Bill Preparation'!K12+'Bill Preparation'!N12+'Bill Preparation'!O12 -> 0 | AS16: 0 | AT16: ='Bill Preparation'!G12+'Bill Preparation'!M12+ROUND('Bill Preparation'!G12*'Bill Preparation'!H12/100,0)+ROUND('Bill Preparation'!G12*'Bill Preparation'!I12/100,0)+'Bill Preparation'!L12+'Bill Preparation'!N12+'Bill Preparation'!O12 -> 0 | AU16: 0
A17: ='Bill Preparation'!B13 -> 2024-05-01 | B17: ='Bill Preparation'!D13 -> 2024-05-31 | C17: 31 | D17: =ROUND('Bill Preparation'!F13*C17/'Bill Preparation'!AN13,0) -> 0 | E17: =ROUND('Bill Preparation'!M13*C17/'Bill Preparation'!AN13,0) -> 0 | F17: =ROUND('Bill Preparation'!N13*C17/'Bill Preparation'!AN13,0) -> 0 | G17: =ROUND('Bill Preparation'!O13*C17/'Bill Preparation'!AN13,0) -> 0 | H17: =ROUND(D17*'Bill Preparation'!H13/100,0) -> 0 | I17: =IF(ROUND(D17*'Bill Preparation'!I13/100,0)>('Bill Preparation'!I13+1)*1000,('Bill Preparation'!I13+1)*1000,ROUND(D17*'Bill Preparation'!I13/100,0)) -> 0 | J17: =ROUND(D17*'Bill Preparation'!J13/100,0) -> 0 | K17: =ROUND('Bill Preparation'!P13*C17/'Bill Preparation'!AN13,0) -> 0 | L17: =ROUND('Bill Preparation'!K13*C17/'Bill Preparation'!AN13,0) -> 0 | M17: 0 | N17: =IF([1]Data!$B$32="Yes",0,IF(C17>AQ17/2,AS17,0)) -> 0 | O17: =ROUND('Bill Preparation'!G13*C17/'Bill Preparation'!AN13,0) -> 0 | P17: =ROUND('Bill Preparation'!M13*C17/'Bill Preparation'!AN13,0) -> 0 | Q17: =ROUND('Bill Preparation'!N13*C17/'Bill Preparation'!AN13,0) -> 0 | R17: =ROUND('Bill Preparation'!O13*C17/'Bill Preparation'!AN13,0) -> 0 | S17: =ROUND(O17*'Bill Preparation'!H13/100,0) -> 0 | T17: =IF(ROUND(O17*'Bill Preparation'!I13/100,0)>('Bill Preparation'!I13+1)*1000,('Bill Preparation'!I13+1)*1000,ROUND(O17*'Bill Preparation'!I13/100,0)) -> 0 | U17: =ROUND(O17*'Bill Preparation'!J13/100,0) -> 0 | V17: =ROUND('Bill Preparation'!Q13*C17/'Bill Preparation'!AN13,0) -> 0 | W17: =ROUND('Bill Preparation'!L13*C17/'Bill Preparation'!AN13,0) -> 0 | X17: 0 | Y17: =IF([1]Data!$B$32="Yes",0,IF(C17>AQ17/2,AU17,0)) -> 0 | Z17: 0 | AA17: 0 | AB17: 0 | AC17: 0 | AD17: 0 | AE17: 0 | AF17: 0 | AG17: 0 | AH17: 0 | AI17: 0 | AJ17: =IF(Data!$D$3="CPS",0,ROUND(Z17*'Bill Preparation'!R13%,0)) -> 0 | AK17: 0 | AL17: =IF(Data!$D$3="CPS",ROUND((Z17+AD17)*10%,0),0) -> 0 | AM17: 0 | AN17: 0 | AP17: 5 | AQ17: 31 | AR17: ='Bill Preparation'!F13+'Bill Preparation'!M13+ROUND('Bill Preparation'!F13*'Bill Preparation'!H13/100,0)+ROUND('Bill Preparation'!F13*'Bill Preparation'!I13/100,0)+'Bill Preparation'!K13+'Bill Preparation'!N13+'Bill Preparation'!O13 -> 0 | AS17: 0 | AT17: ='Bill Preparation'!G13+'Bill Preparation'!M13+ROUND('Bill Preparation'!G13*'Bill Preparation'!H13/100,0)+ROUND('Bill Preparation'!G13*'Bill Preparation'!I13/100,0)+'Bill Preparation'!L13+'Bill Preparation'!N13+'Bill Preparation'!O13 -> 0 | AU17: 0
A18: ='Bill Preparation'!B14 -> 2024-06-01 | B18: ='Bill Preparation'!D14 -> 2024-06-30 | C18: 30 | D18: =ROUND('Bill Preparation'!F14*C18/'Bill Preparation'!AN14,0) -> 0 | E18: =ROUND('Bill Preparation'!M14*C18/'Bill Preparation'!AN14,0) -> 0 | F18: =ROUND('Bill Preparation'!N14*C18/'Bill Preparation'!AN14,0) -> 0 | G18: =ROUND('Bill Preparation'!O14*C18/'Bill Preparation'!AN14,0) -> 0 | H18: =ROUND(D18*'Bill Preparation'!H14/100,0) -> 0 | I18: =IF(ROUND(D18*'Bill Preparation'!I14/100,0)>('Bill Preparation'!I14+1)*1000,('Bill Preparation'!I14+1)*1000,ROUND(D18*'Bill Preparation'!I14/100,0)) -> 0 | J18: =ROUND(D18*'Bill Preparation'!J14/100,0) -> 0 | K18: =ROUND('Bill Preparation'!P14*C18/'Bill Preparation'!AN14,0) -> 0 | L18: =ROUND('Bill Preparation'!K14*C18/'Bill Preparation'!AN14,0) -> 0 | M18: 0 | N18: =IF([1]Data!$B$32="Yes",0,IF(C18>AQ18/2,AS18,0)) -> 0 | O18: =ROUND('Bill Preparation'!G14*C18/'Bill Preparation'!AN14,0) -> 0 | P18: =ROUND('Bill Preparation'!M14*C18/'Bill Preparation'!AN14,0) -> 0 | Q18: =ROUND('Bill Preparation'!N14*C18/'Bill Preparation'!AN14,0) -> 0 | R18: =ROUND('Bill Preparation'!O14*C18/'Bill Preparation'!AN14,0) -> 0 | S18: =ROUND(O18*'Bill Preparation'!H14/100,0) -> 0 | T18: =IF(ROUND(O18*'Bill Preparation'!I14/100,0)>('Bill Preparation'!I14+1)*1000,('Bill Preparation'!I14+1)*1000,ROUND(O18*'Bill Preparation'!I14/100,0)) -> 0 | U18: =ROUND(O18*'Bill Preparation'!J14/100,0) -> 0 | V18: =ROUND('Bill Preparation'!Q14*C18/'Bill Preparation'!AN14,0) -> 0 | W18: =ROUND('Bill Preparation'!L14*C18/'Bill Preparation'!AN14,0) -> 0 | X18: 0 | Y18: =IF([1]Data!$B$32="Yes",0,IF(C18>AQ18/2,AU18,0)) -> 0 | Z18: 0 | AA18: 0 | AB18: 0 | AC18: 0 | AD18: 0 | AE18: 0 | AF18: 0 | AG18: 0 | AH18: 0 | AI18: 0 | AJ18: =IF(Data!$D$3="CPS",0,ROUND(Z18*'Bill Preparation'!R14%,0)) -> 0 | AK18: 0 | AL18: =IF(Data!$D$3="CPS",ROUND((Z18+AD18)*10%,0),0) -> 0 | AM18: 0 | AN18: 0 | AP18: 6 | AQ18: 30 | AR18: ='Bill Preparation'!F14+'Bill Preparation'!M14+ROUND('Bill Preparation'!F14*'Bill Preparation'!H14/100,0)+ROUND('Bill Preparation'!F14*'Bill Preparation'!I14/100,0)+'Bill Preparation'!K14+'Bill Preparation'!N14+'Bill Preparation'!O14 -> 0 | AS18: 0 | AT18: ='Bill Preparation'!G14+'Bill Preparation'!M14+ROUND('Bill Preparation'!G14*'Bill Preparation'!H14/100,0)+ROUND('Bill Preparation'!G14*'Bill Preparation'!I14/100,0)+'Bill Preparation'!L14+'Bill Preparation'!N14+'Bill Preparation'!O14 -> 0 | AU18: 0
A19: ='Bill Preparation'!B15 -> 2024-07-01 | B19: ='Bill Preparation'!D15 -> 2024-07-31 | C19: 31 | D19: =ROUND('Bill Preparation'!F15*C19/'Bill Preparation'!AN15,0) -> 0 | E19: =ROUND('Bill Preparation'!M15*C19/'Bill Preparation'!AN15,0) -> 0 | F19: =ROUND('Bill Preparation'!N15*C19/'Bill Preparation'!AN15,0) -> 0 | G19: =ROUND('Bill Preparation'!O15*C19/'Bill Preparation'!AN15,0) -> 0 | H19: =ROUND(D19*'Bill Preparation'!H15/100,0) -> 0 | I19: =IF(ROUND(D19*'Bill Preparation'!I15/100,0)>('Bill Preparation'!I15+1)*1000,('Bill Preparation'!I15+1)*1000,ROUND(D19*'Bill Preparation'!I15/100,0)) -> 0 | J19: =ROUND(D19*'Bill Preparation'!J15/100,0) -> 0 | K19: =ROUND('Bill Preparation'!P15*C19/'Bill Preparation'!AN15,0) -> 0 | L19: =ROUND('Bill Preparation'!K15*C19/'Bill Preparation'!AN15,0) -> 0 | M19: 0 | N19: =IF([1]Data!$B$32="Yes",0,IF(C19>AQ19/2,AS19,0)) -> 0 | O19: =ROUND('Bill Preparation'!G15*C19/'Bill Preparation'!AN15,0) -> 0 | P19: =ROUND('Bill Preparation'!M15*C19/'Bill Preparation'!AN15,0) -> 0 | Q19: =ROUND('Bill Preparation'!N15*C19/'Bill Preparation'!AN15,0) -> 0 | R19: =ROUND('Bill Preparation'!O15*C19/'Bill Preparation'!AN15,0) -> 0 | S19: =ROUND(O19*'Bill Preparation'!H15/100,0) -> 0 | T19: =IF(ROUND(O19*'Bill Preparation'!I15/100,0)>('Bill Preparation'!I15+1)*1000,('Bill Preparation'!I15+1)*1000,ROUND(O19*'Bill Preparation'!I15/100,0)) -> 0 | U19: =ROUND(O19*'Bill Preparation'!J15/100,0) -> 0 | V19: =ROUND('Bill Preparation'!Q15*C19/'Bill Preparation'!AN15,0) -> 0 | W19: =ROUND('Bill Preparation'!L15*C19/'Bill Preparation'!AN15,0) -> 0 | X19: 0 | Y19: =IF([1]Data!$B$32="Yes",0,IF(C19>AQ19/2,AU19,0)) -> 0 | Z19: 0 | AA19: 0 | AB19: 0 | AC19: 0 | AD19: 0 | AE19: 0 | AF19: 0 | AG19: 0 | AH19: 0 | AI19: 0 | AJ19: =IF(Data!$D$3="CPS",0,ROUND(Z19*'Bill Preparation'!R15%,0)) -> 0 | AK19: 0 | AL19: =IF(Data!$D$3="CPS",ROUND((Z19+AD19)*10%,0),0) -> 0 | AM19: 0 | AN19: 0 | AP19: 7 | AQ19: 31 | AR19: ='Bill Preparation'!F15+'Bill Preparation'!M15+ROUND('Bill Preparation'!F15*'Bill Preparation'!H15/100,0)+ROUND('Bill Preparation'!F15*'Bill Preparation'!I15/100,0)+'Bill Preparation'!K15+'Bill Preparation'!N15+'Bill Preparation'!O15 -> 0 | AS19: 0 | AT19: ='Bill Preparation'!G15+'Bill Preparation'!M15+ROUND('Bill Preparation'!G15*'Bill Preparation'!H15/100,0)+ROUND('Bill Preparation'!G15*'Bill Preparation'!I15/100,0)+'Bill Preparation'!L15+'Bill Preparation'!N15+'Bill Preparation'!O15 -> 0 | AU19: 0
A20: ='Bill Preparation'!B16 -> 2024-08-01 | B20: ='Bill Preparation'!D16 -> 2024-08-31 | C20: 31 | D20: =ROUND('Bill Preparation'!F16*C20/'Bill Preparation'!AN16,0) -> 0 | E20: =ROUND('Bill Preparation'!M16*C20/'Bill Preparation'!AN16,0) -> 0 | F20: =ROUND('Bill Preparation'!N16*C20/'Bill Preparation'!AN16,0) -> 0 | G20: =ROUND('Bill Preparation'!O16*C20/'Bill Preparation'!AN16,0) -> 0 | H20: =ROUND(D20*'Bill Preparation'!H16/100,0) -> 0 | I20: =IF(ROUND(D20*'Bill Preparation'!I16/100,0)>('Bill Preparation'!I16+1)*1000,('Bill Preparation'!I16+1)*1000,ROUND(D20*'Bill Preparation'!I16/100,0)) -> 0 | J20: =ROUND(D20*'Bill Preparation'!J16/100,0) -> 0 | K20: =ROUND('Bill Preparation'!P16*C20/'Bill Preparation'!AN16,0) -> 0 | L20: =ROUND('Bill Preparation'!K16*C20/'Bill Preparation'!AN16,0) -> 0 | M20: 0 | N20: =IF([1]Data!$B$32="Yes",0,IF(C20>AQ20/2,AS20,0)) -> 0 | O20: =ROUND('Bill Preparation'!G16*C20/'Bill Preparation'!AN16,0) -> 0 | P20: =ROUND('Bill Preparation'!M16*C20/'Bill Preparation'!AN16,0) -> 0 | Q20: =ROUND('Bill Preparation'!N16*C20/'Bill Preparation'!AN16,0) -> 0 | R20: =ROUND('Bill Preparation'!O16*C20/'Bill Preparation'!AN16,0) -> 0 | S20: =ROUND(O20*'Bill Preparation'!H16/100,0) -> 0 | T20: =IF(ROUND(O20*'Bill Preparation'!I16/100,0)>('Bill Preparation'!I16+1)*1000,('Bill Preparation'!I16+1)*1000,ROUND(O20*'Bill Preparation'!I16/100,0)) -> 0 | U20: =ROUND(O20*'Bill Preparation'!J16/100,0) -> 0 | V20: =ROUND('Bill Preparation'!Q16*C20/'Bill Preparation'!AN16,0) -> 0 | W20: =ROUND('Bill Preparation'!L16*C20/'Bill Preparation'!AN16,0) -> 0 | X20: 0 | Y20: =IF([1]Data!$B$32="Yes",0,IF(C20>AQ20/2,AU20,0)) -> 0 | Z20: 0 | AA20: 0 | AB20: 0 | AC20: 0 | AD20: 0 | AE20: 0 | AF20: 0 | AG20: 0 | AH20: 0 | AI20: 0 | AJ20: =IF(Data!$D$3="CPS",0,ROUND(Z20*'Bill Preparation'!R16%,0)) -> 0 | AK20: 0 | AL20: =IF(Data!$D$3="CPS",ROUND((Z20+AD20)*10%,0),0) -> 0 | AM20: 0 | AN20: 0 | AP20: 8 | AQ20: 31 | AR20: ='Bill Preparation'!F16+'Bill Preparation'!M16+ROUND('Bill Preparation'!F16*'Bill Preparation'!H16/100,0)+ROUND('Bill Preparation'!F16*'Bill Preparation'!I16/100,0)+'Bill Preparation'!K16+'Bill Preparation'!N16+'Bill Preparation'!O16 -> 0 | AS20: 0 | AT20: ='Bill Preparation'!G16+'Bill Preparation'!M16+ROUND('Bill Preparation'!G16*'Bill Preparation'!H16/100,0)+ROUND('Bill Preparation'!G16*'Bill Preparation'!I16/100,0)+'Bill Preparation'!L16+'Bill Preparation'!N16+'Bill Preparation'!O16 -> 0 | AU20: 0
A21: ='Bill Preparation'!B17 -> 2024-09-01 | B21: ='Bill Preparation'!D17 -> 2024-09-30 | C21: 30 | D21: =ROUND('Bill Preparation'!F17*C21/'Bill Preparation'!AN17,0) -> 0 | E21: =ROUND('Bill Preparation'!M17*C21/'Bill Preparation'!AN17,0) -> 0 | F21: =ROUND('Bill Preparation'!N17*C21/'Bill Preparation'!AN17,0) -> 0 | G21: =ROUND('Bill Preparation'!O17*C21/'Bill Preparation'!AN17,0) -> 0 | H21: =ROUND(D21*'Bill Preparation'!H17/100,0) -> 0 | I21: =IF(ROUND(D21*'Bill Preparation'!I17/100,0)>('Bill Preparation'!I17+1)*1000,('Bill Preparation'!I17+1)*1000,ROUND(D21*'Bill Preparation'!I17/100,0)) -> 0 | J21: =ROUND(D21*'Bill Preparation'!J17/100,0) -> 0 | K21: =ROUND('Bill Preparation'!P17*C21/'Bill Preparation'!AN17,0) -> 0 | L21: =ROUND('Bill Preparation'!K17*C21/'Bill Preparation'!AN17,0) -> 0 | M21: 0 | N21: =IF([1]Data!$B$32="Yes",0,IF(C21>AQ21/2,AS21,0)) -> 0 | O21: =ROUND('Bill Preparation'!G17*C21/'Bill Preparation'!AN17,0) -> 0 | P21: =ROUND('Bill Preparation'!M17*C21/'Bill Preparation'!AN17,0) -> 0 | Q21: =ROUND('Bill Preparation'!N17*C21/'Bill Preparation'!AN17,0) -> 0 | R21: =ROUND('Bill Preparation'!O17*C21/'Bill Preparation'!AN17,0) -> 0 | S21: =ROUND(O21*'Bill Preparation'!H17/100,0) -> 0 | T21: =IF(ROUND(O21*'Bill Preparation'!I17/100,0)>('Bill Preparation'!I17+1)*1000,('Bill Preparation'!I17+1)*1000,ROUND(O21*'Bill Preparation'!I17/100,0)) -> 0 | U21: =ROUND(O21*'Bill Preparation'!J17/100,0) -> 0 | V21: =ROUND('Bill Preparation'!Q17*C21/'Bill Preparation'!AN17,0) -> 0 | W21: =ROUND('Bill Preparation'!L17*C21/'Bill Preparation'!AN17,0) -> 0 | X21: 0 | Y21: =IF([1]Data!$B$32="Yes",0,IF(C21>AQ21/2,AU21,0)) -> 0 | Z21: 0 | AA21: 0 | AB21: 0 | AC21: 0 | AD21: 0 | AE21: 0 | AF21: 0 | AG21: 0 | AH21: 0 | AI21: 0 | AJ21: =IF(Data!$D$3="CPS",0,ROUND(Z21*'Bill Preparation'!R17%,0)) -> 0 | AK21: 0 | AL21: =IF(Data!$D$3="CPS",ROUND((Z21+AD21)*10%,0),0) -> 0 | AM21: 0 | AN21: 0 | AP21: 9 | AQ21: 30 | AR21: ='Bill Preparation'!F17+'Bill Preparation'!M17+ROUND('Bill Preparation'!F17*'Bill Preparation'!H17/100,0)+ROUND('Bill Preparation'!F17*'Bill Preparation'!I17/100,0)+'Bill Preparation'!K17+'Bill Preparation'!N17+'Bill Preparation'!O17 -> 0 | AS21: 0 | AT21: ='Bill Preparation'!G17+'Bill Preparation'!M17+ROUND('Bill Preparation'!G17*'Bill Preparation'!H17/100,0)+ROUND('Bill Preparation'!G17*'Bill Preparation'!I17/100,0)+'Bill Preparation'!L17+'Bill Preparation'!N17+'Bill Preparation'!O17 -> 0 | AU21: 0
A22: ='Bill Preparation'!B18 -> 2024-10-01 | B22: ='Bill Preparation'!D18 -> 2024-10-31 | C22: 31 | D22: =ROUND('Bill Preparation'!F18*C22/'Bill Preparation'!AN18,0) -> 0 | E22: =ROUND('Bill Preparation'!M18*C22/'Bill Preparation'!AN18,0) -> 0 | F22: =ROUND('Bill Preparation'!N18*C22/'Bill Preparation'!AN18,0) -> 0 | G22: =ROUND('Bill Preparation'!O18*C22/'Bill Preparation'!AN18,0) -> 0 | H22: =ROUND(D22*'Bill Preparation'!H18/100,0) -> 0 | I22: =IF(ROUND(D22*'Bill Preparation'!I18/100,0)>('Bill Preparation'!I18+1)*1000,('Bill Preparation'!I18+1)*1000,ROUND(D22*'Bill Preparation'!I18/100,0)) -> 0 | J22: =ROUND(D22*'Bill Preparation'!J18/100,0) -> 0 | K22: =ROUND('Bill Preparation'!P18*C22/'Bill Preparation'!AN18,0) -> 0 | L22: =ROUND('Bill Preparation'!K18*C22/'Bill Preparation'!AN18,0) -> 0 | M22: 0 | N22: =IF([1]Data!$B$32="Yes",0,IF(C22>AQ22/2,AS22,0)) -> 0 | O22: =ROUND('Bill Preparation'!G18*C22/'Bill Preparation'!AN18,0) -> 0 | P22: =ROUND('Bill Preparation'!M18*C22/'Bill Preparation'!AN18,0) -> 0 | Q22: =ROUND('Bill Preparation'!N18*C22/'Bill Preparation'!AN18,0) -> 0 | R22: =ROUND('Bill Preparation'!O18*C22/'Bill Preparation'!AN18,0) -> 0 | S22: =ROUND(O22*'Bill Preparation'!H18/100,0) -> 0 | T22: =IF(ROUND(O22*'Bill Preparation'!I18/100,0)>('Bill Preparation'!I18+1)*1000,('Bill Preparation'!I18+1)*1000,ROUND(O22*'Bill Preparation'!I18/100,0)) -> 0 | U22: =ROUND(O22*'Bill Preparation'!J18/100,0) -> 0 | V22: =ROUND('Bill Preparation'!Q18*C22/'Bill Preparation'!AN18,0) -> 0 | W22: =ROUND('Bill Preparation'!L18*C22/'Bill Preparation'!AN18,0) -> 0 | X22: 0 | Y22: =IF([1]Data!$B$32="Yes",0,IF(C22>AQ22/2,AU22,0)) -> 0 | Z22: 0 | AA22: 0 | AB22: 0 | AC22: 0 | AD22: 0 | AE22: 0 | AF22: 0 | AG22: 0 | AH22: 0 | AI22: 0 | AJ22: =IF(Data!$D$3="CPS",0,ROUND(Z22*'Bill Preparation'!R18%,0)) -> 0 | AK22: 0 | AL22: =IF(Data!$D$3="CPS",ROUND((Z22+AD22)*10%,0),0) -> 0 | AM22: 0 | AN22: 0 | AP22: 10 | AQ22: 31 | AR22: ='Bill Preparation'!F18+'Bill Preparation'!M18+ROUND('Bill Preparation'!F18*'Bill Preparation'!H18/100,0)+ROUND('Bill Preparation'!F18*'Bill Preparation'!I18/100,0)+'Bill Preparation'!K18+'Bill Preparation'!N18+'Bill Preparation'!O18 -> 0 | AS22: 0 | AT22: ='Bill Preparation'!G18+'Bill Preparation'!M18+ROUND('Bill Preparation'!G18*'Bill Preparation'!H18/100,0)+ROUND('Bill Preparation'!G18*'Bill Preparation'!I18/100,0)+'Bill Preparation'!L18+'Bill Preparation'!N18+'Bill Preparation'!O18 -> 0 | AU22: 0
A23: ='Bill Preparation'!B19 -> 2024-11-01 | B23: ='Bill Preparation'!D19 -> 2024-11-30 | C23: 30 | D23: =ROUND('Bill Preparation'!F19*C23/'Bill Preparation'!AN19,0) -> 0 | E23: =ROUND('Bill Preparation'!M19*C23/'Bill Preparation'!AN19,0) -> 0 | F23: =ROUND('Bill Preparation'!N19*C23/'Bill Preparation'!AN19,0) -> 0 | G23: =ROUND('Bill Preparation'!O19*C23/'Bill Preparation'!AN19,0) -> 0 | H23: =ROUND(D23*'Bill Preparation'!H19/100,0) -> 0 | I23: =IF(ROUND(D23*'Bill Preparation'!I19/100,0)>('Bill Preparation'!I19+1)*1000,('Bill Preparation'!I19+1)*1000,ROUND(D23*'Bill Preparation'!I19/100,0)) -> 0 | J23: =ROUND(D23*'Bill Preparation'!J19/100,0) -> 0 | K23: =ROUND('Bill Preparation'!P19*C23/'Bill Preparation'!AN19,0) -> 0 | L23: =ROUND('Bill Preparation'!K19*C23/'Bill Preparation'!AN19,0) -> 0 | M23: 0 | N23: =IF([1]Data!$B$32="Yes",0,IF(C23>AQ23/2,AS23,0)) -> 0 | O23: =ROUND('Bill Preparation'!G19*C23/'Bill Preparation'!AN19,0) -> 0 | P23: =ROUND('Bill Preparation'!M19*C23/'Bill Preparation'!AN19,0) -> 0 | Q23: =ROUND('Bill Preparation'!N19*C23/'Bill Preparation'!AN19,0) -> 0 | R23: =ROUND('Bill Preparation'!O19*C23/'Bill Preparation'!AN19,0) -> 0 | S23: =ROUND(O23*'Bill Preparation'!H19/100,0) -> 0 | T23: =IF(ROUND(O23*'Bill Preparation'!I19/100,0)>('Bill Preparation'!I19+1)*1000,('Bill Preparation'!I19+1)*1000,ROUND(O23*'Bill Preparation'!I19/100,0)) -> 0 | U23: =ROUND(O23*'Bill Preparation'!J19/100,0) -> 0 | V23: =ROUND('Bill Preparation'!Q19*C23/'Bill Preparation'!AN19,0) -> 0 | W23: =ROUND('Bill Preparation'!L19*C23/'Bill Preparation'!AN19,0) -> 0 | X23: 0 | Y23: =IF([1]Data!$B$32="Yes",0,IF(C23>AQ23/2,AU23,0)) -> 0 | Z23: =D23-O23 -> 0 | AA23: 0 | AB23: 0 | AC23: 0 | AD23: 0 | AE23: 0 | AF23: 0 | AG23: 0 | AH23: 0 | AI23: 0 | AJ23: =IF(Data!$D$3="CPS",0,ROUND(Z23*'Bill Preparation'!R19%,0)) -> 0 | AK23: 0 | AL23: =IF(Data!$D$3="CPS",ROUND((Z23+AD23)*10%,0),0) -> 0 | AM23: 0 | AN23: 0 | AP23: 11 | AQ23: 30 | AR23: ='Bill Preparation'!F19+'Bill Preparation'!M19+ROUND('Bill Preparation'!F19*'Bill Preparation'!H19/100,0)+ROUND('Bill Preparation'!F19*'Bill Preparation'!I19/100,0)+'Bill Preparation'!K19+'Bill Preparation'!N19+'Bill Preparation'!O19 -> 0 | AS23: 0 | AT23: ='Bill Preparation'!G19+'Bill Preparation'!M19+ROUND('Bill Preparation'!G19*'Bill Preparation'!H19/100,0)+ROUND('Bill Preparation'!G19*'Bill Preparation'!I19/100,0)+'Bill Preparation'!L19+'Bill Preparation'!N19+'Bill Preparation'!O19 -> 0 | AU23: 0
A24: ='Bill Preparation'!B20 -> 2024-12-01 | B24: ='Bill Preparation'!D20 -> 2024-12-31 | C24: 31 | D24: =ROUND('Bill Preparation'!F20*C24/'Bill Preparation'!AN20,0) -> 0 | E24: =ROUND('Bill Preparation'!M20*C24/'Bill Preparation'!AN20,0) -> 0 | F24: =ROUND('Bill Preparation'!N20*C24/'Bill Preparation'!AN20,0) -> 0 | G24: =ROUND('Bill Preparation'!O20*C24/'Bill Preparation'!AN20,0) -> 0 | H24: =ROUND(D24*'Bill Preparation'!H20/100,0) -> 0 | I24: =IF(ROUND(D24*'Bill Preparation'!I20/100,0)>('Bill Preparation'!I20+1)*1000,('Bill Preparation'!I20+1)*1000,ROUND(D24*'Bill Preparation'!I20/100,0)) -> 0 | J24: =ROUND(D24*'Bill Preparation'!J20/100,0) -> 0 | K24: =ROUND('Bill Preparation'!P20*C24/'Bill Preparation'!AN20,0) -> 0 | L24: =ROUND('Bill Preparation'!K20*C24/'Bill Preparation'!AN20,0) -> 0 | M24: 0 | N24: =IF([1]Data!$B$32="Yes",0,IF(C24>AQ24/2,AS24,0)) -> 0 | O24: =ROUND('Bill Preparation'!G20*C24/'Bill Preparation'!AN20,0) -> 0 | P24: =ROUND('Bill Preparation'!M20*C24/'Bill Preparation'!AN20,0) -> 0 | Q24: =ROUND('Bill Preparation'!N20*C24/'Bill Preparation'!AN20,0) -> 0 | R24: =ROUND('Bill Preparation'!O20*C24/'Bill Preparation'!AN20,0) -> 0 | S24: =ROUND(O24*'Bill Preparation'!H20/100,0) -> 0 | T24: =IF(ROUND(O24*'Bill Preparation'!I20/100,0)>('Bill Preparation'!I20+1)*1000,('Bill Preparation'!I20+1)*1000,ROUND(O24*'Bill Preparation'!I20/100,0)) -> 0 | U24: =ROUND(O24*'Bill Preparation'!J20/100,0) -> 0 | V24: =ROUND('Bill Preparation'!Q20*C24/'Bill Preparation'!AN20,0) -> 0 | W24: =ROUND('Bill Preparation'!L20*C24/'Bill Preparation'!AN20,0) -> 0 | X24: 0 | Y24: =IF([1]Data!$B$32="Yes",0,IF(C24>AQ24/2,AU24,0)) -> 0 | Z24: 0 | AA24: 0 | AB24: 0 | AC24: 0 | AD24: 0 | AE24: 0 | AF24: 0 | AG24: 0 | AH24: 0 | AI24: 0 | AJ24: =IF(Data!$D$3="CPS",0,ROUND(Z24*'Bill Preparation'!R20%,0)) -> 0 | AK24: 0 | AL24: =IF(Data!$D$3="CPS",ROUND((Z24+AD24)*10%,0),0) -> 0 | AM24: 0 | AN24: 0 | AP24: 12 | AQ24: 31 | AR24: ='Bill Preparation'!F20+'Bill Preparation'!M20+ROUND('Bill Preparation'!F20*'Bill Preparation'!H20/100,0)+ROUND('Bill Preparation'!F20*'Bill Preparation'!I20/100,0)+'Bill Preparation'!K20+'Bill Preparation'!N20+'Bill Preparation'!O20 -> 0 | AS24: 0 | AT24: ='Bill Preparation'!G20+'Bill Preparation'!M20+ROUND('Bill Preparation'!G20*'Bill Preparation'!H20/100,0)+ROUND('Bill Preparation'!G20*'Bill Preparation'!I20/100,0)+'Bill Preparation'!L20+'Bill Preparation'!N20+'Bill Preparation'!O20 -> 0 | AU24: 0
A25: ='Bill Preparation'!B21 -> 2025-01-01 | B25: ='Bill Preparation'!D21 -> 2025-01-31 | C25: 31 | D25: =ROUND('Bill Preparation'!F21*C25/'Bill Preparation'!AN21,0) -> 0 | E25: =ROUND('Bill Preparation'!M21*C25/'Bill Preparation'!AN21,0) -> 0 | F25: =ROUND('Bill Preparation'!N21*C25/'Bill Preparation'!AN21,0) -> 0 | G25: =ROUND('Bill Preparation'!O21*C25/'Bill Preparation'!AN21,0) -> 0 | H25: =ROUND(D25*'Bill Preparation'!H21/100,0) -> 0 | I25: =IF(ROUND(D25*'Bill Preparation'!I21/100,0)>('Bill Preparation'!I21+1)*1000,('Bill Preparation'!I21+1)*1000,ROUND(D25*'Bill Preparation'!I21/100,0)) -> 0 | J25: =ROUND(D25*'Bill Preparation'!J21/100,0) -> 0 | K25: =ROUND('Bill Preparation'!P21*C25/'Bill Preparation'!AN21,0) -> 0 | L25: =ROUND('Bill Preparation'!K21*C25/'Bill Preparation'!AN21,0) -> 0 | M25: 0 | N25: =IF([1]Data!$B$32="Yes",0,IF(C25>AQ25/2,AS25,0)) -> 0 | O25: =ROUND('Bill Preparation'!G21*C25/'Bill Preparation'!AN21,0) -> 0 | P25: =ROUND('Bill Preparation'!M21*C25/'Bill Preparation'!AN21,0) -> 0 | Q25: =ROUND('Bill Preparation'!N21*C25/'Bill Preparation'!AN21,0) -> 0 | R25: =ROUND('Bill Preparation'!O21*C25/'Bill Preparation'!AN21,0) -> 0 | S25: =ROUND(O25*'Bill Preparation'!H21/100,0) -> 0 | T25: =IF(ROUND(O25*'Bill Preparation'!I21/100,0)>('Bill Preparation'!I21+1)*1000,('Bill Preparation'!I21+1)*1000,ROUND(O25*'Bill Preparation'!I21/100,0)) -> 0 | U25: =ROUND(O25*'Bill Preparation'!J21/100,0) -> 0 | V25: =ROUND('Bill Preparation'!Q21*C25/'Bill Preparation'!AN21,0) -> 0 | W25: =ROUND('Bill Preparation'!L21*C25/'Bill Preparation'!AN21,0) -> 0 | X25: 0 | Y25: =IF([1]Data!$B$32="Yes",0,IF(C25>AQ25/2,AU25,0)) -> 0 | Z25: 0 | AA25: 0 | AB25: 0 | AC25: 0 | AD25: 0 | AE25: 0 | AF25: 0 | AG25: 0 | AH25: 0 | AI25: 0 | AJ25: =IF(Data!$D$3="CPS",0,ROUND(Z25*'Bill Preparation'!R21%,0)) -> 0 | AK25: 0 | AL25: =IF(Data!$D$3="CPS",ROUND((Z25+AD25)*10%,0),0) -> 0 | AM25: 0 | AN25: 0 | AP25: 1 | AQ25: 31 | AR25: ='Bill Preparation'!F21+'Bill Preparation'!M21+ROUND('Bill Preparation'!F21*'Bill Preparation'!H21/100,0)+ROUND('Bill Preparation'!F21*'Bill Preparation'!I21/100,0)+'Bill Preparation'!K21+'Bill Preparation'!N21+'Bill Preparation'!O21 -> 0 | AS25: 0 | AT25: ='Bill Preparation'!G21+'Bill Preparation'!M21+ROUND('Bill Preparation'!G21*'Bill Preparation'!H21/100,0)+ROUND('Bill Preparation'!G21*'Bill Preparation'!I21/100,0)+'Bill Preparation'!L21+'Bill Preparation'!N21+'Bill Preparation'!O21 -> 0 | AU25: 0
A26: ='Bill Preparation'!B22 -> 2025-02-01 | B26: ='Bill Preparation'!D22 -> 2025-02-28 | C26: 28 | D26: =ROUND('Bill Preparation'!F22*C26/'Bill Preparation'!AN22,0) -> 0 | E26: =ROUND('Bill Preparation'!M22*C26/'Bill Preparation'!AN22,0) -> 0 | F26: =ROUND('Bill Preparation'!N22*C26/'Bill Preparation'!AN22,0) -> 0 | G26: =ROUND('Bill Preparation'!O22*C26/'Bill Preparation'!AN22,0) -> 0 | H26: =ROUND(D26*'Bill Preparation'!H22/100,0) -> 0 | I26: =IF(ROUND(D26*'Bill Preparation'!I22/100,0)>('Bill Preparation'!I22+1)*1000,('Bill Preparation'!I22+1)*1000,ROUND(D26*'Bill Preparation'!I22/100,0)) -> 0 | J26: =ROUND(D26*'Bill Preparation'!J22/100,0) -> 0 | K26: =ROUND('Bill Preparation'!P22*C26/'Bill Preparation'!AN22,0) -> 0 | L26: =ROUND('Bill Preparation'!K22*C26/'Bill Preparation'!AN22,0) -> 0 | M26: 0 | N26: =IF([1]Data!$B$32="Yes",0,IF(C26>AQ26/2,AS26,0)) -> 0 | O26: =ROUND('Bill Preparation'!G22*C26/'Bill Preparation'!AN22,0) -> 0 | P26: =ROUND('Bill Preparation'!M22*C26/'Bill Preparation'!AN22,0) -> 0 | Q26: =ROUND('Bill Preparation'!N22*C26/'Bill Preparation'!AN22,0) -> 0 | R26: =ROUND('Bill Preparation'!O22*C26/'Bill Preparation'!AN22,0) -> 0 | S26: =ROUND(O26*'Bill Preparation'!H22/100,0) -> 0 | T26: =IF(ROUND(O26*'Bill Preparation'!I22/100,0)>('Bill Preparation'!I22+1)*1000,('Bill Preparation'!I22+1)*1000,ROUND(O26*'Bill Preparation'!I22/100,0)) -> 0 | U26: =ROUND(O26*'Bill Preparation'!J22/100,0) -> 0 | V26: =ROUND('Bill Preparation'!Q22*C26/'Bill Preparation'!AN22,0) -> 0 | W26: =ROUND('Bill Preparation'!L22*C26/'Bill Preparation'!AN22,0) -> 0 | X26: 0 | Y26: =IF([1]Data!$B$32="Yes",0,IF(C26>AQ26/2,AU26,0)) -> 0 | Z26: 0 | AA26: 0 | AB26: 0 | AC26: 0 | AD26: 0 | AE26: 0 | AF26: 0 | AG26: 0 | AH26: 0 | AI26: 0 | AJ26: =IF(Data!$D$3="CPS",0,ROUND(Z26*'Bill Preparation'!R22%,0)) -> 0 | AK26: 0 | AL26: =IF(Data!$D$3="CPS",ROUND((Z26+AD26)*10%,0),0) -> 0 | AM26: 0 | AN26: 0 | AP26: 2 | AQ26: 28 | AR26: ='Bill Preparation'!F22+'Bill Preparation'!M22+ROUND('Bill Preparation'!F22*'Bill Preparation'!H22/100,0)+ROUND('Bill Preparation'!F22*'Bill Preparation'!I22/100,0)+'Bill Preparation'!K22+'Bill Preparation'!N22+'Bill Preparation'!O22 -> 0 | AS26: 0 | AT26: ='Bill Preparation'!G22+'Bill Preparation'!M22+ROUND('Bill Preparation'!G22*'Bill Preparation'!H22/100,0)+ROUND('Bill Preparation'!G22*'Bill Preparation'!I22/100,0)+'Bill Preparation'!L22+'Bill Preparation'!N22+'Bill Preparation'!O22 -> 0 | AU26: 0
A27: ='Bill Preparation'!B23 -> 2025-03-01 | B27: ='Bill Preparation'!D23 -> 2025-03-31 | C27: 31 | D27: =ROUND('Bill Preparation'!F23*C27/'Bill Preparation'!AN23,0) -> 0 | E27: =ROUND('Bill Preparation'!M23*C27/'Bill Preparation'!AN23,0) -> 0 | F27: =ROUND('Bill Preparation'!N23*C27/'Bill Preparation'!AN23,0) -> 0 | G27: =ROUND('Bill Preparation'!O23*C27/'Bill Preparation'!AN23,0) -> 0 | H27: =ROUND(D27*'Bill Preparation'!H23/100,0) -> 0 | I27: =IF(ROUND(D27*'Bill Preparation'!I23/100,0)>('Bill Preparation'!I23+1)*1000,('Bill Preparation'!I23+1)*1000,ROUND(D27*'Bill Preparation'!I23/100,0)) -> 0 | J27: =ROUND(D27*'Bill Preparation'!J23/100,0) -> 0 | K27: =ROUND('Bill Preparation'!P23*C27/'Bill Preparation'!AN23,0) -> 0 | L27: =ROUND('Bill Preparation'!K23*C27/'Bill Preparation'!AN23,0) -> 0 | M27: 0 | N27: =IF([1]Data!$B$32="Yes",0,IF(C27>AQ27/2,AS27,0)) -> 0 | O27: =ROUND('Bill Preparation'!G23*C27/'Bill Preparation'!AN23,0) -> 0 | P27: =ROUND('Bill Preparation'!M23*C27/'Bill Preparation'!AN23,0) -> 0 | Q27: =ROUND('Bill Preparation'!N23*C27/'Bill Preparation'!AN23,0) -> 0 | R27: =ROUND('Bill Preparation'!O23*C27/'Bill Preparation'!AN23,0) -> 0 | S27: =ROUND(O27*'Bill Preparation'!H23/100,0) -> 0 | T27: =IF(ROUND(O27*'Bill Preparation'!I23/100,0)>('Bill Preparation'!I23+1)*1000,('Bill Preparation'!I23+1)*1000,ROUND(O27*'Bill Preparation'!I23/100,0)) -> 0 | U27: =ROUND(O27*'Bill Preparation'!J23/100,0) -> 0 | V27: =ROUND('Bill Preparation'!Q23*C27/'Bill Preparation'!AN23,0) -> 0 | W27: =ROUND('Bill Preparation'!L23*C27/'Bill Preparation'!AN23,0) -> 0 | X27: 0 | Y27: =IF([1]Data!$B$32="Yes",0,IF(C27>AQ27/2,AU27,0)) -> 0 | Z27: 0 | AA27: 0 | AB27: 0 | AC27: 0 | AD27: 0 | AE27: 0 | AF27: 0 | AG27: 0 | AH27: 0 | AI27: 0 | AJ27: =IF(Data!$D$3="CPS",0,ROUND(Z27*'Bill Preparation'!R23%,0)) -> 0 | AK27: 0 | AL27: =IF(Data!$D$3="CPS",ROUND((Z27+AD27)*10%,0),0) -> 0 | AM27: 0 | AN27: 0 | AP27: 3 | AQ27: 31 | AR27: ='Bill Preparation'!F23+'Bill Preparation'!M23+ROUND('Bill Preparation'!F23*'Bill Preparation'!H23/100,0)+ROUND('Bill Preparation'!F23*'Bill Preparation'!I23/100,0)+'Bill Preparation'!K23+'Bill Preparation'!N23+'Bill Preparation'!O23 -> 0 | AS27: 0 | AT27: ='Bill Preparation'!G23+'Bill Preparation'!M23+ROUND('Bill Preparation'!G23*'Bill Preparation'!H23/100,0)+ROUND('Bill Preparation'!G23*'Bill Preparation'!I23/100,0)+'Bill Preparation'!L23+'Bill Preparation'!N23+'Bill Preparation'!O23 -> 0 | AU27: 0
A28: ='Bill Preparation'!B24 -> 2025-04-01 | B28: ='Bill Preparation'!D24 -> 2025-04-30 | C28: 30 | D28: =ROUND('Bill Preparation'!F24*C28/'Bill Preparation'!AN24,0) -> 0 | E28: =ROUND('Bill Preparation'!M24*C28/'Bill Preparation'!AN24,0) -> 0 | F28: =ROUND('Bill Preparation'!N24*C28/'Bill Preparation'!AN24,0) -> 0 | G28: =ROUND('Bill Preparation'!O24*C28/'Bill Preparation'!AN24,0) -> 0 | H28: =ROUND(D28*'Bill Preparation'!H24/100,0) -> 0 | I28: =IF(ROUND(D28*'Bill Preparation'!I24/100,0)>('Bill Preparation'!I24+1)*1000,('Bill Preparation'!I24+1)*1000,ROUND(D28*'Bill Preparation'!I24/100,0)) -> 0 | J28: =ROUND(D28*'Bill Preparation'!J24/100,0) -> 0 | K28: =ROUND('Bill Preparation'!P24*C28/'Bill Preparation'!AN24,0) -> 0 | L28: =ROUND('Bill Preparation'!K24*C28/'Bill Preparation'!AN24,0) -> 0 | M28: 0 | N28: =IF([1]Data!$B$32="Yes",0,IF(C28>AQ28/2,AS28,0)) -> 0 | O28: =ROUND('Bill Preparation'!G24*C28/'Bill Preparation'!AN24,0) -> 0 | P28: =ROUND('Bill Preparation'!M24*C28/'Bill Preparation'!AN24,0) -> 0 | Q28: =ROUND('Bill Preparation'!N24*C28/'Bill Preparation'!AN24,0) -> 0 | R28: =ROUND('Bill Preparation'!O24*C28/'Bill Preparation'!AN24,0) -> 0 | S28: =ROUND(O28*'Bill Preparation'!H24/100,0) -> 0 | T28: =IF(ROUND(O28*'Bill Preparation'!I24/100,0)>('Bill Preparation'!I24+1)*1000,('Bill Preparation'!I24+1)*1000,ROUND(O28*'Bill Preparation'!I24/100,0)) -> 0 | U28: =ROUND(O28*'Bill Preparation'!J24/100,0) -> 0 | V28: =ROUND('Bill Preparation'!Q24*C28/'Bill Preparation'!AN24,0) -> 0 | W28: =ROUND('Bill Preparation'!L24*C28/'Bill Preparation'!AN24,0) -> 0 | X28: 0 | Y28: =IF([1]Data!$B$32="Yes",0,IF(C28>AQ28/2,AU28,0)) -> 0 | Z28: 0 | AA28: 0 | AB28: 0 | AC28: 0 | AD28: 0 | AE28: 0 | AF28: 0 | AG28: 0 | AH28: 0 | AI28: 0 | AJ28: =IF(Data!$D$3="CPS",0,ROUND(Z28*'Bill Preparation'!R24%,0)) -> 0 | AK28: 0 | AL28: =IF(Data!$D$3="CPS",ROUND((Z28+AD28)*10%,0),0) -> 0 | AM28: 0 | AN28: 0 | AP28: 4 | AQ28: 30 | AR28: ='Bill Preparation'!F24+'Bill Preparation'!M24+ROUND('Bill Preparation'!F24*'Bill Preparation'!H24/100,0)+ROUND('Bill Preparation'!F24*'Bill Preparation'!I24/100,0)+'Bill Preparation'!K24+'Bill Preparation'!N24+'Bill Preparation'!O24 -> 0 | AS28: 0 | AT28: ='Bill Preparation'!G24+'Bill Preparation'!M24+ROUND('Bill Preparation'!G24*'Bill Preparation'!H24/100,0)+ROUND('Bill Preparation'!G24*'Bill Preparation'!I24/100,0)+'Bill Preparation'!L24+'Bill Preparation'!N24+'Bill Preparation'!O24 -> 0 | AU28: 0
A29: ='Bill Preparation'!B25 -> 2025-05-01 | B29: ='Bill Preparation'!D25 -> 2025-05-31 | C29: 31 | D29: =ROUND('Bill Preparation'!F25*C29/'Bill Preparation'!AN25,0) -> 0 | E29: =ROUND('Bill Preparation'!M25*C29/'Bill Preparation'!AN25,0) -> 0 | F29: =ROUND('Bill Preparation'!N25*C29/'Bill Preparation'!AN25,0) -> 0 | G29: =ROUND('Bill Preparation'!O25*C29/'Bill Preparation'!AN25,0) -> 0 | H29: =ROUND(D29*'Bill Preparation'!H25/100,0) -> 0 | I29: =IF(ROUND(D29*'Bill Preparation'!I25/100,0)>('Bill Preparation'!I25+1)*1000,('Bill Preparation'!I25+1)*1000,ROUND(D29*'Bill Preparation'!I25/100,0)) -> 0 | J29: =ROUND(D29*'Bill Preparation'!J25/100,0) -> 0 | K29: =ROUND('Bill Preparation'!P25*C29/'Bill Preparation'!AN25,0) -> 0 | L29: =ROUND('Bill Preparation'!K25*C29/'Bill Preparation'!AN25,0) -> 0 | M29: 0 | N29: =IF([1]Data!$B$32="Yes",0,IF(C29>AQ29/2,AS29,0)) -> 0 | O29: =ROUND('Bill Preparation'!G25*C29/'Bill Preparation'!AN25,0) -> 0 | P29: =ROUND('Bill Preparation'!M25*C29/'Bill Preparation'!AN25,0) -> 0 | Q29: =ROUND('Bill Preparation'!N25*C29/'Bill Preparation'!AN25,0) -> 0 | R29: =ROUND('Bill Preparation'!O25*C29/'Bill Preparation'!AN25,0) -> 0 | S29: =ROUND(O29*'Bill Preparation'!H25/100,0) -> 0 | T29: =IF(ROUND(O29*'Bill Preparation'!I25/100,0)>('Bill Preparation'!I25+1)*1000,('Bill Preparation'!I25+1)*1000,ROUND(O29*'Bill Preparation'!I25/100,0)) -> 0 | U29: =ROUND(O29*'Bill Preparation'!J25/100,0) -> 0 | V29: =ROUND('Bill Preparation'!Q25*C29/'Bill Preparation'!AN25,0) -> 0 | W29: =ROUND('Bill Preparation'!L25*C29/'Bill Preparation'!AN25,0) -> 0 | X29: 0 | Y29: =IF([1]Data!$B$32="Yes",0,IF(C29>AQ29/2,AU29,0)) -> 0 | Z29: 0 | AA29: 0 | AB29: 0 | AC29: 0 | AD29: 0 | AE29: 0 | AF29: 0 | AG29: 0 | AH29: 0 | AI29: 0 | AJ29: =IF(Data!$D$3="CPS",0,ROUND(Z29*'Bill Preparation'!R25%,0)) -> 0 | AK29: 0 | AL29: =IF(Data!$D$3="CPS",ROUND((Z29+AD29)*10%,0),0) -> 0 | AM29: 0 | AN29: 0 | AP29: 5 | AQ29: 31 | AR29: ='Bill Preparation'!F25+'Bill Preparation'!M25+ROUND('Bill Preparation'!F25*'Bill Preparation'!H25/100,0)+ROUND('Bill Preparation'!F25*'Bill Preparation'!I25/100,0)+'Bill Preparation'!K25+'Bill Preparation'!N25+'Bill Preparation'!O25 -> 0 | AS29: 0 | AT29: ='Bill Preparation'!G25+'Bill Preparation'!M25+ROUND('Bill Preparation'!G25*'Bill Preparation'!H25/100,0)+ROUND('Bill Preparation'!G25*'Bill Preparation'!I25/100,0)+'Bill Preparation'!L25+'Bill Preparation'!N25+'Bill Preparation'!O25 -> 0 | AU29: 0
A30: ='Bill Preparation'!B26 -> 2025-06-01 | B30: ='Bill Preparation'!D26 -> 2025-06-30 | C30: 30 | D30: =ROUND('Bill Preparation'!F26*C30/'Bill Preparation'!AN26,0) -> 0 | E30: =ROUND('Bill Preparation'!M26*C30/'Bill Preparation'!AN26,0) -> 0 | F30: =ROUND('Bill Preparation'!N26*C30/'Bill Preparation'!AN26,0) -> 0 | G30: =ROUND('Bill Preparation'!O26*C30/'Bill Preparation'!AN26,0) -> 0 | H30: =ROUND(D30*'Bill Preparation'!H26/100,0) -> 0 | I30: =IF(ROUND(D30*'Bill Preparation'!I26/100,0)>('Bill Preparation'!I26+1)*1000,('Bill Preparation'!I26+1)*1000,ROUND(D30*'Bill Preparation'!I26/100,0)) -> 0 | J30: =ROUND(D30*'Bill Preparation'!J26/100,0) -> 0 | K30: =ROUND('Bill Preparation'!P26*C30/'Bill Preparation'!AN26,0) -> 0 | L30: =ROUND('Bill Preparation'!K26*C30/'Bill Preparation'!AN26,0) -> 0 | M30: 0 | N30: =IF([1]Data!$B$32="Yes",0,IF(C30>AQ30/2,AS30,0)) -> 0 | O30: =ROUND('Bill Preparation'!G26*C30/'Bill Preparation'!AN26,0) -> 0 | P30: =ROUND('Bill Preparation'!M26*C30/'Bill Preparation'!AN26,0) -> 0 | Q30: =ROUND('Bill Preparation'!N26*C30/'Bill Preparation'!AN26,0) -> 0 | R30: =ROUND('Bill Preparation'!O26*C30/'Bill Preparation'!AN26,0) -> 0 | S30: =ROUND(O30*'Bill Preparation'!H26/100,0) -> 0 | T30: =IF(ROUND(O30*'Bill Preparation'!I26/100,0)>('Bill Preparation'!I26+1)*1000,('Bill Preparation'!I26+1)*1000,ROUND(O30*'Bill Preparation'!I26/100,0)) -> 0 | U30: =ROUND(O30*'Bill Preparation'!J26/100,0) -> 0 | V30: =ROUND('Bill Preparation'!Q26*C30/'Bill Preparation'!AN26,0) -> 0 | W30: =ROUND('Bill Preparation'!L26*C30/'Bill Preparation'!AN26,0) -> 0 | X30: 0 | Y30: =IF([1]Data!$B$32="Yes",0,IF(C30>AQ30/2,AU30,0)) -> 0 | Z30: 0 | AA30: 0 | AB30: 0 | AC30: 0 | AD30: 0 | AE30: 0 | AF30: 0 | AG30: 0 | AH30: 0 | AI30: 0 | AJ30: =IF(Data!$D$3="CPS",0,ROUND(Z30*'Bill Preparation'!R26%,0)) -> 0 | AK30: 0 | AL30: =IF(Data!$D$3="CPS",ROUND((Z30+AD30)*10%,0),0) -> 0 | AM30: 0 | AN30: 0 | AP30: 6 | AQ30: 30 | AR30: ='Bill Preparation'!F26+'Bill Preparation'!M26+ROUND('Bill Preparation'!F26*'Bill Preparation'!H26/100,0)+ROUND('Bill Preparation'!F26*'Bill Preparation'!I26/100,0)+'Bill Preparation'!K26+'Bill Preparation'!N26+'Bill Preparation'!O26 -> 0 | AS30: 0 | AT30: ='Bill Preparation'!G26+'Bill Preparation'!M26+ROUND('Bill Preparation'!G26*'Bill Preparation'!H26/100,0)+ROUND('Bill Preparation'!G26*'Bill Preparation'!I26/100,0)+'Bill Preparation'!L26+'Bill Preparation'!N26+'Bill Preparation'!O26 -> 0 | AU30: 0
A31: ='Bill Preparation'!B27 -> 2025-07-01 | B31: ='Bill Preparation'!D27 -> 2025-07-31 | C31: 31 | D31: =ROUND('Bill Preparation'!F27*C31/'Bill Preparation'!AN27,0) -> 0 | E31: =ROUND('Bill Preparation'!M27*C31/'Bill Preparation'!AN27,0) -> 0 | F31: =ROUND('Bill Preparation'!N27*C31/'Bill Preparation'!AN27,0) -> 0 | G31: =ROUND('Bill Preparation'!O27*C31/'Bill Preparation'!AN27,0) -> 0 | H31: =ROUND(D31*'Bill Preparation'!H27/100,0) -> 0 | I31: =IF(ROUND(D31*'Bill Preparation'!I27/100,0)>('Bill Preparation'!I27+1)*1000,('Bill Preparation'!I27+1)*1000,ROUND(D31*'Bill Preparation'!I27/100,0)) -> 0 | J31: =ROUND(D31*'Bill Preparation'!J27/100,0) -> 0 | K31: =ROUND('Bill Preparation'!P27*C31/'Bill Preparation'!AN27,0) -> 0 | L31: =ROUND('Bill Preparation'!K27*C31/'Bill Preparation'!AN27,0) -> 0 | M31: 0 | N31: =IF([1]Data!$B$32="Yes",0,IF(C31>AQ31/2,AS31,0)) -> 0 | O31: =ROUND('Bill Preparation'!G27*C31/'Bill Preparation'!AN27,0) -> 0 | P31: =ROUND('Bill Preparation'!M27*C31/'Bill Preparation'!AN27,0) -> 0 | Q31: =ROUND('Bill Preparation'!N27*C31/'Bill Preparation'!AN27,0) -> 0 | R31: =ROUND('Bill Preparation'!O27*C31/'Bill Preparation'!AN27,0) -> 0 | S31: =ROUND(O31*'Bill Preparation'!H27/100,0) -> 0 | T31: =IF(ROUND(O31*'Bill Preparation'!I27/100,0)>('Bill Preparation'!I27+1)*1000,('Bill Preparation'!I27+1)*1000,ROUND(O31*'Bill Preparation'!I27/100,0)) -> 0 | U31: =ROUND(O31*'Bill Preparation'!J27/100,0) -> 0 | V31: =ROUND('Bill Preparation'!Q27*C31/'Bill Preparation'!AN27,0) -> 0 | W31: =ROUND('Bill Preparation'!L27*C31/'Bill Preparation'!AN27,0) -> 0 | X31: 0 | Y31: =IF([1]Data!$B$32="Yes",0,IF(C31>AQ31/2,AU31,0)) -> 0 | Z31: 0 | AA31: 0 | AB31: 0 | AC31: 0 | AD31: 0 | AE31: 0 | AF31: 0 | AG31: 0 | AH31: 0 | AI31: 0 | AJ31: =IF(Data!$D$3="CPS",0,ROUND(Z31*'Bill Preparation'!R27%,0)) -> 0 | AK31: 0 | AL31: =IF(Data!$D$3="CPS",ROUND((Z31+AD31)*10%,0),0) -> 0 | AM31: 0 | AN31: 0 | AP31: 7 | AQ31: 31 | AR31: ='Bill Preparation'!F27+'Bill Preparation'!M27+ROUND('Bill Preparation'!F27*'Bill Preparation'!H27/100,0)+ROUND('Bill Preparation'!F27*'Bill Preparation'!I27/100,0)+'Bill Preparation'!K27+'Bill Preparation'!N27+'Bill Preparation'!O27 -> 0 | AS31: 0 | AT31: ='Bill Preparation'!G27+'Bill Preparation'!M27+ROUND('Bill Preparation'!G27*'Bill Preparation'!H27/100,0)+ROUND('Bill Preparation'!G27*'Bill Preparation'!I27/100,0)+'Bill Preparation'!L27+'Bill Preparation'!N27+'Bill Preparation'!O27 -> 0 | AU31: 0
A32: ='Bill Preparation'!B28 -> 2025-08-01 | B32: ='Bill Preparation'!D28 -> 2025-08-31 | C32: 31 | D32: =ROUND('Bill Preparation'!F28*C32/'Bill Preparation'!AN28,0) -> 0 | E32: =ROUND('Bill Preparation'!M28*C32/'Bill Preparation'!AN28,0) -> 0 | F32: =ROUND('Bill Preparation'!N28*C32/'Bill Preparation'!AN28,0) -> 0 | G32: =ROUND('Bill Preparation'!O28*C32/'Bill Preparation'!AN28,0) -> 0 | H32: =ROUND(D32*'Bill Preparation'!H28/100,0) -> 0 | I32: =IF(ROUND(D32*'Bill Preparation'!I28/100,0)>('Bill Preparation'!I28+1)*1000,('Bill Preparation'!I28+1)*1000,ROUND(D32*'Bill Preparation'!I28/100,0)) -> 0 | J32: =ROUND(D32*'Bill Preparation'!J28/100,0) -> 0 | K32: =ROUND('Bill Preparation'!P28*C32/'Bill Preparation'!AN28,0) -> 0 | L32: =ROUND('Bill Preparation'!K28*C32/'Bill Preparation'!AN28,0) -> 0 | M32: 0 | N32: =IF([1]Data!$B$32="Yes",0,IF(C32>AQ32/2,AS32,0)) -> 0 | O32: =ROUND('Bill Preparation'!G28*C32/'Bill Preparation'!AN28,0) -> 0 | P32: =ROUND('Bill Preparation'!M28*C32/'Bill Preparation'!AN28,0) -> 0 | Q32: =ROUND('Bill Preparation'!N28*C32/'Bill Preparation'!AN28,0) -> 0 | R32: =ROUND('Bill Preparation'!O28*C32/'Bill Preparation'!AN28,0) -> 0 | S32: =ROUND(O32*'Bill Preparation'!H28/100,0) -> 0 | T32: =IF(ROUND(O32*'Bill Preparation'!I28/100,0)>('Bill Preparation'!I28+1)*1000,('Bill Preparation'!I28+1)*1000,ROUND(O32*'Bill Preparation'!I28/100,0)) -> 0 | U32: =ROUND(O32*'Bill Preparation'!J28/100,0) -> 0 | V32: =ROUND('Bill Preparation'!Q28*C32/'Bill Preparation'!AN28,0) -> 0 | W32: =ROUND('Bill Preparation'!L28*C32/'Bill Preparation'!AN28,0) -> 0 | X32: 0 | Y32: =IF([1]Data!$B$32="Yes",0,IF(C32>AQ32/2,AU32,0)) -> 0 | Z32: 0 | AA32: 0 | AB32: 0 | AC32: 0 | AD32: 0 | AE32: 0 | AF32: 0 | AG32: 0 | AH32: 0 | AI32: 0 | AJ32: =IF(Data!$D$3="CPS",0,ROUND(Z32*'Bill Preparation'!R28%,0)) -> 0 | AK32: 0 | AL32: =IF(Data!$D$3="CPS",ROUND((Z32+AD32)*10%,0),0) -> 0 | AM32: 0 | AN32: 0 | AP32: 8 | AQ32: 31 | AR32: ='Bill Preparation'!F28+'Bill Preparation'!M28+ROUND('Bill Preparation'!F28*'Bill Preparation'!H28/100,0)+ROUND('Bill Preparation'!F28*'Bill Preparation'!I28/100,0)+'Bill Preparation'!K28+'Bill Preparation'!N28+'Bill Preparation'!O28 -> 0 | AS32: 0 | AT32: ='Bill Preparation'!G28+'Bill Preparation'!M28+ROUND('Bill Preparation'!G28*'Bill Preparation'!H28/100,0)+ROUND('Bill Preparation'!G28*'Bill Preparation'!I28/100,0)+'Bill Preparation'!L28+'Bill Preparation'!N28+'Bill Preparation'!O28 -> 0 | AU32: 0
A33: ='Bill Preparation'!B29 -> 2025-09-01 | B33: ='Bill Preparation'!D29 -> 2025-09-30 | C33: 30 | D33: =ROUND('Bill Preparation'!F29*C33/'Bill Preparation'!AN29,0) -> 0 | E33: =ROUND('Bill Preparation'!M29*C33/'Bill Preparation'!AN29,0) -> 0 | F33: =ROUND('Bill Preparation'!N29*C33/'Bill Preparation'!AN29,0) -> 0 | G33: =ROUND('Bill Preparation'!O29*C33/'Bill Preparation'!AN29,0) -> 0 | H33: =ROUND(D33*'Bill Preparation'!H29/100,0) -> 0 | I33: =IF(ROUND(D33*'Bill Preparation'!I29/100,0)>('Bill Preparation'!I29+1)*1000,('Bill Preparation'!I29+1)*1000,ROUND(D33*'Bill Preparation'!I29/100,0)) -> 0 | J33: =ROUND(D33*'Bill Preparation'!J29/100,0) -> 0 | K33: =ROUND('Bill Preparation'!P29*C33/'Bill Preparation'!AN29,0) -> 0 | L33: =ROUND('Bill Preparation'!K29*C33/'Bill Preparation'!AN29,0) -> 0 | M33: 0 | N33: =IF([1]Data!$B$32="Yes",0,IF(C33>AQ33/2,AS33,0)) -> 0 | O33: =ROUND('Bill Preparation'!G29*C33/'Bill Preparation'!AN29,0) -> 0 | P33: =ROUND('Bill Preparation'!M29*C33/'Bill Preparation'!AN29,0) -> 0 | Q33: =ROUND('Bill Preparation'!N29*C33/'Bill Preparation'!AN29,0) -> 0 | R33: =ROUND('Bill Preparation'!O29*C33/'Bill Preparation'!AN29,0) -> 0 | S33: =ROUND(O33*'Bill Preparation'!H29/100,0) -> 0 | T33: =IF(ROUND(O33*'Bill Preparation'!I29/100,0)>('Bill Preparation'!I29+1)*1000,('Bill Preparation'!I29+1)*1000,ROUND(O33*'Bill Preparation'!I29/100,0)) -> 0 | U33: =ROUND(O33*'Bill Preparation'!J29/100,0) -> 0 | V33: =ROUND('Bill Preparation'!Q29*C33/'Bill Preparation'!AN29,0) -> 0 | W33: =ROUND('Bill Preparation'!L29*C33/'Bill Preparation'!AN29,0) -> 0 | X33: 0 | Y33: =IF([1]Data!$B$32="Yes",0,IF(C33>AQ33/2,AU33,0)) -> 0 | Z33: 0 | AA33: 0 | AB33: 0 | AC33: 0 | AD33: 0 | AE33: 0 | AF33: 0 | AG33: 0 | AH33: 0 | AI33: 0 | AJ33: =IF(Data!$D$3="CPS",0,ROUND(Z33*'Bill Preparation'!R29%,0)) -> 0 | AK33: 0 | AL33: =IF(Data!$D$3="CPS",ROUND((Z33+AD33)*10%,0),0) -> 0 | AM33: 0 | AN33: 0 | AP33: 9 | AQ33: 30 | AR33: ='Bill Preparation'!F29+'Bill Preparation'!M29+ROUND('Bill Preparation'!F29*'Bill Preparation'!H29/100,0)+ROUND('Bill Preparation'!F29*'Bill Preparation'!I29/100,0)+'Bill Preparation'!K29+'Bill Preparation'!N29+'Bill Preparation'!O29 -> 0 | AS33: 0 | AT33: ='Bill Preparation'!G29+'Bill Preparation'!M29+ROUND('Bill Preparation'!G29*'Bill Preparation'!H29/100,0)+ROUND('Bill Preparation'!G29*'Bill Preparation'!I29/100,0)+'Bill Preparation'!L29+'Bill Preparation'!N29+'Bill Preparation'!O29 -> 0 | AU33: 0
A34: ='Bill Preparation'!B30 -> 2025-10-01 | B34: ='Bill Preparation'!D30 -> 2025-10-31 | C34: 31 | D34: =ROUND('Bill Preparation'!F30*C34/'Bill Preparation'!AN30,0) -> 0 | E34: =ROUND('Bill Preparation'!M30*C34/'Bill Preparation'!AN30,0) -> 0 | F34: =ROUND('Bill Preparation'!N30*C34/'Bill Preparation'!AN30,0) -> 0 | G34: =ROUND('Bill Preparation'!O30*C34/'Bill Preparation'!AN30,0) -> 0 | H34: =ROUND(D34*'Bill Preparation'!H30/100,0) -> 0 | I34: =IF(ROUND(D34*'Bill Preparation'!I30/100,0)>('Bill Preparation'!I30+1)*1000,('Bill Preparation'!I30+1)*1000,ROUND(D34*'Bill Preparation'!I30/100,0)) -> 0 | J34: =ROUND(D34*'Bill Preparation'!J30/100,0) -> 0 | K34: =ROUND('Bill Preparation'!P30*C34/'Bill Preparation'!AN30,0) -> 0 | L34: =ROUND('Bill Preparation'!K30*C34/'Bill Preparation'!AN30,0) -> 0 | M34: 0 | N34: =IF([1]Data!$B$32="Yes",0,IF(C34>AQ34/2,AS34,0)) -> 0 | O34: =ROUND('Bill Preparation'!G30*C34/'Bill Preparation'!AN30,0) -> 0 | P34: =ROUND('Bill Preparation'!M30*C34/'Bill Preparation'!AN30,0) -> 0 | Q34: =ROUND('Bill Preparation'!N30*C34/'Bill Preparation'!AN30,0) -> 0 | R34: =ROUND('Bill Preparation'!O30*C34/'Bill Preparation'!AN30,0) -> 0 | S34: =ROUND(O34*'Bill Preparation'!H30/100,0) -> 0 | T34: =IF(ROUND(O34*'Bill Preparation'!I30/100,0)>('Bill Preparation'!I30+1)*1000,('Bill Preparation'!I30+1)*1000,ROUND(O34*'Bill Preparation'!I30/100,0)) -> 0 | U34: =ROUND(O34*'Bill Preparation'!J30/100,0) -> 0 | V34: =ROUND('Bill Preparation'!Q30*C34/'Bill Preparation'!AN30,0) -> 0 | W34: =ROUND('Bill Preparation'!L30*C34/'Bill Preparation'!AN30,0) -> 0 | X34: 0 | Y34: =IF([1]Data!$B$32="Yes",0,IF(C34>AQ34/2,AU34,0)) -> 0 | Z34: 0 | AA34: 0 | AB34: 0 | AC34: 0 | AD34: 0 | AE34: 0 | AF34: 0 | AG34: 0 | AH34: 0 | AI34: 0 | AJ34: =IF(Data!$D$3="CPS",0,ROUND(Z34*'Bill Preparation'!R30%,0)) -> 0 | AK34: 0 | AL34: =IF(Data!$D$3="CPS",ROUND((Z34+AD34)*10%,0),0) -> 0 | AM34: 0 | AN34: 0 | AP34: 10 | AQ34: 31 | AR34: ='Bill Preparation'!F30+'Bill Preparation'!M30+ROUND('Bill Preparation'!F30*'Bill Preparation'!H30/100,0)+ROUND('Bill Preparation'!F30*'Bill Preparation'!I30/100,0)+'Bill Preparation'!K30+'Bill Preparation'!N30+'Bill Preparation'!O30 -> 0 | AS34: 0 | AT34: ='Bill Preparation'!G30+'Bill Preparation'!M30+ROUND('Bill Preparation'!G30*'Bill Preparation'!H30/100,0)+ROUND('Bill Preparation'!G30*'Bill Preparation'!I30/100,0)+'Bill Preparation'!L30+'Bill Preparation'!N30+'Bill Preparation'!O30 -> 0 | AU34: 0
A35: ='Bill Preparation'!B31 -> 2025-11-01 | B35: ='Bill Preparation'!D31 -> 2025-11-30 | C35: 30 | D35: =ROUND('Bill Preparation'!F31*C35/'Bill Preparation'!AN31,0) -> 0 | E35: =ROUND('Bill Preparation'!M31*C35/'Bill Preparation'!AN31,0) -> 0 | F35: =ROUND('Bill Preparation'!N31*C35/'Bill Preparation'!AN31,0) -> 0 | G35: =ROUND('Bill Preparation'!O31*C35/'Bill Preparation'!AN31,0) -> 0 | H35: =ROUND(D35*'Bill Preparation'!H31/100,0) -> 0 | I35: =IF(ROUND(D35*'Bill Preparation'!I31/100,0)>('Bill Preparation'!I31+1)*1000,('Bill Preparation'!I31+1)*1000,ROUND(D35*'Bill Preparation'!I31/100,0)) -> 0 | J35: =ROUND(D35*'Bill Preparation'!J31/100,0) -> 0 | K35: =ROUND('Bill Preparation'!P31*C35/'Bill Preparation'!AN31,0) -> 0 | L35: =ROUND('Bill Preparation'!K31*C35/'Bill Preparation'!AN31,0) -> 0 | M35: 0 | N35: =IF([1]Data!$B$32="Yes",0,IF(C35>AQ35/2,AS35,0)) -> 0 | O35: =ROUND('Bill Preparation'!G31*C35/'Bill Preparation'!AN31,0) -> 0 | P35: =ROUND('Bill Preparation'!M31*C35/'Bill Preparation'!AN31,0) -> 0 | Q35: =ROUND('Bill Preparation'!N31*C35/'Bill Preparation'!AN31,0) -> 0 | R35: =ROUND('Bill Preparation'!O31*C35/'Bill Preparation'!AN31,0) -> 0 | S35: =ROUND(O35*'Bill Preparation'!H31/100,0) -> 0 | T35: =IF(ROUND(O35*'Bill Preparation'!I31/100,0)>('Bill Preparation'!I31+1)*1000,('Bill Preparation'!I31+1)*1000,ROUND(O35*'Bill Preparation'!I31/100,0)) -> 0 | U35: =ROUND(O35*'Bill Preparation'!J31/100,0) -> 0 | V35: =ROUND('Bill Preparation'!Q31*C35/'Bill Preparation'!AN31,0) -> 0 | W35: =ROUND('Bill Preparation'!L31*C35/'Bill Preparation'!AN31,0) -> 0 | X35: 0 | Y35: =IF([1]Data!$B$32="Yes",0,IF(C35>AQ35/2,AU35,0)) -> 0 | Z35: 0 | AA35: 0 | AB35: 0 | AC35: 0 | AD35: 0 | AE35: 0 | AF35: 0 | AG35: 0 | AH35: 0 | AI35: 0 | AJ35: =IF(Data!$D$3="CPS",0,ROUND(Z35*'Bill Preparation'!R31%,0)) -> 0 | AK35: 0 | AL35: =IF(Data!$D$3="CPS",ROUND((Z35+AD35)*10%,0),0) -> 0 | AM35: 0 | AN35: 0 | AP35: 11 | AQ35: 30 | AR35: ='Bill Preparation'!F31+'Bill Preparation'!M31+ROUND('Bill Preparation'!F31*'Bill Preparation'!H31/100,0)+ROUND('Bill Preparation'!F31*'Bill Preparation'!I31/100,0)+'Bill Preparation'!K31+'Bill Preparation'!N31+'Bill Preparation'!O31 -> 0 | AS35: 0 | AT35: ='Bill Preparation'!G31+'Bill Preparation'!M31+ROUND('Bill Preparation'!G31*'Bill Preparation'!H31/100,0)+ROUND('Bill Preparation'!G31*'Bill Preparation'!I31/100,0)+'Bill Preparation'!L31+'Bill Preparation'!N31+'Bill Preparation'!O31 -> 0 | AU35: 0
A36: ='Bill Preparation'!B32 -> 2025-12-01 | B36: ='Bill Preparation'!D32 -> 2025-12-31 | C36: 31 | D36: =ROUND('Bill Preparation'!F32*C36/'Bill Preparation'!AO32,0) -> 0 | E36: =ROUND('Bill Preparation'!M32*C36/'Bill Preparation'!AO32,0) -> 0 | F36: =ROUND('Bill Preparation'!N32*C36/'Bill Preparation'!AO32,0) -> 0 | G36: =ROUND('Bill Preparation'!O32*C36/'Bill Preparation'!AO32,0) -> 0 | H36: =ROUND(D36*'Bill Preparation'!H32/100,0) -> 0 | I36: =IF(ROUND(D36*'Bill Preparation'!I32/100,0)>('Bill Preparation'!I32+1)*1000,('Bill Preparation'!I32+1)*1000,ROUND(D36*'Bill Preparation'!I32/100,0)) -> 0 | J36: =ROUND(D36*'Bill Preparation'!J32/100,0) -> 0 | K36: =ROUND('Bill Preparation'!P32*C36/'Bill Preparation'!AN32,0) -> 0 | L36: =ROUND('Bill Preparation'!K32*C36/'Bill Preparation'!AO32,0) -> 0 | M36: 0 | N36: =IF([1]Data!$B$32="Yes",0,IF(C36>AQ36/2,AS36,0)) -> 0 | O36: =ROUND('Bill Preparation'!G32*C36/'Bill Preparation'!AO32,0) -> 0 | P36: =ROUND('Bill Preparation'!M32*C36/'Bill Preparation'!AO32,0) -> 0 | Q36: =ROUND('Bill Preparation'!N32*C36/'Bill Preparation'!AO32,0) -> 0 | R36: =ROUND('Bill Preparation'!O32*C36/'Bill Preparation'!AO32,0) -> 0 | S36: =ROUND(O36*'Bill Preparation'!H32/100,0) -> 0 | T36: =IF(ROUND(O36*'Bill Preparation'!I32/100,0)>('Bill Preparation'!I32+1)*1000,('Bill Preparation'!I32+1)*1000,ROUND(O36*'Bill Preparation'!I32/100,0)) -> 0 | U36: =ROUND(O36*'Bill Preparation'!J32/100,0) -> 0 | V36: =ROUND('Bill Preparation'!Q32*C36/'Bill Preparation'!AN32,0) -> 0 | W36: =ROUND('Bill Preparation'!L32*C36/'Bill Preparation'!AO32,0) -> 0 | X36: 0 | Y36: =IF([1]Data!$B$32="Yes",0,IF(C36>AQ36/2,AU36,0)) -> 0 | Z36: 0 | AA36: 0 | AB36: 0 | AC36: 0 | AD36: 0 | AE36: 0 | AF36: 0 | AG36: 0 | AH36: 0 | AI36: 0 | AJ36: =IF(Data!$D$3="CPS",0,ROUND(Z36*'Bill Preparation'!R32%,0)) -> 0 | AK36: 0 | AL36: =IF(Data!$D$3="CPS",ROUND((Z36+AD36)*10%,0),0) -> 0 | AM36: 0 | AN36: 0 | AP36: 12 | AQ36: 31 | AR36: ='Bill Preparation'!F32+'Bill Preparation'!M32+ROUND('Bill Preparation'!F32*'Bill Preparation'!H32/100,0)+ROUND('Bill Preparation'!F32*'Bill Preparation'!I32/100,0)+'Bill Preparation'!K32+'Bill Preparation'!N32+'Bill Preparation'!O32 -> 0 | AS36: 0 | AT36: ='Bill Preparation'!G32+'Bill Preparation'!M32+ROUND('Bill Preparation'!G32*'Bill Preparation'!H32/100,0)+ROUND('Bill Preparation'!G32*'Bill Preparation'!I32/100,0)+'Bill Preparation'!L32+'Bill Preparation'!N32+'Bill Preparation'!O32 -> 0 | AU36: 0
A37: ='Bill Preparation'!B33 -> 2026-01-01 | B37: ='Bill Preparation'!D33 -> 2026-01-31 | C37: 31 | D37: =ROUND('Bill Preparation'!F33*C37/'Bill Preparation'!AO33,0) -> 0 | E37: =ROUND('Bill Preparation'!M33*C37/'Bill Preparation'!AO33,0) -> 0 | F37: =ROUND('Bill Preparation'!N33*C37/'Bill Preparation'!AO33,0) -> 0 | G37: =ROUND('Bill Preparation'!O33*C37/'Bill Preparation'!AO33,0) -> 0 | H37: =ROUND(D37*'Bill Preparation'!H33/100,0) -> 0 | I37: =IF(ROUND(D37*'Bill Preparation'!I33/100,0)>('Bill Preparation'!I33+1)*1000,('Bill Preparation'!I33+1)*1000,ROUND(D37*'Bill Preparation'!I33/100,0)) -> 0 | J37: =ROUND(D37*'Bill Preparation'!J33/100,0) -> 0 | K37: =ROUND('Bill Preparation'!P33*C37/'Bill Preparation'!AN33,0) -> 0 | L37: =ROUND('Bill Preparation'!K33*C37/'Bill Preparation'!AO33,0) -> 0 | M37: 0 | N37: =IF([1]Data!$B$32="Yes",0,IF(C37>AQ37/2,AS37,0)) -> 0 | O37: =ROUND('Bill Preparation'!G33*C37/'Bill Preparation'!AO33,0) -> 0 | P37: =ROUND('Bill Preparation'!M33*C37/'Bill Preparation'!AO33,0) -> 0 | Q37: =ROUND('Bill Preparation'!N33*C37/'Bill Preparation'!AO33,0) -> 0 | R37: =ROUND('Bill Preparation'!O33*C37/'Bill Preparation'!AO33,0) -> 0 | S37: =ROUND(O37*'Bill Preparation'!H33/100,0) -> 0 | T37: =IF(ROUND(O37*'Bill Preparation'!I33/100,0)>('Bill Preparation'!I33+1)*1000,('Bill Preparation'!I33+1)*1000,ROUND(O37*'Bill Preparation'!I33/100,0)) -> 0 | U37: =ROUND(O37*'Bill Preparation'!J33/100,0) -> 0 | V37: =ROUND('Bill Preparation'!Q33*C37/'Bill Preparation'!AN33,0) -> 0 | W37: =ROUND('Bill Preparation'!L33*C37/'Bill Preparation'!AO33,0) -> 0 | X37: 0 | Y37: =IF([1]Data!$B$32="Yes",0,IF(C37>AQ37/2,AU37,0)) -> 0 | Z37: 0 | AA37: 0 | AB37: 0 | AC37: 0 | AD37: 0 | AE37: 0 | AF37: 0 | AG37: 0 | AH37: 0 | AI37: 0 | AJ37: =IF(Data!$D$3="CPS",0,ROUND(Z37*'Bill Preparation'!R33%,0)) -> 0 | AK37: 0 | AL37: =IF(Data!$D$3="CPS",ROUND((Z37+AD37)*10%,0),0) -> 0 | AM37: 0 | AN37: 0 | AP37: 1 | AQ37: 31 | AR37: ='Bill Preparation'!F33+'Bill Preparation'!M33+ROUND('Bill Preparation'!F33*'Bill Preparation'!H33/100,0)+ROUND('Bill Preparation'!F33*'Bill Preparation'!I33/100,0)+'Bill Preparation'!K33+'Bill Preparation'!N33+'Bill Preparation'!O33 -> 0 | AS37: 0 | AT37: ='Bill Preparation'!G33+'Bill Preparation'!M33+ROUND('Bill Preparation'!G33*'Bill Preparation'!H33/100,0)+ROUND('Bill Preparation'!G33*'Bill Preparation'!I33/100,0)+'Bill Preparation'!L33+'Bill Preparation'!N33+'Bill Preparation'!O33 -> 0 | AU37: 0
A38: ='Bill Preparation'!B34 -> 2026-02-01 | B38: ='Bill Preparation'!D34 -> 2026-02-28 | C38: 28 | D38: =ROUND('Bill Preparation'!F34*C38/'Bill Preparation'!AO34,0) -> 0 | E38: =ROUND('Bill Preparation'!M34*C38/'Bill Preparation'!AO34,0) -> 0 | F38: =ROUND('Bill Preparation'!N34*C38/'Bill Preparation'!AO34,0) -> 0 | G38: =ROUND('Bill Preparation'!O34*C38/'Bill Preparation'!AO34,0) -> 0 | H38: =ROUND(D38*'Bill Preparation'!H34/100,0) -> 0 | I38: =IF(ROUND(D38*'Bill Preparation'!I34/100,0)>('Bill Preparation'!I34+1)*1000,('Bill Preparation'!I34+1)*1000,ROUND(D38*'Bill Preparation'!I34/100,0)) -> 0 | J38: =ROUND(D38*'Bill Preparation'!J34/100,0) -> 0 | K38: =ROUND('Bill Preparation'!P34*C38/'Bill Preparation'!AN34,0) -> 0 | L38: =ROUND('Bill Preparation'!K34*C38/'Bill Preparation'!AO34,0) -> 0 | M38: 0 | N38: =IF([1]Data!$B$32="Yes",0,IF(C38>AQ38/2,AS38,0)) -> 0 | O38: =ROUND('Bill Preparation'!G34*C38/'Bill Preparation'!AO34,0) -> 0 | P38: =ROUND('Bill Preparation'!M34*C38/'Bill Preparation'!AO34,0) -> 0 | Q38: =ROUND('Bill Preparation'!N34*C38/'Bill Preparation'!AO34,0) -> 0 | R38: =ROUND('Bill Preparation'!O34*C38/'Bill Preparation'!AO34,0) -> 0 | S38: =ROUND(O38*'Bill Preparation'!H34/100,0) -> 0 | T38: =IF(ROUND(O38*'Bill Preparation'!I34/100,0)>('Bill Preparation'!I34+1)*1000,('Bill Preparation'!I34+1)*1000,ROUND(O38*'Bill Preparation'!I34/100,0)) -> 0 | U38: =ROUND(O38*'Bill Preparation'!J34/100,0) -> 0 | V38: =ROUND('Bill Preparation'!Q34*C38/'Bill Preparation'!AN34,0) -> 0 | W38: =ROUND('Bill Preparation'!L34*C38/'Bill Preparation'!AO34,0) -> 0 | X38: 0 | Y38: =IF([1]Data!$B$32="Yes",0,IF(C38>AQ38/2,AU38,0)) -> 0 | Z38: 0 | AA38: 0 | AB38: 0 | AC38: 0 | AD38: 0 | AE38: 0 | AF38: 0 | AG38: 0 | AH38: 0 | AI38: 0 | AJ38: =IF(Data!$D$3="CPS",0,ROUND(Z38*'Bill Preparation'!R34%,0)) -> 0 | AK38: 0 | AL38: =IF(Data!$D$3="CPS",ROUND((Z38+AD38)*10%,0),0) -> 0 | AM38: 0 | AN38: 0 | AP38: 2 | AQ38: 28 | AR38: ='Bill Preparation'!F34+'Bill Preparation'!M34+ROUND('Bill Preparation'!F34*'Bill Preparation'!H34/100,0)+ROUND('Bill Preparation'!F34*'Bill Preparation'!I34/100,0)+'Bill Preparation'!K34+'Bill Preparation'!N34+'Bill Preparation'!O34 -> 0 | AS38: 0 | AT38: ='Bill Preparation'!G34+'Bill Preparation'!M34+ROUND('Bill Preparation'!G34*'Bill Preparation'!H34/100,0)+ROUND('Bill Preparation'!G34*'Bill Preparation'!I34/100,0)+'Bill Preparation'!L34+'Bill Preparation'!N34+'Bill Preparation'!O34 -> 0 | AU38: 0
A42: Total Cash and Adjustment | Z42: =SUM(Z7:Z41) -> 26748 | AA42: 0 | AB42: 0 | AC42: 0 | AD42: 6086 | AE42: 2674 | AF42: 0 | AG42: 0 | AH42: 0 | AI42: 35508 | AJ42: 0 | AK42: 0 | AL42: 3283 | AM42: 3283 | AN42: 32225

Sheet aptc 49
A1: A.P.T.C.FORM – 49
A2: PERIODICAL INCREMENT CERTIFICATE
A3: ANNEXURE
A4: (1) Certified that every Government Servant(s) named below has have earned the prescribed periodical increment from date/dates noted in column 10 and either 1 (a) has / have been the incumbent or the appointment indicated against his name / their names for a period not less than ………..year since the date in column 5 or (if he has /they have been suspended for misconduct) column 7 after deducting the periods between the dates shown in column (8) and has (9) and has been subjected in any order of stop page of increment as penalty during the periods, and during the periods of leave on average pay taken at a time and from ………………………..which has / have been conducted for increment / in the case of officiating Government Servant / Servants named below the / they would have officiated in the post/ posts but for his / their going on leave or …………………….
A5: Sl.No. | B5: Name | C5: Appointment | D5: Whether Substantive or Officiating | E5: Date from which present pay as drawn | F5: Suspension for Misconduct | H5: Leave without pay and in the case of these holding the post temporarily or in an officiating capacity all kinds of leave other than leave on average pay | J5: Date from which increment may be given | K5: Scale | L5: Present Pay | M5: Amount of increment | N5: Future Pay
F6: From | G6: to | H6: From | I6: to
A7: 1 | B7: 2 | C7: 3 | D7: 4 | E7: 5 | F7: 6 | G7: 7 | H7: 8 | I7: 9 | J7: 10 | K7: 11 | L7: 12 | M7: 13 | N7: 14
A8: 1 | B8: =Data!B2 -> Smt Shaik ASHITUN (CFMS ID15087189) | C8: =Data!D4 -> SCHOOL ASST(Phy Ed) | D8: Substantive
A10: Note: | B10: 1. When and increment claimed operates to carry Government Servant over an efficiency have the claim should be supported by a declaration from the competent authority that it has satisfied it self that the character and efficiency of the government Servant concerned are such that he is fit to pass the above columns 5 and 10 to 14 should be filled up in red ink
A11: 2. The terms leave on average pay up to a maximum 4 months wherever occurring from includes earned leave upto a maximum of 100 days or 50 days or 30 days the case may be far as | B11: 2. The terms leave on average pay upto a maximum 4 months wherever occuring from includes earned leave upto a maximum of 100 days or 50 days or 30 days the case may be far as government Servants governed by the Andhra Pradesh Leave rules 1988 are concerned.
J13: Signature and Designation of Drawing Officer
